Workbook

Sheet STATISTICAL NEIGHBOURS
B2: This worksheet allows you to view data for your own LA along with your statistical neighbours, or with your own choice of other LAs.
B4: Choose LAs | G4: Other LAs
B6: 1. Please select your LA
B8: My LA
B12: 2. Then either select your statistical neighbours:
B17: Or make your own selection of LAs using the drop down boxes
B19: 3. When you have made your selection, press the "Create Table" button to view the benchmarking table
B25: Note: When statistical neighbours are selected, LAs are shown in order of closeness to your LA

Sheet 3-4 year olds (hidden)
A2: =CONCATENATE('Selector-anon'!B3," - Key Budget Statistics") ->  | K2: Financial Year 2013-14
D4: PVIs | E4: Nursery Schools | F4: Primary Nursery Places | G4: Centrally Retained
B5: ='Selector-anon'!D3 ->  | D5: Private, Voluntary, Independent | E5: Nursery Schools | F5: Primary Nursery Places
A6: Total FTE | B6: Total 3-4 yrs pupils1 | D6: =VLOOKUP('Selector-anon'!$A$3,'EY Data'!$B$5:$AY$162,22,0) ->  | E6: =VLOOKUP('Selector-anon'!$A$3,'EY Data'!$B$5:$AY$162,21,0) ->  | F6: =VLOOKUP('Selector-anon'!$A$3,'EY Data'!$B$5:$AY$162,20,0) -> 
A7: Total budget | B7: Total 3-4 yrs delegated2 | D7: =VLOOKUP('Selector-anon'!$A$3,'EY Data'!$B$5:$AY$162,metadata!$B$2,0) ->  | E7: =VLOOKUP('Selector-anon'!$A$3,'EY Data'!$B$5:$AY$162,metadata!$B$3,0) ->  | F7: =VLOOKUP('Selector-anon'!$A$3,'EY Data'!$B$5:$AY$162,metadata!$B$4,0) -> 
A8: Total Hours
A19: =CONCATENATE("Benchmarking against ",IF(_SN=1,"Statistical Neighbours","Manual Selection")) -> 
C23: Order
D26: Delegated budget allocated to providers per pupil | G26: Delegated budget allocated to providers per hour
B27: Local Authority | D27: Private, Voluntary, Independent | E27: Nursery Schools | F27: Primary Nursery Places | G27: Private, Voluntary, Independent | H27: Nursery Schools | I27: Primary Nursery Places
B28: England | D28: =ROUND('EY Data'!G158,0) -> 2232 | E28: =ROUND('EY Data'!F158,0) -> 4166 | F28: =ROUND('EY Data'!E158,0) -> 2422 | G28: =ROUND('EY Data'!AR158,2) -> 3.92 | H28: =ROUND('EY Data'!AQ158,2) -> 7.31 | I28: =ROUND('EY Data'!AP158,2) -> 4.25
B29: England Median | D29: =ROUND('EY Data'!G160,0) -> 2237 | E29: =ROUND('EY Data'!F160,0) -> 4064 | F29: =ROUND('EY Data'!E160,0) -> 2321 | G29: =ROUND('EY Data'!AR160,2) -> 3.92 | H29: =ROUND('EY Data'!AQ160,2) -> 7.13 | I29: =ROUND('EY Data'!AP160,2) -> 4.07
B30: England Minimum | D30: =ROUND('EY Data'!G161,0) -> 1767 | E30: =ROUND('EY Data'!F161,0) -> 1715 | F30: =ROUND('EY Data'!E161,0) -> 1510 | G30: =ROUND('EY Data'!AR161,2) -> 3.1 | H30: =ROUND('EY Data'!AQ161,2) -> 3.01 | I30: =ROUND('EY Data'!AP161,2) -> 2.65
B31: England Maximum* | D31: =ROUND('EY Data'!G162,0) -> 3420 | E31: =ROUND('EY Data'!F162,0) -> 15069 | F31: =ROUND('EY Data'!E162,0) -> 4372 | G31: =ROUND('EY Data'!AR162,2) -> 6 | H31: =ROUND('EY Data'!AQ162,2) -> 26.44 | I31: =ROUND('EY Data'!AP162,2) -> 7.67
B32: ='Selector-anon'!G3 ->  | D32: =IF('Selector-anon'!$H3=0,"-",IF(VLOOKUP('Selector-anon'!$H3,'EY Data'!$B$5:$AY$162,metadata!$C$2,0)="","-",ROUND(VLOOKUP('Selector-anon'!$H3,'EY Data'!$B$5:$AY$162,metadata!$C$2,0),0))) -> 2260 | E32: =IF('Selector-anon'!$H3=0,"-",IF(VLOOKUP('Selector-anon'!$H3,'EY Data'!$B$5:$AY$162,metadata!$C$3,0)="","-",ROUND(VLOOKUP('Selector-anon'!$H3,'EY Data'!$B$5:$AY$162,metadata!$C$3,0),0))) -> - | F32: =IF('Selector-anon'!$H3=0,"-",IF(VLOOKUP('Selector-anon'!$H3,'EY Data'!$B$5:$AY$162,metadata!$C$4,0)="","-",ROUND(VLOOKUP('Selector-anon'!$H3,'EY Data'!$B$5:$AY$162,metadata!$C$4,0),0))) -> 2316 | G32: =IF('Selector-anon'!$H3=0,"-",IF(VLOOKUP('Selector-anon'!$H3,'EY Data'!$B$5:$AY$162,metadata!$D$2,0)="","-",ROUND(VLOOKUP('Selector-anon'!$H3,'EY Data'!$B$5:$AY$162,metadata!$D$2,0),2))) -> 3.97 | H32: =IF('Selector-anon'!$H3=0,"-",IF(VLOOKUP('Selector-anon'!$H3,'EY Data'!$B$5:$AY$162,metadata!$D$3,0)="","-",ROUND(VLOOKUP('Selector-anon'!$H3,'EY Data'!$B$5:$AY$162,metadata!$D$3,0),2))) -> - | I32: =IF('Selector-anon'!$H3=0,"-",IF(VLOOKUP('Selector-anon'!$H3,'EY Data'!$B$5:$AY$162,metadata!$D$4,0)="","-",ROUND(VLOOKUP('Selector-anon'!$H3,'EY Data'!$B$5:$AY$162,metadata!$D$4,0),2))) -> 4.06
B33: ='Selector-anon'!G4 ->  | D33: =IF('Selector-anon'!$H4=0,"-",IF(VLOOKUP('Selector-anon'!$H4,'EY Data'!$B$5:$AY$162,metadata!$C$2,0)="","-",ROUND(VLOOKUP('Selector-anon'!$H4,'EY Data'!$B$5:$AY$162,metadata!$C$2,0),0))) -> 1953 | E33: =IF('Selector-anon'!$H4=0,"-",IF(VLOOKUP('Selector-anon'!$H4,'EY Data'!$B$5:$AY$162,metadata!$C$3,0)="","-",ROUND(VLOOKUP('Selector-anon'!$H4,'EY Data'!$B$5:$AY$162,metadata!$C$3,0),0))) -> 4085 | F33: =IF('Selector-anon'!$H4=0,"-",IF(VLOOKUP('Selector-anon'!$H4,'EY Data'!$B$5:$AY$162,metadata!$C$4,0)="","-",ROUND(VLOOKUP('Selector-anon'!$H4,'EY Data'!$B$5:$AY$162,metadata!$C$4,0),0))) -> 2024 | G33: =IF('Selector-anon'!$H4=0,"-",IF(VLOOKUP('Selector-anon'!$H4,'EY Data'!$B$5:$AY$162,metadata!$D$2,0)="","-",ROUND(VLOOKUP('Selector-anon'!$H4,'EY Data'!$B$5:$AY$162,metadata!$D$2,0),2))) -> 3.43 | H33: =IF('Selector-anon'!$H4=0,"-",IF(VLOOKUP('Selector-anon'!$H4,'EY Data'!$B$5:$AY$162,metadata!$D$3,0)="","-",ROUND(VLOOKUP('Selector-anon'!$H4,'EY Data'!$B$5:$AY$162,metadata!$D$3,0),2))) -> 7.17 | I33: =IF('Selector-anon'!$H4=0,"-",IF(VLOOKUP('Selector-anon'!$H4,'EY Data'!$B$5:$AY$162,metadata!$D$4,0)="","-",ROUND(VLOOKUP('Selector-anon'!$H4,'EY Data'!$B$5:$AY$162,metadata!$D$4,0),2))) -> 3.55
B34: ='Selector-anon'!G5 ->  | D34: =IF('Selector-anon'!$H5=0,"-",IF(VLOOKUP('Selector-anon'!$H5,'EY Data'!$B$5:$AY$162,metadata!$C$2,0)="","-",ROUND(VLOOKUP('Selector-anon'!$H5,'EY Data'!$B$5:$AY$162,metadata!$C$2,0),0))) -> 2099 | E34: =IF('Selector-anon'!$H5=0,"-",IF(VLOOKUP('Selector-anon'!$H5,'EY Data'!$B$5:$AY$162,metadata!$C$3,0)="","-",ROUND(VLOOKUP('Selector-anon'!$H5,'EY Data'!$B$5:$AY$162,metadata!$C$3,0),0))) -> 5544 | F34: =IF('Selector-anon'!$H5=0,"-",IF(VLOOKUP('Selector-anon'!$H5,'EY Data'!$B$5:$AY$162,metadata!$C$4,0)="","-",ROUND(VLOOKUP('Selector-anon'!$H5,'EY Data'!$B$5:$AY$162,metadata!$C$4,0),0))) -> 2103 | G34: =IF('Selector-anon'!$H5=0,"-",IF(VLOOKUP('Selector-anon'!$H5,'EY Data'!$B$5:$AY$162,metadata!$D$2,0)="","-",ROUND(VLOOKUP('Selector-anon'!$H5,'EY Data'!$B$5:$AY$162,metadata!$D$2,0),2))) -> 3.68 | H34: =IF('Selector-anon'!$H5=0,"-",IF(VLOOKUP('Selector-anon'!$H5,'EY Data'!$B$5:$AY$162,metadata!$D$3,0)="","-",ROUND(VLOOKUP('Selector-anon'!$H5,'EY Data'!$B$5:$AY$162,metadata!$D$3,0),2))) -> 9.73 | I34: =IF('Selector-anon'!$H5=0,"-",IF(VLOOKUP('Selector-anon'!$H5,'EY Data'!$B$5:$AY$162,metadata!$D$4,0)="","-",ROUND(VLOOKUP('Selector-anon'!$H5,'EY Data'!$B$5:$AY$162,metadata!$D$4,0),2))) -> 3.69
B35: ='Selector-anon'!G6 ->  | D35: =IF('Selector-anon'!$H6=0,"-",IF(VLOOKUP('Selector-anon'!$H6,'EY Data'!$B$5:$AY$162,metadata!$C$2,0)="","-",ROUND(VLOOKUP('Selector-anon'!$H6,'EY Data'!$B$5:$AY$162,metadata!$C$2,0),0))) -> 2152 | E35: =IF('Selector-anon'!$H6=0,"-",IF(VLOOKUP('Selector-anon'!$H6,'EY Data'!$B$5:$AY$162,metadata!$C$3,0)="","-",ROUND(VLOOKUP('Selector-anon'!$H6,'EY Data'!$B$5:$AY$162,metadata!$C$3,0),0))) -> - | F35: =IF('Selector-anon'!$H6=0,"-",IF(VLOOKUP('Selector-anon'!$H6,'EY Data'!$B$5:$AY$162,metadata!$C$4,0)="","-",ROUND(VLOOKUP('Selector-anon'!$H6,'EY Data'!$B$5:$AY$162,metadata!$C$4,0),0))) -> 2115 | G35: =IF('Selector-anon'!$H6=0,"-",IF(VLOOKUP('Selector-anon'!$H6,'EY Data'!$B$5:$AY$162,metadata!$D$2,0)="","-",ROUND(VLOOKUP('Selector-anon'!$H6,'EY Data'!$B$5:$AY$162,metadata!$D$2,0),2))) -> 3.78 | H35: =IF('Selector-anon'!$H6=0,"-",IF(VLOOKUP('Selector-anon'!$H6,'EY Data'!$B$5:$AY$162,metadata!$D$3,0)="","-",ROUND(VLOOKUP('Selector-anon'!$H6,'EY Data'!$B$5:$AY$162,metadata!$D$3,0),2))) -> - | I35: =IF('Selector-anon'!$H6=0,"-",IF(VLOOKUP('Selector-anon'!$H6,'EY Data'!$B$5:$AY$162,metadata!$D$4,0)="","-",ROUND(VLOOKUP('Selector-anon'!$H6,'EY Data'!$B$5:$AY$162,metadata!$D$4,0),2))) -> 3.71
B36: ='Selector-anon'!G7 ->  | D36: =IF('Selector-anon'!$H7=0,"-",IF(VLOOKUP('Selector-anon'!$H7,'EY Data'!$B$5:$AY$162,metadata!$C$2,0)="","-",ROUND(VLOOKUP('Selector-anon'!$H7,'EY Data'!$B$5:$AY$162,metadata!$C$2,0),0))) -> 2248 | E36: =IF('Selector-anon'!$H7=0,"-",IF(VLOOKUP('Selector-anon'!$H7,'EY Data'!$B$5:$AY$162,metadata!$C$3,0)="","-",ROUND(VLOOKUP('Selector-anon'!$H7,'EY Data'!$B$5:$AY$162,metadata!$C$3,0),0))) -> 4473 | F36: =IF('Selector-anon'!$H7=0,"-",IF(VLOOKUP('Selector-anon'!$H7,'EY Data'!$B$5:$AY$162,metadata!$C$4,0)="","-",ROUND(VLOOKUP('Selector-anon'!$H7,'EY Data'!$B$5:$AY$162,metadata!$C$4,0),0))) -> 2230 | G36: =IF('Selector-anon'!$H7=0,"-",IF(VLOOKUP('Selector-anon'!$H7,'EY Data'!$B$5:$AY$162,metadata!$D$2,0)="","-",ROUND(VLOOKUP('Selector-anon'!$H7,'EY Data'!$B$5:$AY$162,metadata!$D$2,0),2))) -> 3.94 | H36: =IF('Selector-anon'!$H7=0,"-",IF(VLOOKUP('Selector-anon'!$H7,'EY Data'!$B$5:$AY$162,metadata!$D$3,0)="","-",ROUND(VLOOKUP('Selector-anon'!$H7,'EY Data'!$B$5:$AY$162,metadata!$D$3,0),2))) -> 7.85 | I36: =IF('Selector-anon'!$H7=0,"-",IF(VLOOKUP('Selector-anon'!$H7,'EY Data'!$B$5:$AY$162,metadata!$D$4,0)="","-",ROUND(VLOOKUP('Selector-anon'!$H7,'EY Data'!$B$5:$AY$162,metadata!$D$4,0),2))) -> 3.91
B37: ='Selector-anon'!G8 ->  | D37: =IF('Selector-anon'!$H8=0,"-",IF(VLOOKUP('Selector-anon'!$H8,'EY Data'!$B$5:$AY$162,metadata!$C$2,0)="","-",ROUND(VLOOKUP('Selector-anon'!$H8,'EY Data'!$B$5:$AY$162,metadata!$C$2,0),0))) -> 2353 | E37: =IF('Selector-anon'!$H8=0,"-",IF(VLOOKUP('Selector-anon'!$H8,'EY Data'!$B$5:$AY$162,metadata!$C$3,0)="","-",ROUND(VLOOKUP('Selector-anon'!$H8,'EY Data'!$B$5:$AY$162,metadata!$C$3,0),0))) -> - | F37: =IF('Selector-anon'!$H8=0,"-",IF(VLOOKUP('Selector-anon'!$H8,'EY Data'!$B$5:$AY$162,metadata!$C$4,0)="","-",ROUND(VLOOKUP('Selector-anon'!$H8,'EY Data'!$B$5:$AY$162,metadata!$C$4,0),0))) -> 2172 | G37: =IF('Selector-anon'!$H8=0,"-",IF(VLOOKUP('Selector-anon'!$H8,'EY Data'!$B$5:$AY$162,metadata!$D$2,0)="","-",ROUND(VLOOKUP('Selector-anon'!$H8,'EY Data'!$B$5:$AY$162,metadata!$D$2,0),2))) -> 4.13 | H37: =IF('Selector-anon'!$H8=0,"-",IF(VLOOKUP('Selector-anon'!$H8,'EY Data'!$B$5:$AY$162,metadata!$D$3,0)="","-",ROUND(VLOOKUP('Selector-anon'!$H8,'EY Data'!$B$5:$AY$162,metadata!$D$3,0),2))) -> - | I37: =IF('Selector-anon'!$H8=0,"-",IF(VLOOKUP('Selector-anon'!$H8,'EY Data'!$B$5:$AY$162,metadata!$D$4,0)="","-",ROUND(VLOOKUP('Selector-anon'!$H8,'EY Data'!$B$5:$AY$162,metadata!$D$4,0),2))) -> 3.81
B38: ='Selector-anon'!G9 ->  | D38: =IF('Selector-anon'!$H9=0,"-",IF(VLOOKUP('Selector-anon'!$H9,'EY Data'!$B$5:$AY$162,metadata!$C$2,0)="","-",ROUND(VLOOKUP('Selector-anon'!$H9,'EY Data'!$B$5:$AY$162,metadata!$C$2,0),0))) -> 2814 | E38: =IF('Selector-anon'!$H9=0,"-",IF(VLOOKUP('Selector-anon'!$H9,'EY Data'!$B$5:$AY$162,metadata!$C$3,0)="","-",ROUND(VLOOKUP('Selector-anon'!$H9,'EY Data'!$B$5:$AY$162,metadata!$C$3,0),0))) -> 4640 | F38: =IF('Selector-anon'!$H9=0,"-",IF(VLOOKUP('Selector-anon'!$H9,'EY Data'!$B$5:$AY$162,metadata!$C$4,0)="","-",ROUND(VLOOKUP('Selector-anon'!$H9,'EY Data'!$B$5:$AY$162,metadata!$C$4,0),0))) -> 2108 | G38: =IF('Selector-anon'!$H9=0,"-",IF(VLOOKUP('Selector-anon'!$H9,'EY Data'!$B$5:$AY$162,metadata!$D$2,0)="","-",ROUND(VLOOKUP('Selector-anon'!$H9,'EY Data'!$B$5:$AY$162,metadata!$D$2,0),2))) -> 4.94 | H38: =IF('Selector-anon'!$H9=0,"-",IF(VLOOKUP('Selector-anon'!$H9,'EY Data'!$B$5:$AY$162,metadata!$D$3,0)="","-",ROUND(VLOOKUP('Selector-anon'!$H9,'EY Data'!$B$5:$AY$162,metadata!$D$3,0),2))) -> 8.14 | I38: =IF('Selector-anon'!$H9=0,"-",IF(VLOOKUP('Selector-anon'!$H9,'EY Data'!$B$5:$AY$162,metadata!$D$4,0)="","-",ROUND(VLOOKUP('Selector-anon'!$H9,'EY Data'!$B$5:$AY$162,metadata!$D$4,0),2))) -> 3.7
B39: ='Selector-anon'!G10 ->  | D39: =IF('Selector-anon'!$H10=0,"-",IF(VLOOKUP('Selector-anon'!$H10,'EY Data'!$B$5:$AY$162,metadata!$C$2,0)="","-",ROUND(VLOOKUP('Selector-anon'!$H10,'EY Data'!$B$5:$AY$162,metadata!$C$2,0),0))) -> 2127 | E39: =IF('Selector-anon'!$H10=0,"-",IF(VLOOKUP('Selector-anon'!$H10,'EY Data'!$B$5:$AY$162,metadata!$C$3,0)="","-",ROUND(VLOOKUP('Selector-anon'!$H10,'EY Data'!$B$5:$AY$162,metadata!$C$3,0),0))) -> 3701 | F39: =IF('Selector-anon'!$H10=0,"-",IF(VLOOKUP('Selector-anon'!$H10,'EY Data'!$B$5:$AY$162,metadata!$C$4,0)="","-",ROUND(VLOOKUP('Selector-anon'!$H10,'EY Data'!$B$5:$AY$162,metadata!$C$4,0),0))) -> 2032 | G39: =IF('Selector-anon'!$H10=0,"-",IF(VLOOKUP('Selector-anon'!$H10,'EY Data'!$B$5:$AY$162,metadata!$D$2,0)="","-",ROUND(VLOOKUP('Selector-anon'!$H10,'EY Data'!$B$5:$AY$162,metadata!$D$2,0),2))) -> 3.73 | H39: =IF('Selector-anon'!$H10=0,"-",IF(VLOOKUP('Selector-anon'!$H10,'EY Data'!$B$5:$AY$162,metadata!$D$3,0)="","-",ROUND(VLOOKUP('Selector-anon'!$H10,'EY Data'!$B$5:$AY$162,metadata!$D$3,0),2))) -> 6.49 | I39: =IF('Selector-anon'!$H10=0,"-",IF(VLOOKUP('Selector-anon'!$H10,'EY Data'!$B$5:$AY$162,metadata!$D$4,0)="","-",ROUND(VLOOKUP('Selector-anon'!$H10,'EY Data'!$B$5:$AY$162,metadata!$D$4,0),2))) -> 3.56
B40: ='Selector-anon'!G11 ->  | D40: =IF('Selector-anon'!$H11=0,"-",IF(VLOOKUP('Selector-anon'!$H11,'EY Data'!$B$5:$AY$162,metadata!$C$2,0)="","-",ROUND(VLOOKUP('Selector-anon'!$H11,'EY Data'!$B$5:$AY$162,metadata!$C$2,0),0))) -> 1975 | E40: =IF('Selector-anon'!$H11=0,"-",IF(VLOOKUP('Selector-anon'!$H11,'EY Data'!$B$5:$AY$162,metadata!$C$3,0)="","-",ROUND(VLOOKUP('Selector-anon'!$H11,'EY Data'!$B$5:$AY$162,metadata!$C$3,0),0))) -> 1715 | F40: =IF('Selector-anon'!$H11=0,"-",IF(VLOOKUP('Selector-anon'!$H11,'EY Data'!$B$5:$AY$162,metadata!$C$4,0)="","-",ROUND(VLOOKUP('Selector-anon'!$H11,'EY Data'!$B$5:$AY$162,metadata!$C$4,0),0))) -> 1978 | G40: =IF('Selector-anon'!$H11=0,"-",IF(VLOOKUP('Selector-anon'!$H11,'EY Data'!$B$5:$AY$162,metadata!$D$2,0)="","-",ROUND(VLOOKUP('Selector-anon'!$H11,'EY Data'!$B$5:$AY$162,metadata!$D$2,0),2))) -> 3.47 | H40: =IF('Selector-anon'!$H11=0,"-",IF(VLOOKUP('Selector-anon'!$H11,'EY Data'!$B$5:$AY$162,metadata!$D$3,0)="","-",ROUND(VLOOKUP('Selector-anon'!$H11,'EY Data'!$B$5:$AY$162,metadata!$D$3,0),2))) -> 3.01 | I40: =IF('Selector-anon'!$H11=0,"-",IF(VLOOKUP('Selector-anon'!$H11,'EY Data'!$B$5:$AY$162,metadata!$D$4,0)="","-",ROUND(VLOOKUP('Selector-anon'!$H11,'EY Data'!$B$5:$AY$162,metadata!$D$4,0),2))) -> 3.47
B41: ='Selector-anon'!G12 ->  | D41: =IF('Selector-anon'!$H12=0,"-",IF(VLOOKUP('Selector-anon'!$H12,'EY Data'!$B$5:$AY$162,metadata!$C$2,0)="","-",ROUND(VLOOKUP('Selector-anon'!$H12,'EY Data'!$B$5:$AY$162,metadata!$C$2,0),0))) -> 2428 | E41: =IF('Selector-anon'!$H12=0,"-",IF(VLOOKUP('Selector-anon'!$H12,'EY Data'!$B$5:$AY$162,metadata!$C$3,0)="","-",ROUND(VLOOKUP('Selector-anon'!$H12,'EY Data'!$B$5:$AY$162,metadata!$C$3,0),0))) -> 5460 | F41: =IF('Selector-anon'!$H12=0,"-",IF(VLOOKUP('Selector-anon'!$H12,'EY Data'!$B$5:$AY$162,metadata!$C$4,0)="","-",ROUND(VLOOKUP('Selector-anon'!$H12,'EY Data'!$B$5:$AY$162,metadata!$C$4,0),0))) -> 2430 | G41: =IF('Selector-anon'!$H12=0,"-",IF(VLOOKUP('Selector-anon'!$H12,'EY Data'!$B$5:$AY$162,metadata!$D$2,0)="","-",ROUND(VLOOKUP('Selector-anon'!$H12,'EY Data'!$B$5:$AY$162,metadata!$D$2,0),2))) -> 4.26 | H41: =IF('Selector-anon'!$H12=0,"-",IF(VLOOKUP('Selector-anon'!$H12,'EY Data'!$B$5:$AY$162,metadata!$D$3,0)="","-",ROUND(VLOOKUP('Selector-anon'!$H12,'EY Data'!$B$5:$AY$162,metadata!$D$3,0),2))) -> 9.58 | I41: =IF('Selector-anon'!$H12=0,"-",IF(VLOOKUP('Selector-anon'!$H12,'EY Data'!$B$5:$AY$162,metadata!$D$4,0)="","-",ROUND(VLOOKUP('Selector-anon'!$H12,'EY Data'!$B$5:$AY$162,metadata!$D$4,0),2))) -> 4.26
B42: ='Selector-anon'!G13 ->  | D42: =IF('Selector-anon'!$H13=0,"-",IF(VLOOKUP('Selector-anon'!$H13,'EY Data'!$B$5:$AY$162,metadata!$C$2,0)="","-",ROUND(VLOOKUP('Selector-anon'!$H13,'EY Data'!$B$5:$AY$162,metadata!$C$2,0),0))) -> 2183 | E42: =IF('Selector-anon'!$H13=0,"-",IF(VLOOKUP('Selector-anon'!$H13,'EY Data'!$B$5:$AY$162,metadata!$C$3,0)="","-",ROUND(VLOOKUP('Selector-anon'!$H13,'EY Data'!$B$5:$AY$162,metadata!$C$3,0),0))) -> 4793 | F42: =IF('Selector-anon'!$H13=0,"-",IF(VLOOKUP('Selector-anon'!$H13,'EY Data'!$B$5:$AY$162,metadata!$C$4,0)="","-",ROUND(VLOOKUP('Selector-anon'!$H13,'EY Data'!$B$5:$AY$162,metadata!$C$4,0),0))) -> 2411 | G42: =IF('Selector-anon'!$H13=0,"-",IF(VLOOKUP('Selector-anon'!$H13,'EY Data'!$B$5:$AY$162,metadata!$D$2,0)="","-",ROUND(VLOOKUP('Selector-anon'!$H13,'EY Data'!$B$5:$AY$162,metadata!$D$2,0),2))) -> 3.83 | H42: =IF('Selector-anon'!$H13=0,"-",IF(VLOOKUP('Selector-anon'!$H13,'EY Data'!$B$5:$AY$162,metadata!$D$3,0)="","-",ROUND(VLOOKUP('Selector-anon'!$H13,'EY Data'!$B$5:$AY$162,metadata!$D$3,0),2))) -> 8.41 | I42: =IF('Selector-anon'!$H13=0,"-",IF(VLOOKUP('Selector-anon'!$H13,'EY Data'!$B$5:$AY$162,metadata!$D$4,0)="","-",ROUND(VLOOKUP('Selector-anon'!$H13,'EY Data'!$B$5:$AY$162,metadata!$D$4,0),2))) -> 4.23
B43: Selection Median | D43: =IF(COUNT(D$32:D$42)>0,MEDIAN(D$32:D$42),"-") -> 2183 | E43: 4556.5 | F43: 2115 | G43: =IF(COUNT(G$32:G$42)>0,MEDIAN(G$32:G$42),"-") -> 3.83 | H43: =IF(COUNT(H$32:H$42)>0,MEDIAN(H$32:H$42),"-") -> 7.995 | I43: =IF(COUNT(I$32:I$42)>0,MEDIAN(I$32:I$42),"-") -> 3.71
B44: Selection Minimum | D44: =IF(COUNT(D$32:D$42)>0,MIN(D$32:D$42),"-") -> 1953 | E44: 1715 | F44: 1978 | G44: =IF(COUNT(G$32:G$42)>0,MIN(G$32:G$42),"-") -> 3.43 | H44: =IF(COUNT(H$32:H$42)>0,MIN(H$32:H$42),"-") -> 3.01 | I44: =IF(COUNT(I$32:I$42)>0,MIN(I$32:I$42),"-") -> 3.47
B45: Selection Maximum | D45: =IF(COUNT(D$32:D$42)>0,MAX(D$32:D$42),"-") -> 2814 | E45: 5544 | F45: 2430 | G45: =IF(COUNT(G$32:G$42)>0,MAX(G$32:G$42),"-") -> 4.94 | H45: =IF(COUNT(H$32:H$42)>0,MAX(H$32:H$42),"-") -> 9.73 | I45: =IF(COUNT(I$32:I$42)>0,MAX(I$32:I$42),"-") -> 4.26
A72: *. | B72: Extreme outliers have been excluded in calculating the max due to the quality of the data submitted. Including these will not indicate the true England max and therefore ineffective for comparison against other LAs.
A73: 1. | B73: Each child is entitled to 15 hours a week 38 weeks a year(i.e.570 hours per year).
A74: 2. | B74: This is the sum of "EYSFF(3yrs old base rate)","Supplements","Other formula" and "Additional funded free hours" as reported in the EY proforma for Nursery schools and Primary nursery places.For PVIs this excludes the additional funded free hours.

Sheet 2 year olds (hidden)
A2: =CONCATENATE('Selector-anon'!B3," - Key Budget Statistics") ->  | K2: Financial Year 2013-14
D4: PVIs | E4: Nursery Schools | F4: Primary Nursery Places | G4: Centrally Retained
B5: ='Selector-anon'!D3 ->  | D5: Private, Voluntary, Independent | E5: Nursery Schools | F5: Primary Nursery Places
A6: Total FTE | B6: Total 2yrs pupils1 | D6: =VLOOKUP('Selector-anon'!$A$3,'EY Data'!$B$5:$AY$162,30,0) ->  | E6: =VLOOKUP('Selector-anon'!$A$3,'EY Data'!$B$5:$AY$162,29,0) ->  | F6: =VLOOKUP('Selector-anon'!$A$3,'EY Data'!$B$5:$AY$162,28,0) -> 
A7: Total budget | B7: Total 2 yrs delegated2 | D7: =VLOOKUP('Selector-anon'!$A$3,'EY Data'!$B$5:$AY$162,metadata!$B$5,0) ->  | E7: =VLOOKUP('Selector-anon'!$A$3,'EY Data'!$B$5:$AY$162,metadata!$B$6,0) ->  | F7: =VLOOKUP('Selector-anon'!$A$3,'EY Data'!$B$5:$AY$162,metadata!$B$7,0) -> 
A8: Total hours
A19: =CONCATENATE("Benchmarking against ",IF(_SN=1,"Statistical Neighbours","Manual Selection")) -> 
C23: Order
D26: Delegated budget allocated to providers per pupil | G26: Delegated budget allocated to providers per hour
B27: Local Authority | D27: Private, Voluntary, Independent | E27: Nursery Schools | F27: Primary Nursery Places | G27: Private, Voluntary, Independent | H27: Nursery Schools | I27: Primary Nursery Places
B28: England | D28: =ROUND('EY Data'!K158,0) -> 2964 | E28: =ROUND('EY Data'!J158,0) -> 4263 | F28: =ROUND('EY Data'!I158,0) -> 2917 | G28: =ROUND('EY Data'!AY158,2) -> 5.2 | H28: =ROUND('EY Data'!AX158,2) -> 7.48 | I28: =ROUND('EY Data'!AW158,2) -> 5.12
B29: England Median | D29: =ROUND('EY Data'!K160,0) -> 2850 | E29: =ROUND('EY Data'!J160,0) -> 2850 | F29: =ROUND('EY Data'!I160,0) -> 2850 | G29: =ROUND('EY Data'!AY160,2) -> 5 | H29: =ROUND('EY Data'!AX160,2) -> 5 | I29: =ROUND('EY Data'!AW160,2) -> 5
B30: England Minimum | D30: =ROUND('EY Data'!K161,0) -> 1676 | E30: =ROUND('EY Data'!J161,0) -> 2195 | F30: =ROUND('EY Data'!I161,0) -> 2195 | G30: =ROUND('EY Data'!AY161,2) -> 2.94 | H30: =ROUND('EY Data'!AX161,2) -> 3.85 | I30: =ROUND('EY Data'!AW161,2) -> 3.85
B31: England Maximum* | D31: =ROUND('EY Data'!K162,0) -> 5518 | E31: =ROUND('EY Data'!J162,0) -> 36376 | F31: =ROUND('EY Data'!I162,0) -> 5518 | G31: =ROUND('EY Data'!AY162,2) -> 9.68 | H31: =ROUND('EY Data'!AX162,2) -> 63.82 | I31: =ROUND('EY Data'!AW162,2) -> 9.68
B32: ='Selector-anon'!O3 ->  | D32: =IF('Selector-anon'!$P3=0,"-",IF(VLOOKUP('Selector-anon'!$P3,'EY Data'!$B$5:$AY$162,metadata!$C$5,0)="","-",ROUND(VLOOKUP('Selector-anon'!$P3,'EY Data'!$B$5:$AY$162,metadata!$C$5,0),0))) -> 2822 | E32: =IF('Selector-anon'!$P3=0,"-",IF(VLOOKUP('Selector-anon'!$P3,'EY Data'!$B$5:$AY$162,metadata!$C$6,0)="","-",ROUND(VLOOKUP('Selector-anon'!$P3,'EY Data'!$B$5:$AY$162,metadata!$C$6,0),0))) -> - | F32: =IF('Selector-anon'!$P3=0,"-",IF(VLOOKUP('Selector-anon'!$P3,'EY Data'!$B$5:$AY$162,metadata!$C$7,0)="","-",ROUND(VLOOKUP('Selector-anon'!$P3,'EY Data'!$B$5:$AY$162,metadata!$C$7,0),0))) -> - | G32: =IF('Selector-anon'!$P3=0,"-",IF(VLOOKUP('Selector-anon'!$P3,'EY Data'!$B$5:$AY$162,metadata!$D$5,0)="","-",ROUND(VLOOKUP('Selector-anon'!$P3,'EY Data'!$B$5:$AY$162,metadata!$D$5,0),2))) -> 4.95 | H32: =IF('Selector-anon'!$P3=0,"-",IF(VLOOKUP('Selector-anon'!$P3,'EY Data'!$B$5:$AY$162,metadata!$D$6,0)="","-",ROUND(VLOOKUP('Selector-anon'!$P3,'EY Data'!$B$5:$AY$162,metadata!$D$6,0),2))) -> - | I32: =IF('Selector-anon'!$P3=0,"-",IF(VLOOKUP('Selector-anon'!$P3,'EY Data'!$B$5:$AY$162,metadata!$D$7,0)="","-",ROUND(VLOOKUP('Selector-anon'!$P3,'EY Data'!$B$5:$AY$162,metadata!$D$7,0),2))) -> -
B33: ='Selector-anon'!O4 ->  | D33: =IF('Selector-anon'!$P4=0,"-",IF(VLOOKUP('Selector-anon'!$P4,'EY Data'!$B$5:$AY$162,metadata!$C$5,0)="","-",ROUND(VLOOKUP('Selector-anon'!$P4,'EY Data'!$B$5:$AY$162,metadata!$C$5,0),0))) -> - | E33: =IF('Selector-anon'!$P4=0,"-",IF(VLOOKUP('Selector-anon'!$P4,'EY Data'!$B$5:$AY$162,metadata!$C$6,0)="","-",ROUND(VLOOKUP('Selector-anon'!$P4,'EY Data'!$B$5:$AY$162,metadata!$C$6,0),0))) -> - | F33: =IF('Selector-anon'!$P4=0,"-",IF(VLOOKUP('Selector-anon'!$P4,'EY Data'!$B$5:$AY$162,metadata!$C$7,0)="","-",ROUND(VLOOKUP('Selector-anon'!$P4,'EY Data'!$B$5:$AY$162,metadata!$C$7,0),0))) -> - | G33: =IF('Selector-anon'!$P4=0,"-",IF(VLOOKUP('Selector-anon'!$P4,'EY Data'!$B$5:$AY$162,metadata!$D$5,0)="","-",ROUND(VLOOKUP('Selector-anon'!$P4,'EY Data'!$B$5:$AY$162,metadata!$D$5,0),2))) -> - | H33: =IF('Selector-anon'!$P4=0,"-",IF(VLOOKUP('Selector-anon'!$P4,'EY Data'!$B$5:$AY$162,metadata!$D$6,0)="","-",ROUND(VLOOKUP('Selector-anon'!$P4,'EY Data'!$B$5:$AY$162,metadata!$D$6,0),2))) -> - | I33: =IF('Selector-anon'!$P4=0,"-",IF(VLOOKUP('Selector-anon'!$P4,'EY Data'!$B$5:$AY$162,metadata!$D$7,0)="","-",ROUND(VLOOKUP('Selector-anon'!$P4,'EY Data'!$B$5:$AY$162,metadata!$D$7,0),2))) -> -
B34: ='Selector-anon'!O5 ->  | D34: =IF('Selector-anon'!$P5=0,"-",IF(VLOOKUP('Selector-anon'!$P5,'EY Data'!$B$5:$AY$162,metadata!$C$5,0)="","-",ROUND(VLOOKUP('Selector-anon'!$P5,'EY Data'!$B$5:$AY$162,metadata!$C$5,0),0))) -> 2765 | E34: =IF('Selector-anon'!$P5=0,"-",IF(VLOOKUP('Selector-anon'!$P5,'EY Data'!$B$5:$AY$162,metadata!$C$6,0)="","-",ROUND(VLOOKUP('Selector-anon'!$P5,'EY Data'!$B$5:$AY$162,metadata!$C$6,0),0))) -> - | F34: =IF('Selector-anon'!$P5=0,"-",IF(VLOOKUP('Selector-anon'!$P5,'EY Data'!$B$5:$AY$162,metadata!$C$7,0)="","-",ROUND(VLOOKUP('Selector-anon'!$P5,'EY Data'!$B$5:$AY$162,metadata!$C$7,0),0))) -> - | G34: =IF('Selector-anon'!$P5=0,"-",IF(VLOOKUP('Selector-anon'!$P5,'EY Data'!$B$5:$AY$162,metadata!$D$5,0)="","-",ROUND(VLOOKUP('Selector-anon'!$P5,'EY Data'!$B$5:$AY$162,metadata!$D$5,0),2))) -> 4.85 | H34: =IF('Selector-anon'!$P5=0,"-",IF(VLOOKUP('Selector-anon'!$P5,'EY Data'!$B$5:$AY$162,metadata!$D$6,0)="","-",ROUND(VLOOKUP('Selector-anon'!$P5,'EY Data'!$B$5:$AY$162,metadata!$D$6,0),2))) -> - | I34: =IF('Selector-anon'!$P5=0,"-",IF(VLOOKUP('Selector-anon'!$P5,'EY Data'!$B$5:$AY$162,metadata!$D$7,0)="","-",ROUND(VLOOKUP('Selector-anon'!$P5,'EY Data'!$B$5:$AY$162,metadata!$D$7,0),2))) -> -
B35: ='Selector-anon'!O6 ->  | D35: =IF('Selector-anon'!$P6=0,"-",IF(VLOOKUP('Selector-anon'!$P6,'EY Data'!$B$5:$AY$162,metadata!$C$5,0)="","-",ROUND(VLOOKUP('Selector-anon'!$P6,'EY Data'!$B$5:$AY$162,metadata!$C$5,0),0))) -> 5518 | E35: =IF('Selector-anon'!$P6=0,"-",IF(VLOOKUP('Selector-anon'!$P6,'EY Data'!$B$5:$AY$162,metadata!$C$6,0)="","-",ROUND(VLOOKUP('Selector-anon'!$P6,'EY Data'!$B$5:$AY$162,metadata!$C$6,0),0))) -> - | F35: =IF('Selector-anon'!$P6=0,"-",IF(VLOOKUP('Selector-anon'!$P6,'EY Data'!$B$5:$AY$162,metadata!$C$7,0)="","-",ROUND(VLOOKUP('Selector-anon'!$P6,'EY Data'!$B$5:$AY$162,metadata!$C$7,0),0))) -> 5518 | G35: =IF('Selector-anon'!$P6=0,"-",IF(VLOOKUP('Selector-anon'!$P6,'EY Data'!$B$5:$AY$162,metadata!$D$5,0)="","-",ROUND(VLOOKUP('Selector-anon'!$P6,'EY Data'!$B$5:$AY$162,metadata!$D$5,0),2))) -> 9.68 | H35: =IF('Selector-anon'!$P6=0,"-",IF(VLOOKUP('Selector-anon'!$P6,'EY Data'!$B$5:$AY$162,metadata!$D$6,0)="","-",ROUND(VLOOKUP('Selector-anon'!$P6,'EY Data'!$B$5:$AY$162,metadata!$D$6,0),2))) -> - | I35: =IF('Selector-anon'!$P6=0,"-",IF(VLOOKUP('Selector-anon'!$P6,'EY Data'!$B$5:$AY$162,metadata!$D$7,0)="","-",ROUND(VLOOKUP('Selector-anon'!$P6,'EY Data'!$B$5:$AY$162,metadata!$D$7,0),2))) -> 9.68
B36: ='Selector-anon'!O7 ->  | D36: =IF('Selector-anon'!$P7=0,"-",IF(VLOOKUP('Selector-anon'!$P7,'EY Data'!$B$5:$AY$162,metadata!$C$5,0)="","-",ROUND(VLOOKUP('Selector-anon'!$P7,'EY Data'!$B$5:$AY$162,metadata!$C$5,0),0))) -> 2764 | E36: =IF('Selector-anon'!$P7=0,"-",IF(VLOOKUP('Selector-anon'!$P7,'EY Data'!$B$5:$AY$162,metadata!$C$6,0)="","-",ROUND(VLOOKUP('Selector-anon'!$P7,'EY Data'!$B$5:$AY$162,metadata!$C$6,0),0))) -> - | F36: =IF('Selector-anon'!$P7=0,"-",IF(VLOOKUP('Selector-anon'!$P7,'EY Data'!$B$5:$AY$162,metadata!$C$7,0)="","-",ROUND(VLOOKUP('Selector-anon'!$P7,'EY Data'!$B$5:$AY$162,metadata!$C$7,0),0))) -> - | G36: =IF('Selector-anon'!$P7=0,"-",IF(VLOOKUP('Selector-anon'!$P7,'EY Data'!$B$5:$AY$162,metadata!$D$5,0)="","-",ROUND(VLOOKUP('Selector-anon'!$P7,'EY Data'!$B$5:$AY$162,metadata!$D$5,0),2))) -> 4.85 | H36: =IF('Selector-anon'!$P7=0,"-",IF(VLOOKUP('Selector-anon'!$P7,'EY Data'!$B$5:$AY$162,metadata!$D$6,0)="","-",ROUND(VLOOKUP('Selector-anon'!$P7,'EY Data'!$B$5:$AY$162,metadata!$D$6,0),2))) -> - | I36: =IF('Selector-anon'!$P7=0,"-",IF(VLOOKUP('Selector-anon'!$P7,'EY Data'!$B$5:$AY$162,metadata!$D$7,0)="","-",ROUND(VLOOKUP('Selector-anon'!$P7,'EY Data'!$B$5:$AY$162,metadata!$D$7,0),2))) -> -
B37: ='Selector-anon'!O8 ->  | D37: =IF('Selector-anon'!$P8=0,"-",IF(VLOOKUP('Selector-anon'!$P8,'EY Data'!$B$5:$AY$162,metadata!$C$5,0)="","-",ROUND(VLOOKUP('Selector-anon'!$P8,'EY Data'!$B$5:$AY$162,metadata!$C$5,0),0))) -> 2765 | E37: =IF('Selector-anon'!$P8=0,"-",IF(VLOOKUP('Selector-anon'!$P8,'EY Data'!$B$5:$AY$162,metadata!$C$6,0)="","-",ROUND(VLOOKUP('Selector-anon'!$P8,'EY Data'!$B$5:$AY$162,metadata!$C$6,0),0))) -> - | F37: =IF('Selector-anon'!$P8=0,"-",IF(VLOOKUP('Selector-anon'!$P8,'EY Data'!$B$5:$AY$162,metadata!$C$7,0)="","-",ROUND(VLOOKUP('Selector-anon'!$P8,'EY Data'!$B$5:$AY$162,metadata!$C$7,0),0))) -> - | G37: =IF('Selector-anon'!$P8=0,"-",IF(VLOOKUP('Selector-anon'!$P8,'EY Data'!$B$5:$AY$162,metadata!$D$5,0)="","-",ROUND(VLOOKUP('Selector-anon'!$P8,'EY Data'!$B$5:$AY$162,metadata!$D$5,0),2))) -> 4.85 | H37: =IF('Selector-anon'!$P8=0,"-",IF(VLOOKUP('Selector-anon'!$P8,'EY Data'!$B$5:$AY$162,metadata!$D$6,0)="","-",ROUND(VLOOKUP('Selector-anon'!$P8,'EY Data'!$B$5:$AY$162,metadata!$D$6,0),2))) -> - | I37: =IF('Selector-anon'!$P8=0,"-",IF(VLOOKUP('Selector-anon'!$P8,'EY Data'!$B$5:$AY$162,metadata!$D$7,0)="","-",ROUND(VLOOKUP('Selector-anon'!$P8,'EY Data'!$B$5:$AY$162,metadata!$D$7,0),2))) -> -
B38: ='Selector-anon'!O9 ->  | D38: =IF('Selector-anon'!$P9=0,"-",IF(VLOOKUP('Selector-anon'!$P9,'EY Data'!$B$5:$AY$162,metadata!$C$5,0)="","-",ROUND(VLOOKUP('Selector-anon'!$P9,'EY Data'!$B$5:$AY$162,metadata!$C$5,0),0))) -> 2759 | E38: =IF('Selector-anon'!$P9=0,"-",IF(VLOOKUP('Selector-anon'!$P9,'EY Data'!$B$5:$AY$162,metadata!$C$6,0)="","-",ROUND(VLOOKUP('Selector-anon'!$P9,'EY Data'!$B$5:$AY$162,metadata!$C$6,0),0))) -> 2759 | F38: =IF('Selector-anon'!$P9=0,"-",IF(VLOOKUP('Selector-anon'!$P9,'EY Data'!$B$5:$AY$162,metadata!$C$7,0)="","-",ROUND(VLOOKUP('Selector-anon'!$P9,'EY Data'!$B$5:$AY$162,metadata!$C$7,0),0))) -> 2759 | G38: =IF('Selector-anon'!$P9=0,"-",IF(VLOOKUP('Selector-anon'!$P9,'EY Data'!$B$5:$AY$162,metadata!$D$5,0)="","-",ROUND(VLOOKUP('Selector-anon'!$P9,'EY Data'!$B$5:$AY$162,metadata!$D$5,0),2))) -> 4.84 | H38: =IF('Selector-anon'!$P9=0,"-",IF(VLOOKUP('Selector-anon'!$P9,'EY Data'!$B$5:$AY$162,metadata!$D$6,0)="","-",ROUND(VLOOKUP('Selector-anon'!$P9,'EY Data'!$B$5:$AY$162,metadata!$D$6,0),2))) -> 4.84 | I38: =IF('Selector-anon'!$P9=0,"-",IF(VLOOKUP('Selector-anon'!$P9,'EY Data'!$B$5:$AY$162,metadata!$D$7,0)="","-",ROUND(VLOOKUP('Selector-anon'!$P9,'EY Data'!$B$5:$AY$162,metadata!$D$7,0),2))) -> 4.84
B39: ='Selector-anon'!O10 ->  | D39: =IF('Selector-anon'!$P10=0,"-",IF(VLOOKUP('Selector-anon'!$P10,'EY Data'!$B$5:$AY$162,metadata!$C$5,0)="","-",ROUND(VLOOKUP('Selector-anon'!$P10,'EY Data'!$B$5:$AY$162,metadata!$C$5,0),0))) -> 2765 | E39: =IF('Selector-anon'!$P10=0,"-",IF(VLOOKUP('Selector-anon'!$P10,'EY Data'!$B$5:$AY$162,metadata!$C$6,0)="","-",ROUND(VLOOKUP('Selector-anon'!$P10,'EY Data'!$B$5:$AY$162,metadata!$C$6,0),0))) -> 2765 | F39: =IF('Selector-anon'!$P10=0,"-",IF(VLOOKUP('Selector-anon'!$P10,'EY Data'!$B$5:$AY$162,metadata!$C$7,0)="","-",ROUND(VLOOKUP('Selector-anon'!$P10,'EY Data'!$B$5:$AY$162,metadata!$C$7,0),0))) -> 2765 | G39: =IF('Selector-anon'!$P10=0,"-",IF(VLOOKUP('Selector-anon'!$P10,'EY Data'!$B$5:$AY$162,metadata!$D$5,0)="","-",ROUND(VLOOKUP('Selector-anon'!$P10,'EY Data'!$B$5:$AY$162,metadata!$D$5,0),2))) -> 4.85 | H39: =IF('Selector-anon'!$P10=0,"-",IF(VLOOKUP('Selector-anon'!$P10,'EY Data'!$B$5:$AY$162,metadata!$D$6,0)="","-",ROUND(VLOOKUP('Selector-anon'!$P10,'EY Data'!$B$5:$AY$162,metadata!$D$6,0),2))) -> 4.85 | I39: =IF('Selector-anon'!$P10=0,"-",IF(VLOOKUP('Selector-anon'!$P10,'EY Data'!$B$5:$AY$162,metadata!$D$7,0)="","-",ROUND(VLOOKUP('Selector-anon'!$P10,'EY Data'!$B$5:$AY$162,metadata!$D$7,0),2))) -> 4.85
B40: ='Selector-anon'!O11 ->  | D40: =IF('Selector-anon'!$P11=0,"-",IF(VLOOKUP('Selector-anon'!$P11,'EY Data'!$B$5:$AY$162,metadata!$C$5,0)="","-",ROUND(VLOOKUP('Selector-anon'!$P11,'EY Data'!$B$5:$AY$162,metadata!$C$5,0),0))) -> 2765 | E40: =IF('Selector-anon'!$P11=0,"-",IF(VLOOKUP('Selector-anon'!$P11,'EY Data'!$B$5:$AY$162,metadata!$C$6,0)="","-",ROUND(VLOOKUP('Selector-anon'!$P11,'EY Data'!$B$5:$AY$162,metadata!$C$6,0),0))) -> - | F40: =IF('Selector-anon'!$P11=0,"-",IF(VLOOKUP('Selector-anon'!$P11,'EY Data'!$B$5:$AY$162,metadata!$C$7,0)="","-",ROUND(VLOOKUP('Selector-anon'!$P11,'EY Data'!$B$5:$AY$162,metadata!$C$7,0),0))) -> - | G40: =IF('Selector-anon'!$P11=0,"-",IF(VLOOKUP('Selector-anon'!$P11,'EY Data'!$B$5:$AY$162,metadata!$D$5,0)="","-",ROUND(VLOOKUP('Selector-anon'!$P11,'EY Data'!$B$5:$AY$162,metadata!$D$5,0),2))) -> 4.85 | H40: =IF('Selector-anon'!$P11=0,"-",IF(VLOOKUP('Selector-anon'!$P11,'EY Data'!$B$5:$AY$162,metadata!$D$6,0)="","-",ROUND(VLOOKUP('Selector-anon'!$P11,'EY Data'!$B$5:$AY$162,metadata!$D$6,0),2))) -> - | I40: =IF('Selector-anon'!$P11=0,"-",IF(VLOOKUP('Selector-anon'!$P11,'EY Data'!$B$5:$AY$162,metadata!$D$7,0)="","-",ROUND(VLOOKUP('Selector-anon'!$P11,'EY Data'!$B$5:$AY$162,metadata!$D$7,0),2))) -> -
B41: ='Selector-anon'!O12 ->  | D41: =IF('Selector-anon'!$P12=0,"-",IF(VLOOKUP('Selector-anon'!$P12,'EY Data'!$B$5:$AY$162,metadata!$C$5,0)="","-",ROUND(VLOOKUP('Selector-anon'!$P12,'EY Data'!$B$5:$AY$162,metadata!$C$5,0),0))) -> - | E41: =IF('Selector-anon'!$P12=0,"-",IF(VLOOKUP('Selector-anon'!$P12,'EY Data'!$B$5:$AY$162,metadata!$C$6,0)="","-",ROUND(VLOOKUP('Selector-anon'!$P12,'EY Data'!$B$5:$AY$162,metadata!$C$6,0),0))) -> - | F41: =IF('Selector-anon'!$P12=0,"-",IF(VLOOKUP('Selector-anon'!$P12,'EY Data'!$B$5:$AY$162,metadata!$C$7,0)="","-",ROUND(VLOOKUP('Selector-anon'!$P12,'EY Data'!$B$5:$AY$162,metadata!$C$7,0),0))) -> - | G41: =IF('Selector-anon'!$P12=0,"-",IF(VLOOKUP('Selector-anon'!$P12,'EY Data'!$B$5:$AY$162,metadata!$D$5,0)="","-",ROUND(VLOOKUP('Selector-anon'!$P12,'EY Data'!$B$5:$AY$162,metadata!$D$5,0),2))) -> - | H41: =IF('Selector-anon'!$P12=0,"-",IF(VLOOKUP('Selector-anon'!$P12,'EY Data'!$B$5:$AY$162,metadata!$D$6,0)="","-",ROUND(VLOOKUP('Selector-anon'!$P12,'EY Data'!$B$5:$AY$162,metadata!$D$6,0),2))) -> - | I41: =IF('Selector-anon'!$P12=0,"-",IF(VLOOKUP('Selector-anon'!$P12,'EY Data'!$B$5:$AY$162,metadata!$D$7,0)="","-",ROUND(VLOOKUP('Selector-anon'!$P12,'EY Data'!$B$5:$AY$162,metadata!$D$7,0),2))) -> -
B42: ='Selector-anon'!O13 ->  | D42: =IF('Selector-anon'!$P13=0,"-",IF(VLOOKUP('Selector-anon'!$P13,'EY Data'!$B$5:$AY$162,metadata!$C$5,0)="","-",ROUND(VLOOKUP('Selector-anon'!$P13,'EY Data'!$B$5:$AY$162,metadata!$C$5,0),0))) -> 2765 | E42: =IF('Selector-anon'!$P13=0,"-",IF(VLOOKUP('Selector-anon'!$P13,'EY Data'!$B$5:$AY$162,metadata!$C$6,0)="","-",ROUND(VLOOKUP('Selector-anon'!$P13,'EY Data'!$B$5:$AY$162,metadata!$C$6,0),0))) -> - | F42: =IF('Selector-anon'!$P13=0,"-",IF(VLOOKUP('Selector-anon'!$P13,'EY Data'!$B$5:$AY$162,metadata!$C$7,0)="","-",ROUND(VLOOKUP('Selector-anon'!$P13,'EY Data'!$B$5:$AY$162,metadata!$C$7,0),0))) -> - | G42: =IF('Selector-anon'!$P13=0,"-",IF(VLOOKUP('Selector-anon'!$P13,'EY Data'!$B$5:$AY$162,metadata!$D$5,0)="","-",ROUND(VLOOKUP('Selector-anon'!$P13,'EY Data'!$B$5:$AY$162,metadata!$D$5,0),2))) -> 4.85 | H42: =IF('Selector-anon'!$P13=0,"-",IF(VLOOKUP('Selector-anon'!$P13,'EY Data'!$B$5:$AY$162,metadata!$D$6,0)="","-",ROUND(VLOOKUP('Selector-anon'!$P13,'EY Data'!$B$5:$AY$162,metadata!$D$6,0),2))) -> - | I42: =IF('Selector-anon'!$P13=0,"-",IF(VLOOKUP('Selector-anon'!$P13,'EY Data'!$B$5:$AY$162,metadata!$D$7,0)="","-",ROUND(VLOOKUP('Selector-anon'!$P13,'EY Data'!$B$5:$AY$162,metadata!$D$7,0),2))) -> -
B43: Selection Median | D43: =IF(COUNT(D$32:D$42)>0,MEDIAN(D$32:D$42),"-") -> 2765 | E43: 2762 | F43: 2765 | G43: =IF(COUNT(G$32:G$42)>0,MEDIAN(G$32:G$42),"-") -> 4.85 | H43: =IF(COUNT(H$32:H$42)>0,MEDIAN(H$32:H$42),"-") -> 4.845 | I43: =IF(COUNT(I$32:I$42)>0,MEDIAN(I$32:I$42),"-") -> 4.85
B44: Selection Minimum | D44: =IF(COUNT(D$32:D$42)>0,MIN(D$32:D$42),"-") -> 2759 | E44: 2759 | F44: 2759 | G44: =IF(COUNT(G$32:G$42)>0,MIN(G$32:G$42),"-") -> 4.84 | H44: =IF(COUNT(H$32:H$42)>0,MIN(H$32:H$42),"-") -> 4.84 | I44: =IF(COUNT(I$32:I$42)>0,MIN(I$32:I$42),"-") -> 4.84
B45: Selection Maximum | D45: =IF(COUNT(D$32:D$42)>0,MAX(D$32:D$42),"-") -> 5518 | E45: 2765 | F45: 5518 | G45: =IF(COUNT(G$32:G$42)>0,MAX(G$32:G$42),"-") -> 9.68 | H45: =IF(COUNT(H$32:H$42)>0,MAX(H$32:H$42),"-") -> 4.85 | I45: =IF(COUNT(I$32:I$42)>0,MAX(I$32:I$42),"-") -> 9.68
A72: *. | B72: Extreme outliers have been excluded in calculating the max due to the quality of the data submitted. Including these will not indicate the true England max and therefore ineffective for comparison against other LAs.
A73: 1. | B73: Each child is entitled to 15 hours a week 38 weeks a year(i.e.570 hours per year).
A74: 2. | B74: This is the sum of "Two year old base rate per hour" and " Two year old Supplements" for all provider types.

Sheet Central spend (hidden)
A2: =CONCATENATE('Selector-anon'!B3," - Key Budget Statistics") ->  | L2: Financial Year 2013-14
D4: PVIs | E4: Nursery Schools | F4: Primary Nursery Places | G4: Centrally Retained
B5: ='Selector-anon'!D3 ->  | D5: Private, Voluntary, Independent | E5: Nursery Schools | F5: Primary Nursery Places
A6: Total 3-4 yrsbudget | B6: Total 3-4 yrs delegated | D6: =VLOOKUP('Selector-anon'!$A$3,'EY Data'!$B$5:$AY$162,metadata!$B$2,0) ->  | E6: =VLOOKUP('Selector-anon'!$A$3,'EY Data'!$B$5:$AY$162,metadata!$B$3,0) ->  | F6: =VLOOKUP('Selector-anon'!$A$3,'EY Data'!$B$5:$AY$162,metadata!$B$4,0) -> 
A7: Total 2 yrs budget | B7: Total 2 yrs delegated | D7: =VLOOKUP('Selector-anon'!$A$3,'EY Data'!$B$5:$AY$162,metadata!$B$5,0) ->  | E7: =VLOOKUP('Selector-anon'!$A$3,'EY Data'!$B$5:$AY$162,metadata!$B$6,0) ->  | F7: =VLOOKUP('Selector-anon'!$A$3,'EY Data'!$B$5:$AY$162,metadata!$B$7,0) -> 
A8: Total hours
A19: =CONCATENATE("Benchmarking against ",IF(_SN=1,"Statistical Neighbours","Manual Selection")) -> 
C23: Order
D26: Total 3-4 yrs delegated | G26: Total 2 yrs delegated | J26: Total 2yos DfE allocated revenue funding | K26: Central Spend1 | L26: % central spend2
B27: Local Authority | D27: Private, Voluntary, Independent | E27: Nursery Schools | F27: Primary Nursery Places | G27: Private, Voluntary, Independent | H27: Nursery Schools | I27: Primary Nursery Places
B28: England | D28: =ROUND('EY Data'!O158,0) -> 1063558810 | E28: =ROUND('EY Data'!N158,0) -> 175989269 | F28: =ROUND('EY Data'!M158,0) -> 695271828 | G28: =ROUND('EY Data'!S158,0) -> 262070757 | H28: =ROUND('EY Data'!R158,0) -> 8978081 | I28: =ROUND('EY Data'!Q158,0) -> 10792771 | J28: =ROUND('2 YO Revenue funding'!$H$159,0) -> 525000000 | K28: =ROUND('EY Data'!AM158,0) -> 386339786 | L28: =ROUND('EY Data'!AN158,3) -> 0.148
B29: England Median | D29: =ROUND('EY Data'!O160,0) -> 4708328 | E29: =ROUND('EY Data'!N160,0) -> 581226 | F29: =ROUND('EY Data'!M160,0) -> 3965867 | G29: =ROUND('EY Data'!S160,0) -> 1461838 | H29: =ROUND('EY Data'!R160,0) -> 0 | I29: =ROUND('EY Data'!Q160,0) -> 0 | J29: =ROUND('2 YO Revenue funding'!$H$160,0) -> 2885803 | K29: =ROUND('EY Data'!AM160,0) -> 1932073 | L29: =ROUND('EY Data'!AN160,3) -> 0.13
B30: England Minimum | D30: =ROUND('EY Data'!O161,0) -> 17998 | E30: =ROUND('EY Data'!N161,0) -> 0 | F30: =ROUND('EY Data'!M161,0) -> 0 | G30: =ROUND('EY Data'!S161,0) -> 0 | H30: =ROUND('EY Data'!R161,0) -> 0 | I30: =ROUND('EY Data'!Q161,0) -> 0 | J30: =ROUND('2 YO Revenue funding'!$H$161,0) -> 4497 | K30: =ROUND('EY Data'!AM161,0) -> 0 | L30: =ROUND('EY Data'!AN161,3) -> 0
B31: England Maximum | D31: =ROUND('EY Data'!O162,0) -> 45263060 | E31: =ROUND('EY Data'!N162,0) -> 12979208 | F31: =ROUND('EY Data'!M162,0) -> 26518571 | G31: =ROUND('EY Data'!S162,0) -> 12124500 | H31: =ROUND('EY Data'!R162,0) -> 2331573 | I31: =ROUND('EY Data'!Q162,0) -> 4613390 | J31: =ROUND('2 YO Revenue funding'!$H$162,0) -> 18093045 | K31: =ROUND('EY Data'!AM162,0) -> 19640234 | L31: =ROUND('EY Data'!AN162,3) -> 0.387
B32: ='Selector-anon'!K3 ->  | D32: =IF('Selector-anon'!$L3=0,"-",IF(VLOOKUP('Selector-anon'!$L3,'EY Data'!$B$5:$AY$162,metadata!$B$2,0)="","-",ROUND(VLOOKUP('Selector-anon'!$L3,'EY Data'!$B$5:$AY$162,metadata!$B$2,0),0))) -> 2903009 | E32: =IF('Selector-anon'!$L3=0,"-",IF(VLOOKUP('Selector-anon'!$L3,'EY Data'!$B$5:$AY$162,metadata!$B$3,0)="","-",ROUND(VLOOKUP('Selector-anon'!$L3,'EY Data'!$B$5:$AY$162,metadata!$B$3,0),0))) -> 0 | F32: =IF('Selector-anon'!$L3=0,"-",IF(VLOOKUP('Selector-anon'!$L3,'EY Data'!$B$5:$AY$162,metadata!$B$4,0)="","-",ROUND(VLOOKUP('Selector-anon'!$L3,'EY Data'!$B$5:$AY$162,metadata!$B$4,0),0))) -> 5101558 | G32: =IF('Selector-anon'!$L3=0,"-",IF(VLOOKUP('Selector-anon'!$L3,'EY Data'!$B$5:$AY$162,metadata!$B$5,0)="","-",ROUND(VLOOKUP('Selector-anon'!$L3,'EY Data'!$B$5:$AY$162,metadata!$B$5,0),0))) -> 2613407 | H32: =IF('Selector-anon'!$L3=0,"-",IF(VLOOKUP('Selector-anon'!$L3,'EY Data'!$B$5:$AY$162,metadata!$B$6,0)="","-",ROUND(VLOOKUP('Selector-anon'!$L3,'EY Data'!$B$5:$AY$162,metadata!$B$6,0),0))) -> 0 | I32: =IF('Selector-anon'!$L3=0,"-",IF(VLOOKUP('Selector-anon'!$L3,'EY Data'!$B$5:$AY$162,metadata!$B$7,0)="","-",ROUND(VLOOKUP('Selector-anon'!$L3,'EY Data'!$B$5:$AY$162,metadata!$B$7,0),0))) -> 0 | J32: =IF('Selector-anon'!$L3=0,"-",ROUND(INDEX('2 YO Revenue funding'!$K$6:$K$157,MATCH('Central spend'!B32,'2 YO Revenue funding'!$J$6:$J$157,0)),0)) ->  | K32: =IF('Selector-anon'!$L3=0,"-",IF(VLOOKUP('Selector-anon'!$L3,'EY Data'!$B$5:$AY$162,metadata!$B$8,0)="","-",ROUND(VLOOKUP('Selector-anon'!$L3,'EY Data'!$B$5:$AY$162,metadata!$B$8,0),0))) -> 2796731 | L32: =IF('Selector-anon'!$L3=0,"-",IF(VLOOKUP('Selector-anon'!$L3,'EY Data'!$B$5:$AY$162,metadata!$B$9,0)="","-",ROUND(VLOOKUP('Selector-anon'!$L3,'EY Data'!$B$5:$AY$162,metadata!$B$9,0),3))) -> 0.208
B33: ='Selector-anon'!K4 ->  | D33: =IF('Selector-anon'!$L4=0,"-",IF(VLOOKUP('Selector-anon'!$L4,'EY Data'!$B$5:$AY$162,metadata!$B$2,0)="","-",ROUND(VLOOKUP('Selector-anon'!$L4,'EY Data'!$B$5:$AY$162,metadata!$B$2,0),0))) -> 3415381 | E33: =IF('Selector-anon'!$L4=0,"-",IF(VLOOKUP('Selector-anon'!$L4,'EY Data'!$B$5:$AY$162,metadata!$B$3,0)="","-",ROUND(VLOOKUP('Selector-anon'!$L4,'EY Data'!$B$5:$AY$162,metadata!$B$3,0),0))) -> 388725 | F33: =IF('Selector-anon'!$L4=0,"-",IF(VLOOKUP('Selector-anon'!$L4,'EY Data'!$B$5:$AY$162,metadata!$B$4,0)="","-",ROUND(VLOOKUP('Selector-anon'!$L4,'EY Data'!$B$5:$AY$162,metadata!$B$4,0),0))) -> 1618043 | G33: =IF('Selector-anon'!$L4=0,"-",IF(VLOOKUP('Selector-anon'!$L4,'EY Data'!$B$5:$AY$162,metadata!$B$5,0)="","-",ROUND(VLOOKUP('Selector-anon'!$L4,'EY Data'!$B$5:$AY$162,metadata!$B$5,0),0))) -> 0 | H33: =IF('Selector-anon'!$L4=0,"-",IF(VLOOKUP('Selector-anon'!$L4,'EY Data'!$B$5:$AY$162,metadata!$B$6,0)="","-",ROUND(VLOOKUP('Selector-anon'!$L4,'EY Data'!$B$5:$AY$162,metadata!$B$6,0),0))) -> 0 | I33: =IF('Selector-anon'!$L4=0,"-",IF(VLOOKUP('Selector-anon'!$L4,'EY Data'!$B$5:$AY$162,metadata!$B$7,0)="","-",ROUND(VLOOKUP('Selector-anon'!$L4,'EY Data'!$B$5:$AY$162,metadata!$B$7,0),0))) -> 0 | J33: =IF('Selector-anon'!$L4=0,"-",ROUND(INDEX('2 YO Revenue funding'!$K$6:$K$157,MATCH('Central spend'!B33,'2 YO Revenue funding'!$J$6:$J$157,0)),0)) ->  | K33: =IF('Selector-anon'!$L4=0,"-",IF(VLOOKUP('Selector-anon'!$L4,'EY Data'!$B$5:$AY$162,metadata!$B$8,0)="","-",ROUND(VLOOKUP('Selector-anon'!$L4,'EY Data'!$B$5:$AY$162,metadata!$B$8,0),0))) -> 0 | L33: =IF('Selector-anon'!$L4=0,"-",IF(VLOOKUP('Selector-anon'!$L4,'EY Data'!$B$5:$AY$162,metadata!$B$9,0)="","-",ROUND(VLOOKUP('Selector-anon'!$L4,'EY Data'!$B$5:$AY$162,metadata!$B$9,0),3))) -> 0
B34: ='Selector-anon'!K5 ->  | D34: =IF('Selector-anon'!$L5=0,"-",IF(VLOOKUP('Selector-anon'!$L5,'EY Data'!$B$5:$AY$162,metadata!$B$2,0)="","-",ROUND(VLOOKUP('Selector-anon'!$L5,'EY Data'!$B$5:$AY$162,metadata!$B$2,0),0))) -> 3081577 | E34: =IF('Selector-anon'!$L5=0,"-",IF(VLOOKUP('Selector-anon'!$L5,'EY Data'!$B$5:$AY$162,metadata!$B$3,0)="","-",ROUND(VLOOKUP('Selector-anon'!$L5,'EY Data'!$B$5:$AY$162,metadata!$B$3,0),0))) -> 1728665 | F34: =IF('Selector-anon'!$L5=0,"-",IF(VLOOKUP('Selector-anon'!$L5,'EY Data'!$B$5:$AY$162,metadata!$B$4,0)="","-",ROUND(VLOOKUP('Selector-anon'!$L5,'EY Data'!$B$5:$AY$162,metadata!$B$4,0),0))) -> 4581745 | G34: =IF('Selector-anon'!$L5=0,"-",IF(VLOOKUP('Selector-anon'!$L5,'EY Data'!$B$5:$AY$162,metadata!$B$5,0)="","-",ROUND(VLOOKUP('Selector-anon'!$L5,'EY Data'!$B$5:$AY$162,metadata!$B$5,0),0))) -> 2527999 | H34: =IF('Selector-anon'!$L5=0,"-",IF(VLOOKUP('Selector-anon'!$L5,'EY Data'!$B$5:$AY$162,metadata!$B$6,0)="","-",ROUND(VLOOKUP('Selector-anon'!$L5,'EY Data'!$B$5:$AY$162,metadata!$B$6,0),0))) -> 0 | I34: =IF('Selector-anon'!$L5=0,"-",IF(VLOOKUP('Selector-anon'!$L5,'EY Data'!$B$5:$AY$162,metadata!$B$7,0)="","-",ROUND(VLOOKUP('Selector-anon'!$L5,'EY Data'!$B$5:$AY$162,metadata!$B$7,0),0))) -> 0 | J34: =IF('Selector-anon'!$L5=0,"-",ROUND(INDEX('2 YO Revenue funding'!$K$6:$K$157,MATCH('Central spend'!B34,'2 YO Revenue funding'!$J$6:$J$157,0)),0)) ->  | K34: =IF('Selector-anon'!$L5=0,"-",IF(VLOOKUP('Selector-anon'!$L5,'EY Data'!$B$5:$AY$162,metadata!$B$8,0)="","-",ROUND(VLOOKUP('Selector-anon'!$L5,'EY Data'!$B$5:$AY$162,metadata!$B$8,0),0))) -> 0 | L34: =IF('Selector-anon'!$L5=0,"-",IF(VLOOKUP('Selector-anon'!$L5,'EY Data'!$B$5:$AY$162,metadata!$B$9,0)="","-",ROUND(VLOOKUP('Selector-anon'!$L5,'EY Data'!$B$5:$AY$162,metadata!$B$9,0),3))) -> 0
B35: ='Selector-anon'!K6 ->  | D35: =IF('Selector-anon'!$L6=0,"-",IF(VLOOKUP('Selector-anon'!$L6,'EY Data'!$B$5:$AY$162,metadata!$B$2,0)="","-",ROUND(VLOOKUP('Selector-anon'!$L6,'EY Data'!$B$5:$AY$162,metadata!$B$2,0),0))) -> 182998 | E35: =IF('Selector-anon'!$L6=0,"-",IF(VLOOKUP('Selector-anon'!$L6,'EY Data'!$B$5:$AY$162,metadata!$B$3,0)="","-",ROUND(VLOOKUP('Selector-anon'!$L6,'EY Data'!$B$5:$AY$162,metadata!$B$3,0),0))) -> 0 | F35: =IF('Selector-anon'!$L6=0,"-",IF(VLOOKUP('Selector-anon'!$L6,'EY Data'!$B$5:$AY$162,metadata!$B$4,0)="","-",ROUND(VLOOKUP('Selector-anon'!$L6,'EY Data'!$B$5:$AY$162,metadata!$B$4,0),0))) -> 3881039 | G35: =IF('Selector-anon'!$L6=0,"-",IF(VLOOKUP('Selector-anon'!$L6,'EY Data'!$B$5:$AY$162,metadata!$B$5,0)="","-",ROUND(VLOOKUP('Selector-anon'!$L6,'EY Data'!$B$5:$AY$162,metadata!$B$5,0),0))) -> 1771208 | H35: =IF('Selector-anon'!$L6=0,"-",IF(VLOOKUP('Selector-anon'!$L6,'EY Data'!$B$5:$AY$162,metadata!$B$6,0)="","-",ROUND(VLOOKUP('Selector-anon'!$L6,'EY Data'!$B$5:$AY$162,metadata!$B$6,0),0))) -> 0 | I35: =IF('Selector-anon'!$L6=0,"-",IF(VLOOKUP('Selector-anon'!$L6,'EY Data'!$B$5:$AY$162,metadata!$B$7,0)="","-",ROUND(VLOOKUP('Selector-anon'!$L6,'EY Data'!$B$5:$AY$162,metadata!$B$7,0),0))) -> 331104 | J35: =IF('Selector-anon'!$L6=0,"-",ROUND(INDEX('2 YO Revenue funding'!$K$6:$K$157,MATCH('Central spend'!B35,'2 YO Revenue funding'!$J$6:$J$157,0)),0)) ->  | K35: =IF('Selector-anon'!$L6=0,"-",IF(VLOOKUP('Selector-anon'!$L6,'EY Data'!$B$5:$AY$162,metadata!$B$8,0)="","-",ROUND(VLOOKUP('Selector-anon'!$L6,'EY Data'!$B$5:$AY$162,metadata!$B$8,0),0))) -> 577185 | L35: =IF('Selector-anon'!$L6=0,"-",IF(VLOOKUP('Selector-anon'!$L6,'EY Data'!$B$5:$AY$162,metadata!$B$9,0)="","-",ROUND(VLOOKUP('Selector-anon'!$L6,'EY Data'!$B$5:$AY$162,metadata!$B$9,0),3))) -> 0.086
B36: ='Selector-anon'!K7 ->  | D36: =IF('Selector-anon'!$L7=0,"-",IF(VLOOKUP('Selector-anon'!$L7,'EY Data'!$B$5:$AY$162,metadata!$B$2,0)="","-",ROUND(VLOOKUP('Selector-anon'!$L7,'EY Data'!$B$5:$AY$162,metadata!$B$2,0),0))) -> 2682739 | E36: =IF('Selector-anon'!$L7=0,"-",IF(VLOOKUP('Selector-anon'!$L7,'EY Data'!$B$5:$AY$162,metadata!$B$3,0)="","-",ROUND(VLOOKUP('Selector-anon'!$L7,'EY Data'!$B$5:$AY$162,metadata!$B$3,0),0))) -> 913109 | F36: =IF('Selector-anon'!$L7=0,"-",IF(VLOOKUP('Selector-anon'!$L7,'EY Data'!$B$5:$AY$162,metadata!$B$4,0)="","-",ROUND(VLOOKUP('Selector-anon'!$L7,'EY Data'!$B$5:$AY$162,metadata!$B$4,0),0))) -> 8419793 | G36: =IF('Selector-anon'!$L7=0,"-",IF(VLOOKUP('Selector-anon'!$L7,'EY Data'!$B$5:$AY$162,metadata!$B$5,0)="","-",ROUND(VLOOKUP('Selector-anon'!$L7,'EY Data'!$B$5:$AY$162,metadata!$B$5,0),0))) -> 3126200 | H36: =IF('Selector-anon'!$L7=0,"-",IF(VLOOKUP('Selector-anon'!$L7,'EY Data'!$B$5:$AY$162,metadata!$B$6,0)="","-",ROUND(VLOOKUP('Selector-anon'!$L7,'EY Data'!$B$5:$AY$162,metadata!$B$6,0),0))) -> 0 | I36: =IF('Selector-anon'!$L7=0,"-",IF(VLOOKUP('Selector-anon'!$L7,'EY Data'!$B$5:$AY$162,metadata!$B$7,0)="","-",ROUND(VLOOKUP('Selector-anon'!$L7,'EY Data'!$B$5:$AY$162,metadata!$B$7,0),0))) -> 0 | J36: =IF('Selector-anon'!$L7=0,"-",ROUND(INDEX('2 YO Revenue funding'!$K$6:$K$157,MATCH('Central spend'!B36,'2 YO Revenue funding'!$J$6:$J$157,0)),0)) ->  | K36: =IF('Selector-anon'!$L7=0,"-",IF(VLOOKUP('Selector-anon'!$L7,'EY Data'!$B$5:$AY$162,metadata!$B$8,0)="","-",ROUND(VLOOKUP('Selector-anon'!$L7,'EY Data'!$B$5:$AY$162,metadata!$B$8,0),0))) -> 0 | L36: =IF('Selector-anon'!$L7=0,"-",IF(VLOOKUP('Selector-anon'!$L7,'EY Data'!$B$5:$AY$162,metadata!$B$9,0)="","-",ROUND(VLOOKUP('Selector-anon'!$L7,'EY Data'!$B$5:$AY$162,metadata!$B$9,0),3))) -> 0
B37: ='Selector-anon'!K8 ->  | D37: =IF('Selector-anon'!$L8=0,"-",IF(VLOOKUP('Selector-anon'!$L8,'EY Data'!$B$5:$AY$162,metadata!$B$2,0)="","-",ROUND(VLOOKUP('Selector-anon'!$L8,'EY Data'!$B$5:$AY$162,metadata!$B$2,0),0))) -> 3205878 | E37: =IF('Selector-anon'!$L8=0,"-",IF(VLOOKUP('Selector-anon'!$L8,'EY Data'!$B$5:$AY$162,metadata!$B$3,0)="","-",ROUND(VLOOKUP('Selector-anon'!$L8,'EY Data'!$B$5:$AY$162,metadata!$B$3,0),0))) -> 0 | F37: =IF('Selector-anon'!$L8=0,"-",IF(VLOOKUP('Selector-anon'!$L8,'EY Data'!$B$5:$AY$162,metadata!$B$4,0)="","-",ROUND(VLOOKUP('Selector-anon'!$L8,'EY Data'!$B$5:$AY$162,metadata!$B$4,0),0))) -> 6827349 | G37: =IF('Selector-anon'!$L8=0,"-",IF(VLOOKUP('Selector-anon'!$L8,'EY Data'!$B$5:$AY$162,metadata!$B$5,0)="","-",ROUND(VLOOKUP('Selector-anon'!$L8,'EY Data'!$B$5:$AY$162,metadata!$B$5,0),0))) -> 2052588 | H37: =IF('Selector-anon'!$L8=0,"-",IF(VLOOKUP('Selector-anon'!$L8,'EY Data'!$B$5:$AY$162,metadata!$B$6,0)="","-",ROUND(VLOOKUP('Selector-anon'!$L8,'EY Data'!$B$5:$AY$162,metadata!$B$6,0),0))) -> 0 | I37: =IF('Selector-anon'!$L8=0,"-",IF(VLOOKUP('Selector-anon'!$L8,'EY Data'!$B$5:$AY$162,metadata!$B$7,0)="","-",ROUND(VLOOKUP('Selector-anon'!$L8,'EY Data'!$B$5:$AY$162,metadata!$B$7,0),0))) -> 0 | J37: =IF('Selector-anon'!$L8=0,"-",ROUND(INDEX('2 YO Revenue funding'!$K$6:$K$157,MATCH('Central spend'!B37,'2 YO Revenue funding'!$J$6:$J$157,0)),0)) ->  | K37: =IF('Selector-anon'!$L8=0,"-",IF(VLOOKUP('Selector-anon'!$L8,'EY Data'!$B$5:$AY$162,metadata!$B$8,0)="","-",ROUND(VLOOKUP('Selector-anon'!$L8,'EY Data'!$B$5:$AY$162,metadata!$B$8,0),0))) -> 1700333 | L37: =IF('Selector-anon'!$L8=0,"-",IF(VLOOKUP('Selector-anon'!$L8,'EY Data'!$B$5:$AY$162,metadata!$B$9,0)="","-",ROUND(VLOOKUP('Selector-anon'!$L8,'EY Data'!$B$5:$AY$162,metadata!$B$9,0),3))) -> 0.123
B38: ='Selector-anon'!K9 ->  | D38: =IF('Selector-anon'!$L9=0,"-",IF(VLOOKUP('Selector-anon'!$L9,'EY Data'!$B$5:$AY$162,metadata!$B$2,0)="","-",ROUND(VLOOKUP('Selector-anon'!$L9,'EY Data'!$B$5:$AY$162,metadata!$B$2,0),0))) -> 1910349 | E38: =IF('Selector-anon'!$L9=0,"-",IF(VLOOKUP('Selector-anon'!$L9,'EY Data'!$B$5:$AY$162,metadata!$B$3,0)="","-",ROUND(VLOOKUP('Selector-anon'!$L9,'EY Data'!$B$5:$AY$162,metadata!$B$3,0),0))) -> 3107949 | F38: =IF('Selector-anon'!$L9=0,"-",IF(VLOOKUP('Selector-anon'!$L9,'EY Data'!$B$5:$AY$162,metadata!$B$4,0)="","-",ROUND(VLOOKUP('Selector-anon'!$L9,'EY Data'!$B$5:$AY$162,metadata!$B$4,0),0))) -> 5453915 | G38: =IF('Selector-anon'!$L9=0,"-",IF(VLOOKUP('Selector-anon'!$L9,'EY Data'!$B$5:$AY$162,metadata!$B$5,0)="","-",ROUND(VLOOKUP('Selector-anon'!$L9,'EY Data'!$B$5:$AY$162,metadata!$B$5,0),0))) -> 2027718 | H38: =IF('Selector-anon'!$L9=0,"-",IF(VLOOKUP('Selector-anon'!$L9,'EY Data'!$B$5:$AY$162,metadata!$B$6,0)="","-",ROUND(VLOOKUP('Selector-anon'!$L9,'EY Data'!$B$5:$AY$162,metadata!$B$6,0),0))) -> 182081 | I38: =IF('Selector-anon'!$L9=0,"-",IF(VLOOKUP('Selector-anon'!$L9,'EY Data'!$B$5:$AY$162,metadata!$B$7,0)="","-",ROUND(VLOOKUP('Selector-anon'!$L9,'EY Data'!$B$5:$AY$162,metadata!$B$7,0),0))) -> 44141 | J38: =IF('Selector-anon'!$L9=0,"-",ROUND(INDEX('2 YO Revenue funding'!$K$6:$K$157,MATCH('Central spend'!B38,'2 YO Revenue funding'!$J$6:$J$157,0)),0)) ->  | K38: =IF('Selector-anon'!$L9=0,"-",IF(VLOOKUP('Selector-anon'!$L9,'EY Data'!$B$5:$AY$162,metadata!$B$8,0)="","-",ROUND(VLOOKUP('Selector-anon'!$L9,'EY Data'!$B$5:$AY$162,metadata!$B$8,0),0))) -> 3559287 | L38: =IF('Selector-anon'!$L9=0,"-",IF(VLOOKUP('Selector-anon'!$L9,'EY Data'!$B$5:$AY$162,metadata!$B$9,0)="","-",ROUND(VLOOKUP('Selector-anon'!$L9,'EY Data'!$B$5:$AY$162,metadata!$B$9,0),3))) -> 0.219
B39: ='Selector-anon'!K10 ->  | D39: =IF('Selector-anon'!$L10=0,"-",IF(VLOOKUP('Selector-anon'!$L10,'EY Data'!$B$5:$AY$162,metadata!$B$2,0)="","-",ROUND(VLOOKUP('Selector-anon'!$L10,'EY Data'!$B$5:$AY$162,metadata!$B$2,0),0))) -> 4840618 | E39: =IF('Selector-anon'!$L10=0,"-",IF(VLOOKUP('Selector-anon'!$L10,'EY Data'!$B$5:$AY$162,metadata!$B$3,0)="","-",ROUND(VLOOKUP('Selector-anon'!$L10,'EY Data'!$B$5:$AY$162,metadata!$B$3,0),0))) -> 3747776 | F39: =IF('Selector-anon'!$L10=0,"-",IF(VLOOKUP('Selector-anon'!$L10,'EY Data'!$B$5:$AY$162,metadata!$B$4,0)="","-",ROUND(VLOOKUP('Selector-anon'!$L10,'EY Data'!$B$5:$AY$162,metadata!$B$4,0),0))) -> 7541654 | G39: =IF('Selector-anon'!$L10=0,"-",IF(VLOOKUP('Selector-anon'!$L10,'EY Data'!$B$5:$AY$162,metadata!$B$5,0)="","-",ROUND(VLOOKUP('Selector-anon'!$L10,'EY Data'!$B$5:$AY$162,metadata!$B$5,0),0))) -> 2761008 | H39: =IF('Selector-anon'!$L10=0,"-",IF(VLOOKUP('Selector-anon'!$L10,'EY Data'!$B$5:$AY$162,metadata!$B$6,0)="","-",ROUND(VLOOKUP('Selector-anon'!$L10,'EY Data'!$B$5:$AY$162,metadata!$B$6,0),0))) -> 345126 | I39: =IF('Selector-anon'!$L10=0,"-",IF(VLOOKUP('Selector-anon'!$L10,'EY Data'!$B$5:$AY$162,metadata!$B$7,0)="","-",ROUND(VLOOKUP('Selector-anon'!$L10,'EY Data'!$B$5:$AY$162,metadata!$B$7,0),0))) -> 345126 | J39: =IF('Selector-anon'!$L10=0,"-",ROUND(INDEX('2 YO Revenue funding'!$K$6:$K$157,MATCH('Central spend'!B39,'2 YO Revenue funding'!$J$6:$J$157,0)),0)) ->  | K39: =IF('Selector-anon'!$L10=0,"-",IF(VLOOKUP('Selector-anon'!$L10,'EY Data'!$B$5:$AY$162,metadata!$B$8,0)="","-",ROUND(VLOOKUP('Selector-anon'!$L10,'EY Data'!$B$5:$AY$162,metadata!$B$8,0),0))) -> 1862768 | L39: =IF('Selector-anon'!$L10=0,"-",IF(VLOOKUP('Selector-anon'!$L10,'EY Data'!$B$5:$AY$162,metadata!$B$9,0)="","-",ROUND(VLOOKUP('Selector-anon'!$L10,'EY Data'!$B$5:$AY$162,metadata!$B$9,0),3))) -> 0.087
B40: ='Selector-anon'!K11 ->  | D40: =IF('Selector-anon'!$L11=0,"-",IF(VLOOKUP('Selector-anon'!$L11,'EY Data'!$B$5:$AY$162,metadata!$B$2,0)="","-",ROUND(VLOOKUP('Selector-anon'!$L11,'EY Data'!$B$5:$AY$162,metadata!$B$2,0),0))) -> 2462535 | E40: =IF('Selector-anon'!$L11=0,"-",IF(VLOOKUP('Selector-anon'!$L11,'EY Data'!$B$5:$AY$162,metadata!$B$3,0)="","-",ROUND(VLOOKUP('Selector-anon'!$L11,'EY Data'!$B$5:$AY$162,metadata!$B$3,0),0))) -> 2216719 | F40: =IF('Selector-anon'!$L11=0,"-",IF(VLOOKUP('Selector-anon'!$L11,'EY Data'!$B$5:$AY$162,metadata!$B$4,0)="","-",ROUND(VLOOKUP('Selector-anon'!$L11,'EY Data'!$B$5:$AY$162,metadata!$B$4,0),0))) -> 157555 | G40: =IF('Selector-anon'!$L11=0,"-",IF(VLOOKUP('Selector-anon'!$L11,'EY Data'!$B$5:$AY$162,metadata!$B$5,0)="","-",ROUND(VLOOKUP('Selector-anon'!$L11,'EY Data'!$B$5:$AY$162,metadata!$B$5,0),0))) -> 1003950 | H40: =IF('Selector-anon'!$L11=0,"-",IF(VLOOKUP('Selector-anon'!$L11,'EY Data'!$B$5:$AY$162,metadata!$B$6,0)="","-",ROUND(VLOOKUP('Selector-anon'!$L11,'EY Data'!$B$5:$AY$162,metadata!$B$6,0),0))) -> 0 | I40: =IF('Selector-anon'!$L11=0,"-",IF(VLOOKUP('Selector-anon'!$L11,'EY Data'!$B$5:$AY$162,metadata!$B$7,0)="","-",ROUND(VLOOKUP('Selector-anon'!$L11,'EY Data'!$B$5:$AY$162,metadata!$B$7,0),0))) -> 0 | J40: =IF('Selector-anon'!$L11=0,"-",ROUND(INDEX('2 YO Revenue funding'!$K$6:$K$157,MATCH('Central spend'!B40,'2 YO Revenue funding'!$J$6:$J$157,0)),0)) ->  | K40: =IF('Selector-anon'!$L11=0,"-",IF(VLOOKUP('Selector-anon'!$L11,'EY Data'!$B$5:$AY$162,metadata!$B$8,0)="","-",ROUND(VLOOKUP('Selector-anon'!$L11,'EY Data'!$B$5:$AY$162,metadata!$B$8,0),0))) -> 2693757 | L40: =IF('Selector-anon'!$L11=0,"-",IF(VLOOKUP('Selector-anon'!$L11,'EY Data'!$B$5:$AY$162,metadata!$B$9,0)="","-",ROUND(VLOOKUP('Selector-anon'!$L11,'EY Data'!$B$5:$AY$162,metadata!$B$9,0),3))) -> 0.316
B41: ='Selector-anon'!K12 ->  | D41: =IF('Selector-anon'!$L12=0,"-",IF(VLOOKUP('Selector-anon'!$L12,'EY Data'!$B$5:$AY$162,metadata!$B$2,0)="","-",ROUND(VLOOKUP('Selector-anon'!$L12,'EY Data'!$B$5:$AY$162,metadata!$B$2,0),0))) -> 2859976 | E41: =IF('Selector-anon'!$L12=0,"-",IF(VLOOKUP('Selector-anon'!$L12,'EY Data'!$B$5:$AY$162,metadata!$B$3,0)="","-",ROUND(VLOOKUP('Selector-anon'!$L12,'EY Data'!$B$5:$AY$162,metadata!$B$3,0),0))) -> 1801834 | F41: =IF('Selector-anon'!$L12=0,"-",IF(VLOOKUP('Selector-anon'!$L12,'EY Data'!$B$5:$AY$162,metadata!$B$4,0)="","-",ROUND(VLOOKUP('Selector-anon'!$L12,'EY Data'!$B$5:$AY$162,metadata!$B$4,0),0))) -> 6515555 | G41: =IF('Selector-anon'!$L12=0,"-",IF(VLOOKUP('Selector-anon'!$L12,'EY Data'!$B$5:$AY$162,metadata!$B$5,0)="","-",ROUND(VLOOKUP('Selector-anon'!$L12,'EY Data'!$B$5:$AY$162,metadata!$B$5,0),0))) -> 0 | H41: =IF('Selector-anon'!$L12=0,"-",IF(VLOOKUP('Selector-anon'!$L12,'EY Data'!$B$5:$AY$162,metadata!$B$6,0)="","-",ROUND(VLOOKUP('Selector-anon'!$L12,'EY Data'!$B$5:$AY$162,metadata!$B$6,0),0))) -> 0 | I41: =IF('Selector-anon'!$L12=0,"-",IF(VLOOKUP('Selector-anon'!$L12,'EY Data'!$B$5:$AY$162,metadata!$B$7,0)="","-",ROUND(VLOOKUP('Selector-anon'!$L12,'EY Data'!$B$5:$AY$162,metadata!$B$7,0),0))) -> 0 | J41: =IF('Selector-anon'!$L12=0,"-",ROUND(INDEX('2 YO Revenue funding'!$K$6:$K$157,MATCH('Central spend'!B41,'2 YO Revenue funding'!$J$6:$J$157,0)),0)) ->  | K41: =IF('Selector-anon'!$L12=0,"-",IF(VLOOKUP('Selector-anon'!$L12,'EY Data'!$B$5:$AY$162,metadata!$B$8,0)="","-",ROUND(VLOOKUP('Selector-anon'!$L12,'EY Data'!$B$5:$AY$162,metadata!$B$8,0),0))) -> 5468607 | L41: =IF('Selector-anon'!$L12=0,"-",IF(VLOOKUP('Selector-anon'!$L12,'EY Data'!$B$5:$AY$162,metadata!$B$9,0)="","-",ROUND(VLOOKUP('Selector-anon'!$L12,'EY Data'!$B$5:$AY$162,metadata!$B$9,0),3))) -> 0.329
B42: ='Selector-anon'!K13 ->  | D42: =IF('Selector-anon'!$L13=0,"-",IF(VLOOKUP('Selector-anon'!$L13,'EY Data'!$B$5:$AY$162,metadata!$B$2,0)="","-",ROUND(VLOOKUP('Selector-anon'!$L13,'EY Data'!$B$5:$AY$162,metadata!$B$2,0),0))) -> 2822525 | E42: =IF('Selector-anon'!$L13=0,"-",IF(VLOOKUP('Selector-anon'!$L13,'EY Data'!$B$5:$AY$162,metadata!$B$3,0)="","-",ROUND(VLOOKUP('Selector-anon'!$L13,'EY Data'!$B$5:$AY$162,metadata!$B$3,0),0))) -> 295553 | F42: =IF('Selector-anon'!$L13=0,"-",IF(VLOOKUP('Selector-anon'!$L13,'EY Data'!$B$5:$AY$162,metadata!$B$4,0)="","-",ROUND(VLOOKUP('Selector-anon'!$L13,'EY Data'!$B$5:$AY$162,metadata!$B$4,0),0))) -> 3877891 | G42: =IF('Selector-anon'!$L13=0,"-",IF(VLOOKUP('Selector-anon'!$L13,'EY Data'!$B$5:$AY$162,metadata!$B$5,0)="","-",ROUND(VLOOKUP('Selector-anon'!$L13,'EY Data'!$B$5:$AY$162,metadata!$B$5,0),0))) -> 1960559 | H42: =IF('Selector-anon'!$L13=0,"-",IF(VLOOKUP('Selector-anon'!$L13,'EY Data'!$B$5:$AY$162,metadata!$B$6,0)="","-",ROUND(VLOOKUP('Selector-anon'!$L13,'EY Data'!$B$5:$AY$162,metadata!$B$6,0),0))) -> 0 | I42: =IF('Selector-anon'!$L13=0,"-",IF(VLOOKUP('Selector-anon'!$L13,'EY Data'!$B$5:$AY$162,metadata!$B$7,0)="","-",ROUND(VLOOKUP('Selector-anon'!$L13,'EY Data'!$B$5:$AY$162,metadata!$B$7,0),0))) -> 0 | J42: =IF('Selector-anon'!$L13=0,"-",ROUND(INDEX('2 YO Revenue funding'!$K$6:$K$157,MATCH('Central spend'!B42,'2 YO Revenue funding'!$J$6:$J$157,0)),0)) ->  | K42: =IF('Selector-anon'!$L13=0,"-",IF(VLOOKUP('Selector-anon'!$L13,'EY Data'!$B$5:$AY$162,metadata!$B$8,0)="","-",ROUND(VLOOKUP('Selector-anon'!$L13,'EY Data'!$B$5:$AY$162,metadata!$B$8,0),0))) -> 1960557 | L42: =IF('Selector-anon'!$L13=0,"-",IF(VLOOKUP('Selector-anon'!$L13,'EY Data'!$B$5:$AY$162,metadata!$B$9,0)="","-",ROUND(VLOOKUP('Selector-anon'!$L13,'EY Data'!$B$5:$AY$162,metadata!$B$9,0),3))) -> 0.18
B43: Selection Median | D43: =IF(COUNT(D$32:D$42)>0,MEDIAN(D$32:D$42),"-") -> 2859976 | E43: 913109 | F43: 5101558 | G43: =IF(COUNT(G$32:G$42)>0,MEDIAN(G$32:G$42),"-") -> 2027718 | H43: =IF(COUNT(H$32:H$42)>0,MEDIAN(H$32:H$42),"-") -> 0 | I43: =IF(COUNT(I$32:I$42)>0,MEDIAN(I$32:I$42),"-") -> 0 | J43: =IF(COUNT(J$32:J$42)>0,MEDIAN(J$32:J$42),"-") -> - | K43: =IF(COUNT(K$32:K$42)>0,MEDIAN(K$32:K$42),"-") -> 1862768 | L43: 0.123
B44: Selection Minimum | D44: =IF(COUNT(D$32:D$42)>0,MIN(D$32:D$42),"-") -> 182998 | E44: 0 | F44: 157555 | G44: =IF(COUNT(G$32:G$42)>0,MIN(G$32:G$42),"-") -> 0 | H44: =IF(COUNT(H$32:H$42)>0,MIN(H$32:H$42),"-") -> 0 | I44: =IF(COUNT(I$32:I$42)>0,MIN(I$32:I$42),"-") -> 0 | J44: =IF(COUNT(J$32:J$42)>0,MIN(J$32:J$42),"-") -> - | K44: =IF(COUNT(K$32:K$42)>0,MIN(K$32:K$42),"-") -> 0 | L44: 0
B45: Selection Maximum | D45: =IF(COUNT(D$32:D$42)>0,MAX(D$32:D$42),"-") -> 4840618 | E45: 3747776 | F45: 8419793 | G45: =IF(COUNT(G$32:G$42)>0,MAX(G$32:G$42),"-") -> 3126200 | H45: =IF(COUNT(H$32:H$42)>0,MAX(H$32:H$42),"-") -> 345126 | I45: =IF(COUNT(I$32:I$42)>0,MAX(I$32:I$42),"-") -> 345126 | J45: =IF(COUNT(J$32:J$42)>0,MAX(J$32:J$42),"-") -> - | K45: =IF(COUNT(K$32:K$42)>0,MAX(K$32:K$42),"-") -> 5468607 | L45: 0.329
A72: 1. | B72: This is the sum of "7.Early years contingency funding" ,"8.Early years centrally retained spending" and "4.Additional funded free hours" for PVIs as reported in the EY proforma.
A73: 2. | B73: This Central Spend divided by the sum of Central spend and total delegated for 2 years old pupils and 3-4 year old pupils .

Sheet EY Data (hidden)
B2: 1 | C2: 2 | D2: 3 | E2: 4 | F2: 5 | G2: 6 | H2: 7 | I2: 8 | J2: 9 | K2: 10 | L2: 11 | M2: 12 | N2: 13 | O2: 14 | P2: 15 | Q2: 16 | R2: 17 | S2: 18 | T2: 19 | U2: 20 | V2: 21 | W2: 22 | X2: 23 | Y2: 24 | Z2: 25 | AA2: 26 | AB2: 27 | AC2: 28 | AD2: 29 | AE2: 30 | AF2: 31 | AG2: 32 | AH2: 33 | AI2: 34 | AJ2: 35 | AK2: 36 | AL2: 37 | AM2: 38 | AN2: 39 | AO2: 40 | AP2: 41 | AQ2: 42 | AR2: 43 | AS2: 44 | AT2: 45 | AU2: 46 | AV2: 47 | AW2: 48 | AX2: 49 | AY2: 50
E3: 3-4 yrs old delegated budget per FE (15 hours) | I3: 2 yrs old delegated budget per FE (15 hours) | M3: 3-4 yrs old total delegated budget | Q3: 2 yrs old total delegated budget | U3: 3-4 yrs old total Pupils | Y3: 3-4 yrs old total hours | AC3: 2 yrs old total Pupils | AG3: 2 yrs old total hours | AK3: Central spend | AP3: 3-4 yrs old budget per hour | AT3: Central spent and Total budget/H | AW3: 2 yrs old budget per hour
B4: LA | C4: LA name | E4: Nursery Places | F4: Nursery Schools | G4: PVI | I4: Nursery Places | J4: Nursery Schools | K4: PVI | M4: Nursery Places | N4: Nursery Schools | O4: PVI | Q4: Nursery Places | R4: Nursery Schools | S4: PVI | U4: Nursery Places | V4: Nursery Schools | W4: PVI | Y4: Nursery Places | Z4: Nursery Schools | AA4: PVI | AC4: Nursery Places | AD4: Nursery Schools | AE4: PVI | AG4: Nursery Places | AH4: Nursery Schools | AI4: PVI | AK4: Total delegated for 3-4 yrs old | AL4: Total delegated for 2 yrs old | AM4: Central spend | AN4: percentage of central spend | AP4: BUDGET/HOUR - Nursey Places | AQ4: BUDGET/HOUR - Nursery Schools | AR4: BUDGET/HOUR - PVI | AT4: BUDGET/HOUR - Centrally Retained | AU4: BUDGET/HOUR - TOTAL | AW4: BUDGET/HOUR - Nursey Places | AX4: BUDGET/HOUR - Nursery Schools | AY4: BUDGET/HOUR - PVI
B5: 301 | C5: Barking and Dagenham | E5: 2137.29085 | G5: 2331.870015 | K5: 2964 | M5: 6540110 | N5: 0 | O5: 3811441.54 | Q5: 0 | R5: 0 | S5: 3661190 | U5: 3060 | V5: 0 | W5: 1634.5 | Y5: 1744200 | Z5: 0 | AA5: 931665 | AC5: 0 | AD5: 0 | AE5: 1235.219298 | AG5: 0 | AH5: 0 | AI5: 704075 | AK5: 10351551.54 | AL5: 3661190 | AM5: 2272558.46 | AN5: 0.1395466132 | AP5: 3.74963307 | AR5: 4.091000027 | AT5: 0.6723665095 | AU5: 4.818221625 | AY5: 5.2
B6: 302 | C6: Barnet | E6: 2434.716384 | F6: 4343.453185 | G6: 2459.579893 | K6: 3420 | M6: 6929202.83 | N6: 2154352.78 | O6: 6130679.8 | Q6: 0 | R6: 0 | S6: 2590200 | U6: 2846 | V6: 496 | W6: 2492.57193 | Y6: 1622220 | Z6: 282720 | AA6: 1420766 | AC6: 0 | AD6: 0 | AE6: 757.3684211 | AG6: 0 | AH6: 0 | AI6: 431700 | AK6: 15214235.41 | AL6: 2590200 | AM6: 0 | AN6: 0 | AP6: 4.271432253 | AQ6: 7.620093308 | AR6: 4.315052444 | AT6: 0 | AU6: 4.738491238 | AY6: 6
B7: 370 | C7: Barnsley | E7: 2315.840799 | G7: 2260.067326 | K7: 2821.5 | M7: 5101557.57 | N7: 0 | O7: 2903008.9 | Q7: 0 | R7: 0 | S7: 2613406.95 | U7: 2202.896491 | V7: 0 | W7: 1284.478947 | Y7: 1255651 | Z7: 0 | AA7: 732153 | AC7: 0 | AD7: 0 | AE7: 926.2473684 | AG7: 0 | AH7: 0 | AI7: 527961 | AK7: 8004566.47 | AL7: 2613406.95 | AM7: 2796731 | AN7: 0.2084824915 | AP7: 4.062878594 | AR7: 3.965030397 | AT7: 1.111682132 | AU7: 5.332256558 | AY7: 4.95
B8: 800 | C8: Bath and North East Somerset | E8: 2242.607453 | G8: 2102.383402 | I8: 2850 | K8: 2850 | M8: 728273 | N8: 0 | O8: 4247393.55 | Q8: 85500 | R8: 0 | S8: 900600 | U8: 324.7438596 | V8: 0 | W8: 2020.275439 | Y8: 185104 | Z8: 0 | AA8: 1151557 | AC8: 30 | AD8: 0 | AE8: 316 | AG8: 17100 | AH8: 0 | AI8: 180120 | AK8: 4975666.55 | AL8: 986100 | AM8: 114754 | AN8: 0.01888482052 | AP8: 3.934399041 | AR8: 3.688391934 | AT8: 0.07481284402 | AU8: 3.961533228 | AW8: 5 | AY8: 5
B9: 822 | C9: Bedford | E9: 2097.763515 | F9: 2657.147799 | G9: 2265.390574 | I9: 2867.1 | J9: 2867.1 | K9: 2867.100046 | M9: 1041988.58 | N9: 867148.53 | O9: 4495923.94 | Q9: 9808.5 | R9: 83764.59 | S9: 313773.92 | U9: 496.7140351 | V9: 326.345614 | W9: 1984.613158 | Y9: 283127 | Z9: 186017 | AA9: 1131229.5 | AC9: 3.421052632 | AD9: 29.21578947 | AE9: 109.4394737 | AG9: 1950 | AH9: 16653 | AI9: 62380.5 | AK9: 6405061.05 | AL9: 407347.01 | AM9: 1735720 | AN9: 0.2030526436 | AP9: 3.680286868 | AQ9: 4.661662805 | AR9: 3.974369427 | AT9: 1.032332812 | AU9: 5.084064871 | AW9: 5.03 | AX9: 5.03 | AY9: 5.03000008
B10: 303 | C10: Bexley | E10: 2188.636865 | G10: 2200.168138 | K10: 3010.078626 | M10: 3260116.68 | N10: 0 | O10: 4493963.08 | Q10: 0 | R10: 0 | S10: 1577281.2 | U10: 1489.564912 | V10: 0 | W10: 2042.554386 | Y10: 849052 | Z10: 0 | AA10: 1164256 | AC10: 0 | AD10: 0 | AE10: 524 | AG10: 0 | AH10: 0 | AI10: 298680 | AK10: 7754079.76 | AL10: 1577281.2 | AM10: 1121000 | AN10: 0.1072484967 | AP10: 3.839713798 | AR10: 3.859944102 | AT10: 0.4848641083 | AU10: 4.520940835 | AY10: 5.280839695
B11: 330 | C11: Birmingham | E11: 3233.575602 | F11: 5564.128469 | G11: 2162.373455 | M11: 26518570.53 | N11: 12979208.2 | O11: 19137289.6 | Q11: 0 | R11: 0 | S11: 0 | U11: 8201.005263 | V11: 2332.657895 | W11: 8850.131579 | Y11: 4674573 | Z11: 1329615 | AA11: 5044575 | AC11: 0 | AD11: 0 | AE11: 0 | AG11: 0 | AH11: 0 | AI11: 0 | AK11: 58635068.33 | AL11: 0 | AM11: 19640234 | AN11: 0.2509122727 | AP11: 5.672939652 | AQ11: 9.761628893 | AR11: 3.79363764 | AT11: 1.777595736 | AU11: 7.08453085
B12: 889 | C12: Blackburn with Darwen | E12: 2293.313927 | F12: 2938.082412 | G12: 2130.296567 | M12: 2673118.9 | N12: 978855.66 | O12: 2601641.5 | Q12: 0 | R12: 0 | S12: 0 | U12: 1165.614035 | V12: 333.1614035 | W12: 1221.257895 | Y12: 664400 | Z12: 189902 | AA12: 696117 | AC12: 0 | AD12: 0 | AE12: 0 | AG12: 0 | AH12: 0 | AI12: 0 | AK12: 6253616.06 | AL12: 0 | AM12: 2969385 | AN12: 0.3219543162 | AP12: 4.023357766 | AQ12: 5.154530547 | AR12: 3.737362397 | AT12: 1.915214532 | AU12: 5.948715192
B13: 890 | C13: Blackpool | E13: 2126.1 | G13: 2017.459075 | J13: 2764.5 | K13: 2764.5 | M13: 1367369.51 | N13: 41981.67 | O13: 2940276.71 | Q13: 0 | R13: 546231.25 | S13: 1235702.4 | U13: 643.1350877 | V13: 0 | W13: 1457.415789 | Y13: 366587 | Z13: 0 | AA13: 830727 | AC13: 0 | AD13: 197.5877193 | AE13: 446.9894737 | AG13: 0 | AH13: 112625 | AI13: 254784 | AK13: 4349627.89 | AL13: 1781933.65 | AM13: 1132211 | AN13: 0.1558709326 | AP13: 3.73 | AR13: 3.539401885 | AT13: 0.7235855803 | AU13: 4.642209861 | AX13: 4.85 | AY13: 4.85
B14: 350 | C14: Bolton | E14: 2377.593751 | F14: 3169.933314 | G14: 2349.381625 | K14: 2764.5 | M14: 5027511 | N14: 1102670.98 | O14: 5049137 | Q14: 0 | R14: 0 | S14: 2412773.15 | U14: 2114.537439 | V14: 347.8530526 | W14: 2149.134456 | Y14: 1205286.34 | Z14: 198276.24 | AA14: 1225006.64 | AC14: 0 | AD14: 0 | AE14: 872.7701754 | AG14: 0 | AH14: 0 | AI14: 497479 | AK14: 11179318.98 | AL14: 2412773.15 | AM14: 5174808 | AN14: 0.2757412233 | AP14: 4.171217107 | AQ14: 5.561286516 | AR14: 4.121722148 | AT14: 1.655383294 | AU14: 6.003394321 | AY14: 4.85
B15: 837 | C15: Bournemouth | E15: 2391.712611 | G15: 2299.50143 | K15: 2764.500006 | M15: 512703.46 | N15: 0 | O15: 5308323.53 | Q15: 0 | R15: 0 | S15: 1285673.02 | U15: 214.3666667 | V15: 0 | W15: 2308.467158 | Y15: 122189 | Z15: 0 | AA15: 1315826.28 | AC15: 0 | AD15: 0 | AE15: 465.0652982 | AG15: 0 | AH15: 0 | AI15: 265087.22 | AK15: 5821026.99 | AL15: 1285673.02 | AM15: 32000 | AN15: 0.004482608872 | AP15: 4.195987036 | AR15: 4.034213035 | AT15: 0.01878923905 | AU15: 4.191585656 | AY15: 4.850000011
B16: 867 | C16: Bracknell Forest | E16: 2078.427359 | G16: 2255.197837 | K16: 3110.794846 | M16: 1314098.46 | N16: 0 | O16: 2786021.16 | Q16: 0 | R16: 0 | S16: 642109.97 | U16: 632.2561404 | V16: 0 | W16: 1235.377719 | Y16: 360386 | Z16: 0 | AA16: 704165.3 | AC16: 0 | AD16: 0 | AE16: 206.4134737 | AG16: 0 | AH16: 0 | AI16: 117655.68 | AK16: 4100119.62 | AL16: 642109.97 | AM16: 617790 | AN16: 0.1152589071 | AP16: 3.646363788 | AR16: 3.956487433 | AT16: 0.5225734668 | AU16: 4.533909612 | AY16: 5.457534817
B17: 380 | C17: Bradford | E17: 2824.043702 | F17: 3882.825168 | G17: 2984.772535 | M17: 16978002.1 | N17: 2730443.53 | O17: 9934175.7 | Q17: 0 | R17: 0 | S17: 0 | U17: 6011.947368 | V17: 703.2105263 | W17: 3328.285684 | Y17: 3426810 | Z17: 400830 | AA17: 1897122.84 | AC17: 0 | AD17: 0 | AE17: 0 | AG17: 0 | AH17: 0 | AI17: 0 | AK17: 29642621.33 | AL17: 0 | AM17: 7299061.1 | AN17: 0.1975833427 | AP17: 4.954462634 | AQ17: 6.811973979 | AR17: 5.236443044 | AT17: 1.274997988 | AU17: 6.452962937
B18: 304 | C18: Brent | E18: 2212.109983 | F18: 6981.810151 | G18: 2414.914628 | K18: 3420 | M18: 5467870.17 | N18: 1993490.53 | O18: 5938931.97 | Q18: 0 | R18: 0 | S18: 769500 | U18: 2471.789474 | V18: 285.5263158 | W18: 2459.272018 | Y18: 1408920 | Z18: 162750 | AA18: 1401785.05 | AC18: 0 | AD18: 0 | AE18: 225 | AG18: 0 | AH18: 0 | AI18: 128250 | AK18: 13400292.67 | AL18: 769500 | AM18: 5781563 | AN18: 0.2897829649 | AP18: 3.880894707 | AQ18: 12.24878974 | AR18: 4.23669233 | AT18: 1.863995095 | AU18: 6.432383269 | AY18: 6
B19: 846 | C19: Brighton and Hove | E19: 2380.656698 | F19: 3440.234728 | G19: 2300.076933 | K19: 3548.722804 | M19: 1711282.86 | N19: 576275.53 | O19: 6842498.95 | Q19: 0 | R19: 0 | S19: 1464546.01 | U19: 718.8280702 | V19: 167.5105263 | W19: 2974.900035 | Y19: 409732 | Z19: 95481 | AA19: 1695693.02 | AC19: 0 | AD19: 0 | AE19: 412.6966491 | AG19: 0 | AH19: 0 | AI19: 235237.09 | AK19: 9130057.34 | AL19: 1464546.01 | AM19: 963470 | AN19: 0.08335904876 | AP19: 4.176590698 | AQ19: 6.035499523 | AR19: 4.03522269 | AT19: 0.3954899021 | AU19: 4.744414769 | AY19: 6.225829481
B20: 801 | C20: Bristol, City of | E20: 2481.154752 | F20: 3631.780727 | G20: 2346.138617 | K20: 2867.1 | M20: 4908054.92 | N20: 5023721.22 | O20: 8743058.43 | Q20: 0 | R20: 0 | S20: 3973302.63 | U20: 1978.133333 | V20: 1383.266667 | W20: 3726.573684 | Y20: 1127536 | Z20: 788462 | AA20: 2124147 | AC20: 0 | AD20: 0 | AE20: 1385.826316 | AG20: 0 | AH20: 0 | AI20: 789921 | AK20: 18674834.57 | AL20: 3973302.63 | AM20: 7061448 | AN20: 0.2376824837 | AP20: 4.352903074 | AQ20: 6.371545135 | AR20: 4.116032662 | AT20: 1.461977538 | AU20: 6.150968786 | AY20: 5.03
B21: 305 | C21: Bromley | E21: 2341.111446 | G21: 2289.207704 | I21: 3637.67002 | K21: 3637.668544 | M21: 1195215.43 | N21: 0 | O21: 10143109.85 | Q21: 182662.09 | R21: 0 | S21: 2587728.91 | U21: 510.5333333 | V21: 0 | W21: 4430.838596 | Y21: 291004 | Z21: 0 | AA21: 2525578 | AC21: 50.21403509 | AD21: 0 | AE21: 711.3701754 | AG21: 28622 | AH21: 0 | AI21: 405481 | AK21: 11338325.28 | AL21: 2770391 | AM21: 30990 | AN21: 0.002191700406 | AP21: 4.107213062 | AR21: 4.016153867 | AT21: 0.009533375273 | AU21: 4.349762059 | AW21: 6.381877227 | AY21: 6.381874638
B22: 825 | C22: Buckinghamshire | E22: 2388.3 | F22: 3556.074936 | G22: 2371.2 | K22: 3026.7 | M22: 3487328.62 | N22: 513010.6 | O22: 13344751.68 | Q22: 0 | R22: 0 | S22: 2019270.87 | U22: 1460.17193 | V22: 144.2631579 | W22: 5627.847368 | Y22: 832298 | Z22: 82230 | AA22: 3207873 | AC22: 0 | AD22: 0 | AE22: 667.1526316 | AG22: 0 | AH22: 0 | AI22: 380277 | AK22: 17345090.9 | AL22: 2019270.87 | AM22: 2126488 | AN22: 0.09894853032 | AP22: 4.19 | AQ22: 6.238727958 | AR22: 4.16 | AT22: 0.4722718347 | AU22: 4.772903985 | AY22: 5.31
B23: 351 | C23: Bury | E23: 2019.498417 | F23: 6132.566667 | G23: 1931.270588 | I23: 2764.5 | J23: 2764.5 | K23: 3957.423077 | M23: 2934331.2 | N23: 367954 | O23: 2954844 | Q23: 2764.5 | R23: 85699.5 | S23: 1646288 | U23: 1453 | V23: 60 | W23: 1530 | Y23: 828210 | Z23: 34200 | AA23: 872100 | AC23: 1 | AD23: 31 | AE23: 416 | AG23: 570 | AH23: 17670 | AI23: 237120 | AK23: 6257129.2 | AL23: 1734752 | AM23: 143966 | AN23: 0.01769526842 | AP23: 3.542979679 | AQ23: 10.75888889 | AR23: 3.388194014 | AT23: 0.07234944996 | AU23: 4.088632524 | AW23: 4.85 | AX23: 4.85 | AY23: 6.942847503
B24: 381 | C24: Calderdale | E24: 2393.652233 | G24: 2242.403598 | K24: 2958.3 | M24: 2516534.78 | N24: 0 | O24: 5343195.36 | Q24: 0 | R24: 0 | S24: 1356925.5 | U24: 1051.336842 | V24: 0 | W24: 2382.798246 | Y24: 599262 | Z24: 0 | AA24: 1358195 | AC24: 0 | AD24: 0 | AE24: 458.6842105 | AG24: 0 | AH24: 0 | AI24: 261450 | AK24: 7859730.14 | AL24: 1356925.5 | AM24: 1260881 | AN24: 0.1203413592 | AP24: 4.199389883 | AR24: 3.934041401 | AT24: 0.5682441851 | AU24: 4.721935908 | AY24: 5.19
B25: 873 | C25: Cambridgeshire | E25: 2353.365598 | F25: 4614.501129 | G25: 2237.979369 | K25: 3055.616524 | M25: 2374285.78 | N25: 2798832.56 | O25: 15232304.01 | Q25: 0 | R25: 0 | S25: 3053606.25 | U25: 1008.889474 | V25: 606.5298246 | W25: 6806.275439 | Y25: 575067 | Z25: 345722 | AA25: 3879577 | AC25: 0 | AD25: 0 | AE25: 999.3421053 | AG25: 0 | AH25: 0 | AI25: 569625 | AK25: 20405422.35 | AL25: 3053606.25 | AM25: 421630 | AN25: 0.01765571072 | AP25: 4.128711576 | AQ25: 8.095616015 | AR25: 3.926279594 | AT25: 0.07851596027 | AU25: 4.447057472 | AY25: 5.360730744
B26: 202 | C26: Camden | E26: 4372.272955 | F26: 8795.67 | G26: 2800.634826 | J26: 5677.2 | K26: 5042.448 | M26: 5486512.2 | N26: 439783.5 | O26: 4562406.1 | Q26: 0 | R26: 340632 | S26: 1008489.6 | U26: 1254.842105 | V26: 50 | W26: 1629.061404 | Y26: 715260 | Z26: 28500 | AA26: 928565 | AC26: 0 | AD26: 60 | AE26: 200 | AG26: 0 | AH26: 34200 | AI26: 114000 | AK26: 10488701.8 | AL26: 1349121.6 | AM26: 7461934.7 | AN26: 0.3866335869 | AP26: 7.670654308 | AQ26: 15.431 | AR26: 4.913394431 | AT26: 4.09878178 | AU26: 10.60120465 | AX26: 9.96 | AY26: 8.8464
B27: 823 | C27: Central Bedfordshire | E27: 2073.193715 | F27: 3917.307119 | G27: 2193.915883 | M27: 2382859.75 | N27: 1335808.6 | O27: 5827552.5 | Q27: 0 | R27: 0 | S27: 0 | U27: 1149.366667 | V27: 341.0017544 | W27: 2656.233333 | Y27: 655139 | Z27: 194371 | AA27: 1514053 | AC27: 0 | AD27: 0 | AE27: 0 | AG27: 0 | AH27: 0 | AI27: 0 | AK27: 9546220.85 | AL27: 0 | AM27: 2265990 | AN27: 0.1918345371 | AP27: 3.637181957 | AQ27: 6.87246863 | AR27: 3.848975234 | AT27: 0.958717834 | AU27: 4.99762894
B28: 895 | C28: Cheshire East | E28: 2144.536945 | F28: 2883.745311 | G28: 2066.366265 | K28: 2764.5 | M28: 1612447.23 | N28: 202317.5 | O28: 9175860.72 | Q28: 0 | R28: 0 | S28: 1000002.1 | U28: 751.8859649 | V28: 70.15789474 | W28: 4440.57807 | Y28: 428575 | Z28: 39990 | AA28: 2531129.5 | AC28: 0 | AD28: 0 | AE28: 361.7298246 | AG28: 0 | AH28: 0 | AI28: 206186 | AK28: 10990625.45 | AL28: 1000002.1 | AM28: 1451534 | AN28: 0.1079836747 | AP28: 3.762345517 | AQ28: 5.059202301 | AR28: 3.625203973 | AT28: 0.4527723351 | AU28: 4.192970246 | AY28: 4.85
B29: 896 | C29: Cheshire West and Chester | E29: 3353.676523 | F29: 2240.078339 | G29: 2143.178373 | J29: 2764.5 | K29: 2764.5 | M29: 273071.64 | N29: 2229663.94 | O29: 8697946.55 | Q29: 0 | R29: 19400 | S29: 1693717 | U29: 81.4245614 | V29: 995.3508772 | W29: 4058.433333 | Y29: 46412 | Z29: 567350 | AA29: 2313307 | AC29: 0 | AD29: 7.01754386 | AE29: 612.6666667 | AG29: 0 | AH29: 4000 | AI29: 349220 | AK29: 11200682.13 | AL29: 1713117 | AM29: 1386244 | AN29: 0.09693984748 | AP29: 5.883643023 | AQ29: 3.929961999 | AR29: 3.759962059 | AT29: 0.4225981308 | AU29: 4.359385143 | AX29: 4.85 | AY29: 4.85
B30: 201 | C30: City of London | E30: 3135 | G30: 3420.000399 | M30: 119999.99 | N30: 0 | O30: 171272.72 | Q30: 0 | R30: 0 | S30: 0 | U30: 38.27750877 | V30: 0 | W30: 50.07973684 | Y30: 21818.18 | Z30: 0 | AA30: 28545.45 | AC30: 0 | AD30: 0 | AE30: 0 | AG30: 0 | AH30: 0 | AI30: 0 | AK30: 291272.71 | AL30: 0 | AM30: 0 | AN30: 0 | AP30: 5.5 | AR30: 6.000000701 | AT30: 0 | AU30: 5.78339389
B31: 908 | C31: Cornwall | E31: 2280 | F31: 4961.991874 | G31: 2183.1 | J31: 2764.5 | K31: 2764.5 | M31: 2716664 | N31: 586176.64 | O31: 11524776.4 | Q31: 0 | R31: 44110.75 | S31: 3462584.75 | U31: 1191.519298 | V31: 118.1333333 | W31: 5279.087719 | Y31: 679166 | Z31: 67336 | AA31: 3009080 | AC31: 0 | AD31: 15.95614035 | AE31: 1252.517544 | AG31: 0 | AH31: 9095 | AI31: 713935 | AK31: 14827617.04 | AL31: 3506695.5 | AM31: 96000 | AN31: 0.005208810203 | AP31: 4 | AQ31: 8.705248901 | AR31: 3.83 | AT31: 0.02143521252 | AU31: 4.115184021 | AX31: 4.85 | AY31: 4.85
B32: 331 | C32: Coventry | E32: 1982.104956 | F32: 4118.852376 | G32: 1960.478289 | M32: 5004940.2 | N32: 512688.73 | O32: 4895270.4 | Q32: 0 | R32: 0 | S32: 0 | U32: 2525.063158 | V32: 124.4736842 | W32: 2496.977614 | Y32: 1439286 | Z32: 70950 | AA32: 1423277.24 | AC32: 0 | AD32: 0 | AE32: 0 | AG32: 0 | AH32: 0 | AI32: 0 | AK32: 10412899.33 | AL32: 0 | AM32: 2040591 | AN32: 0.1638569546 | AP32: 3.477377116 | AQ32: 7.226056801 | AR32: 3.439435594 | AT32: 0.6956133595 | AU32: 4.245247698
B33: 306 | C33: Croydon | E33: 2139.982942 | F33: 4290.943075 | G33: 2080.283683 | K33: 3420 | M33: 5251518.14 | N33: 2218417.57 | O33: 8458480.9 | Q33: 0 | R33: 0 | S33: 5077644 | U33: 2454 | V33: 517 | W33: 4066.022807 | Y33: 1398780 | Z33: 294690 | AA33: 2317633 | AC33: 0 | AD33: 0 | AE33: 1484.691228 | AG33: 0 | AH33: 0 | AI33: 846274 | AK33: 15928416.61 | AL33: 5077644 | AM33: 2325940 | AN33: 0.09968883676 | AP33: 3.754356039 | AQ33: 7.527970308 | AR33: 3.649620496 | AT33: 0.4788469168 | AU33: 4.803415632 | AY33: 6
B34: 909 | C34: Cumbria | E34: 1959.179481 | F34: 3848.292292 | G34: 2022.940723 | J34: 2764.5 | K34: 2764.5 | M34: 5366673.8 | N34: 1512763.7 | O34: 7144969.85 | Q34: 0 | R34: 224768.4 | S34: 2022930.15 | U34: 2739.245614 | V34: 393.1 | W34: 3531.97193 | Y34: 1561370 | Z34: 224067 | AA34: 2013224 | AC34: 0 | AD34: 81.30526316 | AE34: 731.7526316 | AG34: 0 | AH34: 46344 | AI34: 417099 | AK34: 14024407.35 | AL34: 2247698.55 | AM34: 1046977.45 | AN34: 0.06045224385 | AP34: 3.437156984 | AQ34: 6.751389986 | AR34: 3.549018813 | AT34: 0.2456480297 | AU34: 4.063505571 | AX34: 4.85 | AY34: 4.85
B35: 841 | C35: Darlington | E35: 2034.101609 | F35: 3252.53611 | G35: 2039.616599 | M35: 1523963.2 | N35: 657845.4 | O35: 1600000.5 | Q35: 0 | R35: 0 | S35: 0 | U35: 749.2070175 | V35: 202.2561404 | W35: 784.4614035 | Y35: 427048 | Z35: 115286 | AA35: 447143 | AC35: 0 | AD35: 0 | AE35: 0 | AG35: 0 | AH35: 0 | AI35: 0 | AK35: 3781809.1 | AL35: 0 | AM35: 1399754 | AN35: 0.270141263 | AP35: 3.568599314 | AQ35: 5.706203702 | AR35: 3.578274735 | AT35: 1.414640259 | AU35: 5.236668563
B36: 831 | C36: Derby | E36: 2216.778901 | F36: 4873.826993 | G36: 2237.560431 | I36: 2764.5 | J36: 2764.5 | K36: 2764.5 | M36: 4394939.18 | N36: 2600622.78 | O36: 4034231.17 | Q36: 242500 | R36: 242500 | S36: 955450 | U36: 1982.578947 | V36: 533.5894737 | W36: 1802.959649 | Y36: 1130070 | Z36: 304146 | AA36: 1027687 | AC36: 87.71929825 | AD36: 87.71929825 | AE36: 345.6140351 | AG36: 50000 | AH36: 50000 | AI36: 197000 | AK36: 11029793.13 | AL36: 1440450 | AM36: 71283 | AN36: 0.005683758042 | AP36: 3.889085791 | AQ36: 8.550573672 | AR36: 3.925544616 | AT36: 0.02583744336 | AU36: 4.545838012 | AW36: 4.85 | AX36: 4.85 | AY36: 4.85
B37: 830 | C37: Derbyshire | E37: 2648.754265 | F37: 3959.054895 | G37: 2152.783002 | I37: 2764.499959 | J37: 2764.499956 | K37: 2764.500001 | M37: 10827533.54 | N37: 2496316.08 | O37: 12044968.91 | Q37: 169240.02 | R37: 157956.98 | S37: 5314135.98 | U37: 4087.783333 | V37: 630.5333333 | W37: 5595.068754 | Y37: 2330036.5 | Z37: 359404 | AA37: 3189189.19 | AC37: 61.21903509 | AD37: 57.13763158 | AE37: 1922.277439 | AG37: 34894.85 | AH37: 32568.45 | AI37: 1095698.14 | AK37: 25368818.53 | AL37: 5641332.98 | AM37: 2138846 | AN37: 0.06452219254 | AP37: 4.646937308 | AQ37: 6.945710343 | AR37: 3.776812284 | AT37: 0.3037360752 | AU37: 4.707466737 | AW37: 4.849999928 | AX37: 4.849999923 | AY37: 4.850000001
B38: 878 | C38: Devon | E38: 2422.496376 | F38: 3139.495274 | G38: 2175.934729 | K38: 3121.700035 | M38: 4211756.45 | N38: 443329.78 | O38: 16307260.34 | Q38: 0 | R38: 0 | S38: 3179999.7 | U38: 1738.601754 | V38: 141.2105263 | W38: 7494.370175 | Y38: 991003 | Z38: 80490 | AA38: 4271791 | AC38: 0 | AD38: 0 | AE38: 1018.675614 | AG38: 0 | AH38: 0 | AI38: 580645.1 | AK38: 20962346.57 | AL38: 3179999.7 | AM38: 2281000 | AN38: 0.08632517535 | AP38: 4.249993643 | AQ38: 5.507886446 | AR38: 3.81742935 | AT38: 0.3850484976 | AU38: 4.460442693 | AY38: 5.476666728
B39: 371 | C39: Doncaster | E39: 2171.694122 | G39: 2353.041333 | K39: 2764.5 | M39: 6827349.12 | N39: 0 | O39: 3205878.46 | Q39: 0 | R39: 0 | S39: 2052587.9 | U39: 3143.789474 | V39: 0 | W39: 1362.440351 | Y39: 1791960 | Z39: 0 | AA39: 776591 | AC39: 0 | AD39: 0 | AE39: 742.4807018 | AG39: 0 | AH39: 0 | AI39: 423214 | AK39: 10033227.58 | AL39: 2052587.9 | AM39: 1700333 | AN39: 0.123336333 | AP39: 3.809989687 | AR39: 4.12814269 | AT39: 0.5683377538 | AU39: 4.608031874 | AY39: 4.85
B40: 835 | C40: Dorset | E40: 2151.594514 | G40: 2110.001142 | K40: 3822.553002 | M40: 374037.72 | N40: 0 | O40: 9786162.31 | Q40: 25000 | R40: 0 | S40: 2113000 | U40: 173.8421053 | V40: 0 | W40: 4637.989105 | Y40: 99090 | Z40: 0 | AA40: 2643653.79 | AC40: 0 | AD40: 0 | AE40: 552.7719298 | AG40: 0 | AH40: 0 | AI40: 315080 | AK40: 10160200.03 | AL40: 2138000 | AM40: 777800 | AN40: 0.05948302219 | AP40: 3.774727218 | AR40: 3.70175639 | AT40: 0.254363905 | AU40: 4.276243802 | AY40: 6.706233338
B41: 332 | C41: Dudley | E41: 2013.780455 | F41: 5095.348988 | G41: 1975.331278 | K41: 2565.000005 | M41: 4247931.59 | N41: 531477.17 | O41: 4400361 | Q41: 0 | R41: 0 | S41: 2678000 | U41: 2109.431333 | V41: 104.3063333 | W41: 2227.657228 | Y41: 1202375.86 | Z41: 59454.61 | AA41: 1269764.62 | AC41: 0 | AD41: 0 | AE41: 1044.054579 | AG41: 0 | AH41: 0 | AI41: 595111.11 | AK41: 9179769.76 | AL41: 2678000 | AM41: 854814 | AN41: 0.06724156286 | AP41: 3.532948166 | AQ41: 8.939208751 | AR41: 3.465493471 | AT41: 0.2733912128 | AU41: 4.065806938 | AY41: 4.500000008
B42: 840 | C42: Durham | E42: 2031.987437 | F42: 3701.320679 | G42: 2126.676704 | I42: 2764.5 | J42: 2764.5 | K42: 2764.5 | M42: 7541653.64 | N42: 3747775.5 | O42: 4840618.39 | Q42: 345126 | R42: 345126 | S42: 2761008 | U42: 3711.466667 | V42: 1012.550877 | W42: 2276.142105 | Y42: 2115536 | Z42: 577154 | AA42: 1297401 | AC42: 124.8421053 | AD42: 124.8421053 | AE42: 998.7368421 | AG42: 71160 | AH42: 71160 | AI42: 569280 | AK42: 16130047.53 | AL42: 3451260 | AM42: 1862768 | AN42: 0.0868663234 | AP42: 3.564890241 | AQ42: 6.49354505 | AR42: 3.731011761 | AT42: 0.3961910725 | AU42: 4.560928298 | AW42: 4.85 | AX42: 4.85 | AY42: 4.85
B43: 307 | C43: Ealing | E43: 2470.86645 | F43: 5078.443663 | G43: 1930.465851 | M43: 8971040.32 | N43: 2164218.86 | O43: 4230114.16 | Q43: 0 | R43: 0 | S43: 0 | U43: 3630.726509 | V43: 426.1578947 | W43: 2191.240088 | Y43: 2069514.11 | Z43: 242910 | AA43: 1249006.85 | AC43: 0 | AD43: 0 | AE43: 0 | AG43: 0 | AH43: 0 | AI43: 0 | AK43: 15365373.34 | AL43: 0 | AM43: 8761645 | AN43: 0.3631466133 | AP43: 4.334853421 | AQ43: 8.909550286 | AR43: 3.386782194 | AT43: 2.460147367 | AU43: 6.774529286
B44: 811 | C44: East Riding of Yorkshire | E44: 2062.720428 | F44: 3409.568181 | G44: 2104.931919 | J44: 3019.21875 | K44: 2965.817138 | M44: 2334619.55 | N44: 1467545.2 | O44: 5354021.37 | Q44: 0 | R44: 169500 | S44: 1459130 | U44: 1131.815789 | V44: 430.4196667 | W44: 2543.560351 | Y44: 645135 | Z44: 245339.21 | AA44: 1449829.4 | AC44: 0 | AD44: 56.14035088 | AE44: 491.9824561 | AG44: 0 | AH44: 32000 | AI44: 280430 | AK44: 9156186.12 | AL44: 1628630 | AM44: 1903589 | AN44: 0.1500258687 | AP44: 3.618807769 | AQ44: 5.981698563 | AR44: 3.692863015 | AT44: 0.7175952357 | AU44: 4.783143348 | AX44: 5.296875 | AY44: 5.203187961
B45: 845 | C45: East Sussex | E45: 2175.49486 | G45: 2080.566941 | K45: 2969.668508 | M45: 1232975.07 | N45: 0 | O45: 12578618.61 | Q45: 0 | R45: 0 | S45: 2829000 | U45: 566.7561404 | V45: 0 | W45: 6045.764912 | Y45: 323051 | Z45: 0 | AA45: 3446086 | AC45: 0 | AD45: 0 | AE45: 952.6315789 | AG45: 0 | AH45: 0 | AI45: 543000 | AK45: 13811593.68 | AL45: 2829000 | AM45: 0 | AN45: 0 | AP45: 3.816657648 | AR45: 3.65011744 | AT45: 0 | AU45: 3.859013218 | AY45: 5.209944751
B46: 308 | C46: Enfield | E46: 2268.227224 | G46: 2277.039772 | K46: 3420 | M46: 5489006.42 | N46: 0 | O46: 6376174.76 | Q46: 0 | R46: 0 | S46: 3465000 | U46: 2419.954386 | V46: 0 | W46: 2800.203509 | Y46: 1379374 | Z46: 0 | AA46: 1596116 | AC46: 0 | AD46: 0 | AE46: 1013.157895 | AG46: 0 | AH46: 0 | AI46: 577500 | AK46: 11865181.18 | AL46: 3465000 | AM46: 2041428 | AN46: 0.1175151927 | AP46: 3.979346008 | AR46: 3.994806618 | AT46: 0.5745662104 | AU46: 4.889293012 | AY46: 6
B47: 881 | C47: Essex | E47: 2565.771612 | F47: 3105.030541 | G47: 2272.475157 | K47: 2850 | M47: 6591098.16 | N47: 942839.8 | O47: 38309553.64 | Q47: 0 | R47: 0 | S47: 5238550 | U47: 2568.85614 | V47: 303.6491228 | W47: 16858.07368 | Y47: 1464248 | Z47: 173080 | AA47: 9609102 | AC47: 0 | AD47: 0 | AE47: 1838.087719 | AG47: 0 | AH47: 0 | AI47: 1047710 | AK47: 45843491.6 | AL47: 5238550 | AM47: 5276072.4 | AN47: 0.09361690847 | AP47: 4.501353705 | AQ47: 5.447422001 | AR47: 3.986798521 | AT47: 0.4291534341 | AU47: 4.584144479 | AY47: 5
B48: 390 | C48: Gateshead | E48: 2411.010589 | F48: 4793.022124 | G48: 2183.386704 | K48: 2764.5 | M48: 3877890.58 | N48: 295552.88 | O48: 2822525.28 | Q48: 0 | R48: 0 | S48: 1960559.15 | U48: 1608.408772 | V48: 61.66315789 | W48: 1292.72807 | Y48: 916793 | Z48: 35148 | AA48: 736855 | AC48: 0 | AD48: 0 | AE48: 709.1912281 | AG48: 0 | AH48: 0 | AI48: 404239 | AK48: 6995968.74 | AL48: 1960559.15 | AM48: 1960557 | AN48: 0.1795861276 | AP48: 4.229843138 | AQ48: 8.408810743 | AR48: 3.830502989 | AT48: 0.9367053107 | AU48: 5.215911291 | AY48: 4.85
B49: 916 | C49: Gloucestershire | G49: 1929.68749 | K49: 2975.4 | M49: 0 | N49: 0 | O49: 15985124.92 | Q49: 0 | R49: 0 | S49: 3178980 | U49: 0 | V49: 0 | W49: 8283.789474 | Y49: 0 | Z49: 0 | AA49: 4721760 | AC49: 0 | AD49: 0 | AE49: 1068.421053 | AG49: 0 | AH49: 0 | AI49: 609000 | AK49: 15985124.92 | AL49: 3178980 | AM49: 5580942 | AN49: 0.2255377417 | AR49: 3.38541665 | AT49: 1.04693177 | AU49: 4.641936032 | AY49: 5.22
B50: 203 | C50: Greenwich | E50: 2320.052865 | F50: 5413.952376 | G50: 2329.433501 | J50: 3420 | K50: 3420 | M50: 6792992.68 | N50: 2573584 | O50: 3407103 | Q50: 0 | R50: 420000 | S50: 2155260 | U50: 2927.947368 | V50: 475.3614035 | W50: 1462.631579 | Y50: 1668930 | Z50: 270956 | AA50: 833700 | AC50: 0 | AD50: 122.8070175 | AE50: 630.1929825 | AG50: 0 | AH50: 70000 | AI50: 359210 | AK50: 12773679.68 | AL50: 2575260 | AM50: 4448259.4 | AN50: 0.2246913506 | AP50: 4.070268184 | AQ50: 9.498162063 | AR50: 4.086725441 | AT50: 1.388867539 | AU50: 6.181223868 | AX50: 6 | AY50: 6
B51: 204 | C51: Hackney | E51: 3505.307799 | F51: 7742.04045 | G51: 2502.934931 | J51: 3465.6 | K51: 3465.6 | M51: 7637051 | N51: 1195126.56 | O51: 6778013.66 | Q51: 0 | R51: 34656 | S51: 4301356.8 | U51: 2178.710526 | V51: 154.3684211 | W51: 2708.026316 | Y51: 1241865 | Z51: 87990 | AA51: 1543575 | AC51: 0 | AD51: 10 | AE51: 1241.157895 | AG51: 0 | AH51: 5700 | AI51: 707460 | AK51: 15610191.22 | AL51: 4336012.8 | AM51: 4094681 | AN51: 0.1703215583 | AP51: 6.149662806 | AQ51: 13.58252711 | AR51: 4.391113914 | AT51: 1.141664088 | AU51: 6.702992263 | AX51: 6.08 | AY51: 6.08
B52: 876 | C52: Halton | E52: 1721.443118 | F52: 3200.596971 | G52: 1946.589089 | K52: 2821.5 | M52: 677113.04 | N52: 1003707.21 | O52: 2423438.53 | Q52: 0 | R52: 0 | S52: 1053607.5 | U52: 393.3403509 | V52: 313.6 | W52: 1244.966667 | Y52: 224204 | Z52: 178752 | AA52: 709631 | AC52: 0 | AD52: 0 | AE52: 373.4210526 | AG52: 0 | AH52: 0 | AI52: 212850 | AK52: 4104258.78 | AL52: 1053607.5 | AM52: 15000 | AN52: 0.002899746328 | AP52: 3.020075645 | AQ52: 5.615082405 | AR52: 3.415068578 | AT52: 0.01131702223 | AU52: 3.902762847 | AY52: 4.95
B53: 205 | C53: Hammersmith and Fulham | E53: 469547.0731 | F53: 1116365.415 | G53: 76123.90244 | M53: 984401.32 | N53: 683529 | O53: 208072 | Q53: 0 | R53: 0 | S53: 0 | U53: 2.096491228 | V53: 0.6122807018 | W53: 2.733333333 | Y53: 1195 | Z53: 349 | AA53: 1558 | AC53: 0 | AD53: 0 | AE53: 0 | AG53: 0 | AH53: 0 | AI53: 0 | AK53: 1876002.32 | AL53: 0 | AM53: 885938 | AN53: 0.3207665255 | AP53: 823.766795 | AQ53: 1958.535817 | AR53: 133.550706 | AT53: 285.6021921 | AU53: 890.3740554
B54: 850 | C54: Hampshire | E54: 3226.757206 | F54: 4319.424781 | G54: 2489.26521 | I54: 3221.829976 | J54: 3264.59221 | K54: 3165.163354 | M54: 1532692.69 | N54: 932344.05 | O54: 45263060.46 | Q54: 133163.32 | R54: 61317.06 | S54: 5007943.67 | U54: 474.9947368 | V54: 215.8491228 | W54: 18183.30175 | Y54: 270747 | Z54: 123034 | AA54: 10364482 | AC54: 41.33157895 | AD54: 18.78245614 | AE54: 1582.207018 | AG54: 23559 | AH54: 10706 | AI54: 901858 | AK54: 47728097.2 | AL54: 5202424.05 | AM54: 5833000 | AN54: 0.09926226128 | AP54: 5.660977555 | AQ54: 7.577938212 | AR54: 4.367131947 | AT54: 0.4987863407 | AU54: 5.024934293 | AW54: 5.652333291 | AX54: 5.727354754 | AY54: 5.552918165
B55: 309 | C55: Haringey | E55: 2250.296071 | F55: 6125.938403 | G55: 2721.436218 | I55: 3009.6 | K55: 3093.211385 | M55: 5355704.65 | N55: 1611121.8 | O55: 3682389.67 | Q55: 594000 | R55: 0 | S55: 1738873.2 | U55: 2380 | V55: 263 | W55: 1353.105263 | Y55: 1356600 | Z55: 149910 | AA55: 771270 | AC55: 197.3684211 | AD55: 0 | AE55: 562.1578947 | AG55: 112500 | AH55: 0 | AI55: 320430 | AK55: 10649216.12 | AL55: 2332873.2 | AM55: 4273209 | AN55: 0.2476461966 | AP55: 3.947887845 | AQ55: 10.74726036 | AR55: 4.774449505 | AT55: 1.57641688 | AU55: 6.365601012 | AW55: 5.28 | AY55: 5.42668664
B56: 310 | C56: Harrow | E56: 2791.578937 | F56: 3920.713846 | G56: 2120.814329 | K56: 3152.1 | M56: 3644332.84 | N56: 76453.92 | O56: 5232101.04 | Q56: 0 | R56: 0 | S56: 2304068.97 | U56: 1305.473684 | V56: 19.5 | W56: 2467.024561 | Y56: 744120 | Z56: 11115 | AA56: 1406204 | AC56: 0 | AD56: 0 | AE56: 730.9631579 | AG56: 0 | AH56: 0 | AI56: 416649 | AK56: 8952887.8 | AL56: 2304068.97 | AM56: 466110 | AN56: 0.03976007381 | AP56: 4.897506907 | AQ56: 6.878445344 | AR56: 3.720726893 | AT56: 0.1807967765 | AU56: 4.547194188 | AY56: 5.53
B57: 805 | C57: Hartlepool | E57: 1888.937548 | F57: 4497.733333 | G57: 2069.713846 | I57: 2764.500053 | K57: 2764.499991 | M57: 2434840.5 | N57: 215891.2 | O57: 269062.8 | Q57: 208354.84 | R57: 0 | S57: 1109503.99 | U57: 1289 | V57: 48 | W57: 130 | Y57: 734730 | Z57: 27360 | AA57: 74100 | AC57: 75.368 | AD57: 0 | AE57: 401.3398421 | AG57: 42959.76 | AH57: 0 | AI57: 228763.71 | AK57: 2919794.5 | AL57: 1317858.83 | AM57: 1422766 | AN57: 0.2513534629 | AP57: 3.313925524 | AQ57: 7.890760234 | AR57: 3.631076923 | AT57: 1.284185127 | AU57: 5.109080703 | AW57: 4.850000093 | AY57: 4.849999985
B58: 311 | C58: Havering | E58: 2629.507476 | G58: 2267.676629 | M58: 2303886.8 | N58: 0 | O58: 5683243.21 | Q58: 0 | R58: 0 | S58: 0 | U58: 876.1666667 | V58: 0 | W58: 2506.196491 | Y58: 499415 | Z58: 0 | AA58: 1428532 | AC58: 0 | AD58: 0 | AE58: 0 | AG58: 0 | AH58: 0 | AI58: 0 | AK58: 7987130.01 | AL58: 0 | AM58: 2406988 | AN58: 0.2315721255 | AP58: 4.61317101 | AR58: 3.97838005 | AT58: 1.248472079 | AU58: 5.391288251
B59: 884 | C59: Herefordshire | E59: 1964.286742 | G59: 1984.268257 | K59: 2764.5 | M59: 726000.38 | N59: 0 | O59: 3749598.62 | Q59: 0 | R59: 0 | S59: 560999.5 | U59: 369.6 | V59: 0 | W59: 1889.663158 | Y59: 210672 | Z59: 0 | AA59: 1077108 | AC59: 0 | AD59: 0 | AE59: 202.9298246 | AG59: 0 | AH59: 0 | AI59: 115670 | AK59: 4475599 | AL59: 560999.5 | AM59: 911094 | AN59: 0.1531844493 | AP59: 3.446117092 | AR59: 3.48117238 | AT59: 0.6491816595 | AU59: 4.237908369 | AY59: 4.85
B60: 919 | C60: Hertfordshire | E60: 2585.891847 | F60: 4065.108305 | G60: 2564.767662 | M60: 20092819.25 | N60: 5696143.58 | O60: 22387748.17 | Q60: 0 | R60: 0 | S60: 0 | U60: 7770.17 | V60: 1401.228 | W60: 8728.957596 | Y60: 4428996.9 | Z60: 798699.96 | AA60: 4975505.83 | AC60: 0 | AD60: 0 | AE60: 0 | AG60: 0 | AH60: 0 | AI60: 0 | AK60: 48176711 | AL60: 0 | AM60: 9687000 | AN60: 0.1674106246 | AP60: 4.536652363 | AQ60: 7.131768956 | AR60: 4.49959239 | AT60: 0.9494077785 | AU60: 5.671132169
B61: 312 | C61: Hillingdon | E61: 2623.876079 | F61: 4370.141633 | G61: 2554.257137 | I61: 3420 | J61: 3420 | K61: 3420 | M61: 8662202.1 | N61: 617110 | O61: 4151568.56 | Q61: 4080 | R61: 20520 | S61: 2362200 | U61: 3301.3 | V61: 141.2105263 | W61: 1625.352632 | Y61: 1881741 | Z61: 80490 | AA61: 926451 | AC61: 1.192982456 | AD61: 6 | AE61: 690.7017544 | AG61: 680 | AH61: 3420 | AI61: 393700 | AK61: 13430880.66 | AL61: 2386800 | AM61: 2439000 | AN61: 0.1335949314 | AP61: 4.603291367 | AQ61: 7.666915145 | AR61: 4.481152873 | AT61: 0.7421309473 | AU61: 5.555083113 | AW61: 6 | AX61: 6 | AY61: 6
B62: 313 | C62: Hounslow | E62: 2510.232997 | G62: 2746.547789 | M62: 6311562.5 | N62: 0 | O62: 5087815.95 | Q62: 0 | R62: 0 | S62: 0 | U62: 2514.333333 | V62: 0 | W62: 1852.440351 | Y62: 1433170 | Z62: 0 | AA62: 1055891 | AC62: 0 | AD62: 0 | AE62: 0 | AG62: 0 | AH62: 0 | AI62: 0 | AK62: 11399378.45 | AL62: 0 | AM62: 3630311 | AN62: 0.2415426488 | AP62: 4.403917539 | AR62: 4.818504893 | AT62: 1.45850624 | AU62: 6.038296952
B63: 921 | C63: Isle of Wight | E63: 2147.18636 | G63: 2208.147149 | K63: 2786.756642 | M63: 126815.84 | N63: 0 | O63: 3333205.87 | Q63: 0 | R63: 0 | S63: 373220.05 | U63: 59.06140351 | V63: 0 | W63: 1509.503509 | Y63: 33665 | Z63: 0 | AA63: 860417 | AC63: 0 | AD63: 0 | AE63: 133.9263158 | AG63: 0 | AH63: 0 | AI63: 76338 | AK63: 3460021.71 | AL63: 373220.05 | AM63: 772630 | AN63: 0.1677489171 | AP63: 3.766993614 | AR63: 3.873942367 | AT63: 0.796181035 | AU63: 4.746266318 | AY63: 4.88904674
B64: 420 | C64: Isles of Scilly | E64: 2616.3 | G64: 2901.3 | K64: 2901.3 | M64: 60174.9 | N64: 0 | O64: 17998.24 | Q64: 0 | R64: 0 | S64: 21301.65 | U64: 23 | V64: 0 | W64: 6.203508772 | Y64: 13110 | Z64: 0 | AA64: 3536 | AC64: 0 | AD64: 0 | AE64: 7.342105263 | AG64: 0 | AH64: 0 | AI64: 4185 | AK64: 78173.14 | AL64: 21301.65 | AM64: 30000 | AN64: 0.2317053382 | AP64: 4.59 | AR64: 5.09 | AT64: 1.440161298 | AU64: 6.215486054 | AY64: 5.09
B65: 206 | C65: Islington | E65: 2210.371037 | F65: 5489.038516 | G65: 2725.532393 | I65: 4320.6 | J65: 36376.01154 | K65: 3983.418589 | M65: 4964493.35 | N65: 1472160.13 | O65: 5490130.75 | Q65: 827736 | R65: 895998.6 | S65: 1147014.9 | U65: 2246 | V65: 268.2 | W65: 2014.333333 | Y65: 1280220 | Z65: 152874 | AA65: 1148170 | AC65: 191.5789474 | AD65: 24.63157895 | AE65: 287.9473684 | AG65: 109200 | AH65: 14040 | AI65: 164130 | AK65: 11926784.23 | AL65: 2870749.5 | AM65: 5542009 | AN65: 0.2724746113 | AP65: 3.877843925 | AQ65: 9.629892133 | AR65: 4.781635777 | AT65: 1.931933108 | AU65: 7.090323384 | AW65: 7.58 | AX65: 63.8175641 | AY65: 6.988453665
B66: 207 | C66: Kensington and Chelsea | E66: 4064.703307 | F66: 6455.072819 | G66: 2187.778437 | M66: 2581086.6 | N66: 1603009.75 | O66: 2276583.05 | Q66: 0 | R66: 0 | S66: 0 | U66: 635 | V66: 248.3333333 | W66: 1040.591228 | Y66: 361950 | Z66: 141550 | AA66: 593137 | AC66: 0 | AD66: 0 | AE66: 0 | AG66: 0 | AH66: 0 | AI66: 0 | AK66: 6460679.4 | AL66: 0 | AM66: 2197000 | AN66: 0.2537631504 | AP66: 7.131058433 | AQ66: 11.32468916 | AR66: 3.838207783 | AT66: 2.00339766 | AU66: 7.894754053
B67: 886 | C67: Kent | E67: 2855.138603 | F67: 3780.204849 | G67: 2342.150179 | K67: 2764.5 | M67: 8282436.51 | N67: 334243.06 | O67: 40500000.69 | Q67: 0 | R67: 0 | S67: 12124500.45 | U67: 2900.887719 | V67: 88.41929825 | W67: 17291.80351 | Y67: 1653506 | Z67: 50399 | AA67: 9856328 | AC67: 0 | AD67: 0 | AE67: 4385.784211 | AG67: 0 | AH67: 0 | AI67: 2499897 | AK67: 49116680.26 | AL67: 12124500.45 | AM67: 5963797 | AN67: 0.08874040589 | AP67: 5.009015093 | AQ67: 6.631938332 | AR67: 4.109035402 | AT67: 0.4241637168 | AU67: 4.779826197 | AY67: 4.85
B68: 810 | C68: Kingston upon Hull, City of | E68: 2093.360512 | F68: 2089.500274 | G68: 2076.154094 | M68: 5468794.16 | N68: 248870.48 | O68: 3394552.01 | Q68: 0 | R68: 0 | S68: 0 | U68: 2612.447368 | V68: 119.1052632 | W68: 1635.019298 | Y68: 1489095 | Z68: 67890 | AA68: 931961 | AC68: 0 | AD68: 0 | AE68: 0 | AG68: 0 | AH68: 0 | AI68: 0 | AK68: 9112216.65 | AL68: 0 | AM68: 0 | AN68: 0 | AP68: 3.672562301 | AQ68: 3.665789954 | AR68: 3.642375604 | AT68: 0 | AU68: 3.661074467
B69: 314 | C69: Kingston upon Thames | E69: 1989.616039 | F69: 3502.49639 | G69: 2311.240839 | I69: 3334.5 | K69: 3619.5 | M69: 2555714.16 | N69: 400390.64 | O69: 2885215.2 | Q69: 219375 | R69: 0 | S69: 561498.75 | U69: 1284.526316 | V69: 114.3157895 | W69: 1248.340351 | Y69: 732180 | Z69: 65160 | AA69: 711554 | AC69: 65.78947368 | AD69: 0 | AE69: 155.1315789 | AG69: 37500 | AH69: 0 | AI69: 88425 | AK69: 5841320 | AL69: 780873.75 | AM69: 595500 | AN69: 0.08250557874 | AP69: 3.490554454 | AQ69: 6.14473051 | AR69: 4.05480849 | AT69: 0.3642605083 | AU69: 4.414980343 | AW69: 5.85 | AY69: 6.35
B70: 382 | C70: Kirklees | E70: 2453.829223 | F70: 3775.80608 | G70: 2429.465379 | K70: 2764.5 | M70: 7638490.55 | N70: 1013187.88 | O70: 8530995.22 | Q70: 0 | R70: 0 | S70: 3091714.95 | U70: 3112.885965 | V70: 268.3368421 | W70: 3511.470175 | Y70: 1774345 | Z70: 152952 | AA70: 2001538 | AC70: 0 | AD70: 0 | AE70: 1118.363158 | AG70: 0 | AH70: 0 | AI70: 637467 | AK70: 17182673.65 | AL70: 3091714.95 | AM70: 2044640 | AN70: 0.09160972176 | AP70: 4.30496355 | AQ70: 6.624221194 | AR70: 4.262219963 | AT70: 0.4477671429 | AU70: 4.887768834 | AY70: 4.85
B71: 340 | C71: Knowsley | E71: 2527.049024 | G71: 2180.04033 | K71: 2679 | M71: 4897540.71 | N71: 0 | O71: 1042919.82 | Q71: 0 | R71: 0 | S71: 1602690.6 | U71: 1938.047368 | V71: 0 | W71: 478.3947368 | Y71: 1104687 | Z71: 0 | AA71: 272685 | AC71: 0 | AD71: 0 | AE71: 598.2421053 | AG71: 0 | AH71: 0 | AI71: 340998 | AK71: 5940460.53 | AL71: 1602690.6 | AM71: 771541 | AN71: 0.09279249164 | AP71: 4.43341934 | AR71: 3.824632158 | AT71: 0.4489958507 | AU71: 4.838708852 | AY71: 4.7
B72: 208 | C72: Lambeth | E72: 3393.134572 | F72: 7222.381346 | G72: 2482.380007 | M72: 8365154.19 | N72: 3495537.54 | O72: 5627437.89 | Q72: 0 | R72: 0 | S72: 0 | U72: 2465.317544 | V72: 483.9868421 | W72: 2266.952632 | Y72: 1405231 | Z72: 275872.5 | AA72: 1292163 | AC72: 0 | AD72: 0 | AE72: 0 | AG72: 0 | AH72: 0 | AI72: 0 | AK72: 17488129.62 | AL72: 0 | AM72: 10245702 | AN72: 0.3694297326 | AP72: 5.952867671 | AQ72: 12.67084447 | AR72: 4.355052644 | AT72: 3.445941358 | AU72: 9.32773151
B73: 888 | C73: Lancashire | E73: 2590.908672 | F73: 4245.653661 | G73: 2241.698284 | K73: 2724.600001 | M73: 7924836.81 | N73: 8926870.57 | O73: 27237348.62 | Q73: 0 | R73: 0 | S73: 7299999.99 | U73: 3058.709439 | V73: 2102.590386 | W73: 12150.31872 | Y73: 1743464.38 | Z73: 1198476.52 | AA73: 6925681.67 | AC73: 0 | AD73: 0 | AE73: 2679.292368 | AG73: 0 | AH73: 0 | AI73: 1527196.65 | AK73: 44089056 | AL73: 7299999.99 | AM73: 3107456 | AN73: 0.05702119065 | AP73: 4.545453811 | AQ73: 7.448515195 | AR73: 3.932804007 | AT73: 0.2727077929 | AU73: 4.782569248 | AY73: 4.780000002
B74: 383 | C74: Leeds | E74: 2384.937369 | G74: 2335.3913 | K74: 2764.5 | M74: 16266882.9 | N74: 0 | O74: 12077540.31 | Q74: 0 | R74: 0 | S74: 4074000 | U74: 6820.675088 | V74: 0 | W74: 5171.527491 | Y74: 3887784.8 | Z74: 0 | AA74: 2947770.67 | AC74: 0 | AD74: 0 | AE74: 1473.684211 | AG74: 0 | AH74: 0 | AI74: 840000 | AK74: 28344423.21 | AL74: 4074000 | AM74: 6083165 | AN74: 0.157997768 | AP74: 4.184100648 | AR74: 4.097177719 | AT74: 0.7925374292 | AU74: 5.016130541 | AY74: 4.85
B75: 856 | C75: Leicester | E75: 1995.854358 | G75: 2060.907412 | K75: 2793 | M75: 6401062.08 | N75: 0 | O75: 5934997.55 | Q75: 0 | R75: 0 | S75: 3100509.3 | U75: 3207.178947 | V75: 0 | W75: 2879.798246 | Y75: 1828092 | Z75: 0 | AA75: 1641485 | AC75: 0 | AD75: 0 | AE75: 1110.1 | AG75: 0 | AH75: 0 | AI75: 632757 | AK75: 12336059.63 | AL75: 3100509.3 | AM75: 1277100 | AN75: 0.07641051198 | AP75: 3.501498874 | AR75: 3.615627039 | AT75: 0.3113105856 | AU75: 4.074185313 | AY75: 4.9
B76: 855 | C76: Leicestershire | F76: 3747.426064 | G76: 2020.94157 | K76: 2764.5 | M76: 0 | N76: 140903.22 | O76: 16510886.99 | Q76: 0 | R76: 0 | S76: 1706802.3 | U76: 0 | V76: 37.6 | W76: 8169.898246 | Y76: 0 | Z76: 21432 | AA76: 4656842 | AC76: 0 | AD76: 0 | AE76: 617.4 | AG76: 0 | AH76: 0 | AI76: 351918 | AK76: 16651790.21 | AL76: 1706802.3 | AM76: 3597342.99 | AN76: 0.1638437583 | AQ76: 6.574431691 | AR76: 3.545511527 | AT76: 0.7151502348 | AU76: 4.364830507 | AY76: 4.85
B77: 209 | C77: Lewisham | E77: 3067.105811 | F77: 6351.542777 | G77: 2661.9 | J77: 3420 | K77: 3420 | M77: 7872544.96 | N77: 1509550 | O77: 4659847.42 | Q77: 0 | R77: 58140 | S77: 2987712 | U77: 2566.766667 | V77: 237.6666667 | W77: 1750.57193 | Y77: 1463057 | Z77: 135470 | AA77: 997826 | AC77: 0 | AD77: 17 | AE77: 873.6 | AG77: 0 | AH77: 9690 | AI77: 497952 | AK77: 14041942.38 | AL77: 3045852 | AM77: 7117000 | AN77: 0.2940326568 | AP77: 5.380887389 | AQ77: 11.1430575 | AR77: 4.67 | AT77: 2.292851632 | AU77: 7.797948895 | AX77: 6 | AY77: 6
B78: 925 | C78: Lincolnshire | E78: 2288.649028 | F78: 3680.367363 | G78: 2032.208406 | J78: 2764.5 | K78: 3796.045738 | M78: 4194676.09 | N78: 2144776.05 | O78: 15748074.95 | Q78: 0 | R78: 100002.15 | S78: 4579249.89 | U78: 1832.817544 | V78: 582.7614035 | W78: 7749.242105 | Y78: 1044706 | Z78: 332174 | AA78: 4417068 | AC78: 0 | AD78: 36.17368421 | AE78: 1206.321053 | AG78: 0 | AH78: 20619 | AI78: 687603 | AK78: 22087527.09 | AL78: 4679252.04 | AM78: 1115626 | AN78: 0.04001182806 | AP78: 4.015173733 | AQ78: 6.456784848 | AR78: 3.565277906 | AT78: 0.1715774887 | AU78: 4.2881692 | AX78: 4.85 | AY78: 6.659729364
B79: 341 | C79: Liverpool | E79: 2738.416994 | F79: 6947.102231 | G79: 2486.545923 | K79: 2793 | M79: 10466763.02 | N79: 2334165.41 | O79: 5737822.5 | Q79: 0 | R79: 0 | S79: 4205978.7 | U79: 3822.194737 | V79: 335.9912281 | W79: 2307.547368 | Y79: 2178651 | Z79: 191515 | AA79: 1315302 | AC79: 0 | AD79: 0 | AE79: 1505.9 | AG79: 0 | AH79: 0 | AI79: 858363 | AK79: 18538750.93 | AL79: 4205978.7 | AM79: 2478787 | AN79: 0.0982728553 | AP79: 4.80424034 | AQ79: 12.18789865 | AR79: 4.362361268 | AT79: 0.5455279917 | AU79: 5.551156421 | AY79: 4.9
B80: 821 | C80: Luton | E80: 2293.518256 | F80: 4825.082522 | G80: 2236.235835 | J80: 2901.3 | K80: 2901.299985 | M80: 1137741.98 | N80: 3596328.7 | O80: 6451085.29 | Q80: 0 | R80: 371366.4 | S80: 789161.74 | U80: 496.0684211 | V80: 745.3403509 | W80: 2884.796491 | Y80: 282759 | Z80: 424844 | AA80: 1644334 | AC80: 0 | AD80: 128 | AE80: 272.002807 | AG80: 0 | AH80: 72960 | AI80: 155041.6 | AK80: 11185155.97 | AL80: 1160528.14 | AM80: 2914311 | AN80: 0.1909771909 | AP80: 4.023716239 | AQ80: 8.465057056 | AR80: 3.923220763 | AT80: 1.12960479 | AU80: 5.914867551 | AX80: 5.09 | AY80: 5.089999974
B81: 352 | C81: Manchester | E81: 3582.451093 | F81: 8388.0744 | G81: 2029.199999 | I81: 2764.500003 | J81: 2764.500073 | K81: 2764.500002 | M81: 21799214.9 | N81: 1048509.3 | O81: 4573690.24 | Q81: 4613389.99 | R81: 94769.73 | S81: 1708840.32 | U81: 6085 | V81: 125 | W81: 2253.937632 | Y81: 3468450 | Z81: 71250 | AA81: 1284744.45 | AC81: 1668.797246 | AD81: 34.28096491 | AE81: 618.1372105 | AG81: 951214.43 | AH81: 19540.15 | AI81: 352338.21 | AK81: 27421414.44 | AL81: 6417000.04 | AM81: 2521000 | AN81: 0.06933554998 | AP81: 6.285001917 | AQ81: 14.71592 | AR81: 3.559999998 | AT81: 0.4100829164 | AU81: 5.914468357 | AW81: 4.850000005 | AX81: 4.850000128 | AY81: 4.850000004
B82: 887 | C82: Medway | E82: 2281.973931 | G82: 2205.278175 | K82: 2736 | M82: 3149580.42 | N82: 0 | O82: 6203435.9 | Q82: 0 | R82: 0 | S82: 1539998.4 | U82: 1380.2 | V82: 0 | W82: 2812.994737 | Y82: 786714 | Z82: 0 | AA82: 1603407 | AC82: 0 | AD82: 0 | AE82: 562.8649123 | AG82: 0 | AH82: 0 | AI82: 320833 | AK82: 9353016.32 | AL82: 1539998.4 | AM82: 2481573 | AN82: 0.1855438876 | AP82: 4.003463037 | AR82: 3.868909079 | AT82: 0.9153873507 | AU82: 4.933535471 | AY82: 4.8
B83: 315 | C83: Merton | E83: 2684.9073 | G83: 2457.452311 | K83: 3253.362186 | M83: 7403231.5 | N83: 0 | O83: 2709039.38 | Q83: 0 | R83: 0 | S83: 2150095.7 | U83: 2757.350877 | V83: 0 | W83: 1102.377193 | Y83: 1571690 | Z83: 0 | AA83: 628355 | AC83: 0 | AD83: 0 | AE83: 660.8842105 | AG83: 0 | AH83: 0 | AI83: 376704 | AK83: 10112270.88 | AL83: 2150095.7 | AM83: 2110349.05 | AN83: 0.1468302236 | AP83: 4.710363685 | AR83: 4.311319843 | AT83: 0.8189967475 | AU83: 5.577848533 | AY83: 5.707652958
B84: 806 | C84: Middlesbrough | E84: 2040.232068 | G84: 2266.785231 | M84: 4284444.39 | N84: 0 | O84: 664358.96 | Q84: 0 | R84: 0 | S84: 0 | U84: 2099.978947 | V84: 0 | W84: 293.0842105 | Y84: 1196988 | Z84: 0 | AA84: 167058 | AC84: 0 | AD84: 0 | AE84: 0 | AG84: 0 | AH84: 0 | AI84: 0 | AK84: 4948803.35 | AL84: 0 | AM84: 2192940 | AN84: 0.3070594801 | AP84: 3.579354505 | AR84: 3.976816196 | AT84: 1.607673055 | AU84: 5.235705651
B85: 826 | C85: Milton Keynes | E85: 2375.731434 | F85: 4322.082418 | G85: 2241.439354 | K85: 2901.3 | M85: 2762279.61 | N85: 569263.75 | O85: 7348889.24 | Q85: 0 | R85: 0 | S85: 974139.47 | U85: 1162.707018 | V85: 131.7105263 | W85: 3278.647368 | Y85: 662743 | Z85: 75075 | AA85: 1868829 | AC85: 0 | AD85: 0 | AE85: 335.7596491 | AG85: 0 | AH85: 0 | AI85: 191383 | AK85: 10680432.6 | AL85: 974139.47 | AM85: 0 | AN85: 0 | AP85: 4.167949884 | AQ85: 7.582600733 | AR85: 3.932349744 | AT85: 0 | AU85: 4.165277738 | AY85: 5.09
B86: 391 | C86: Newcastle upon Tyne | E86: 2416.32672 | F86: 4014.997435 | G86: 2314.950298 | K86: 2764.5 | M86: 4334004.15 | N86: 2285336.54 | O86: 3775757.04 | Q86: 0 | R86: 0 | S86: 2396001.85 | U86: 1793.633333 | V86: 569.2 | W86: 1631.031579 | Y86: 1022371 | Z86: 324444 | AA86: 929688 | AC86: 0 | AD86: 0 | AE86: 866.7035088 | AG86: 0 | AH86: 0 | AI86: 494021 | AK86: 10395097.73 | AL86: 2396001.85 | AM86: 1147074.13 | AN86: 0.08229730479 | AP86: 4.239169685 | AQ86: 7.043855149 | AR86: 4.061316313 | AT86: 0.4140278626 | AU86: 5.030879974 | AY86: 4.85
B87: 316 | C87: Newham | E87: 1978.102987 | F87: 5017.438398 | G87: 2543.255907 | J87: 3009.6 | K87: 3009.6 | M87: 7815484.9 | N87: 4886985 | O87: 4025974.1 | Q87: 0 | R87: 108345.6 | S87: 1218888 | U87: 3951 | V87: 974 | W87: 1583 | Y87: 2252070 | Z87: 555180 | AA87: 902310 | AC87: 0 | AD87: 36 | AE87: 405 | AG87: 0 | AH87: 20520 | AI87: 230850 | AK87: 16728444 | AL87: 1327233.6 | AM87: 5882372 | AN87: 0.2457331361 | AP87: 3.470356117 | AQ87: 8.802523506 | AR87: 4.461852468 | AT87: 1.485098702 | AU87: 6.043542703 | AX87: 5.28 | AY87: 5.28
B88: 926 | C88: Norfolk | E88: 1938.495835 | F88: 1947.324761 | G88: 2116.048398 | M88: 5002744.22 | N88: 451014.08 | O88: 16425083.22 | Q88: 0 | R88: 0 | S88: 0 | U88: 2580.735088 | V88: 231.6070175 | W88: 7762.149123 | Y88: 1471019 | Z88: 132016 | AA88: 4424425 | AC88: 0 | AD88: 0 | AE88: 0 | AG88: 0 | AH88: 0 | AI88: 0 | AK88: 21878841.52 | AL88: 0 | AM88: 3346110 | AN88: 0.1326508 | AP88: 3.400869887 | AQ88: 3.416359229 | AR88: 3.712365611 | AT88: 0.5551442896 | AU88: 4.185005213
B89: 812 | C89: North East Lincolnshire | E89: 1636.9298 | F89: 3554.414395 | G89: 1812.949974 | K89: 2787.3 | M89: 2074535.7 | N89: 543233 | O89: 2129491.04 | Q89: 0 | R89: 0 | S89: 1240348.5 | U89: 1267.333333 | V89: 152.8333333 | W89: 1174.6 | Y89: 722380 | Z89: 87115 | AA89: 669522 | AC89: 0 | AD89: 0 | AE89: 445 | AG89: 0 | AH89: 0 | AI89: 253650 | AK89: 4747259.74 | AL89: 1240348.5 | AM89: 1083826 | AN89: 0.1532682004 | AP89: 2.871806667 | AQ89: 6.235814728 | AR89: 3.18061399 | AT89: 0.6255246969 | AU89: 4.081242524 | AY89: 4.89
B90: 813 | C90: North Lincolnshire | E90: 2680.219228 | G90: 2481.894749 | K90: 2764.5 | M90: 2963297.4 | N90: 0 | O90: 2844839.2 | Q90: 0 | R90: 0 | S90: 853173.2 | U90: 1105.617544 | V90: 0 | W90: 1146.236842 | Y90: 630202 | Z90: 0 | AA90: 653355 | AC90: 0 | AD90: 0 | AE90: 308.6175439 | AG90: 0 | AH90: 0 | AI90: 175912 | AK90: 5808136.6 | AL90: 853173.2 | AM90: 637750 | AN90: 0.08737426703 | AP90: 4.702138997 | AR90: 4.354201315 | AT90: 0.4369739953 | AU90: 5.001174948 | AY90: 4.85
B91: 802 | C91: North Somerset | E91: 2422.751924 | G91: 2250.246804 | K91: 3170.37619 | M91: 961794.26 | N91: 0 | O91: 5428313.79 | Q91: 0 | R91: 0 | S91: 1198402.2 | U91: 396.9842105 | V91: 0 | W91: 2412.319298 | Y91: 226281 | Z91: 0 | AA91: 1375022 | AC91: 0 | AD91: 0 | AE91: 378 | AG91: 0 | AH91: 0 | AI91: 215460 | AK91: 6390108.05 | AL91: 1198402.2 | AM91: 587617 | AN91: 0.07186984523 | AP91: 4.250441973 | AR91: 3.94780141 | AT91: 0.3234417478 | AU91: 4.50038186 | AY91: 5.562063492
B92: 392 | C92: North Tyneside | E92: 1981.263648 | F92: 2864.370357 | G92: 1990.280857 | M92: 4333013.17 | N92: 367694.7 | O92: 1260025.86 | Q92: 0 | R92: 0 | S92: 0 | U92: 2186.994737 | V92: 128.3684211 | W92: 633.0894737 | Y92: 1246587 | Z92: 73170 | AA92: 360861 | AC92: 0 | AD92: 0 | AE92: 0 | AG92: 0 | AH92: 0 | AI92: 0 | AK92: 5960733.73 | AL92: 0 | AM92: 3225266 | AN92: 0.3511066944 | AP92: 3.475901136 | AQ92: 5.025211152 | AR92: 3.491720801 | AT92: 1.919095238 | AU92: 5.465846332
B93: 815 | C93: North Yorkshire | E93: 2484.551318 | F93: 3726.179963 | G93: 2264.822607 | K93: 2932.338733 | M93: 5580071.24 | N93: 782112.1 | O93: 11795116.67 | Q93: 0 | R93: 0 | S93: 2099863.2 | U93: 2245.907018 | V93: 209.8964912 | W93: 5207.964912 | Y93: 1280167 | Z93: 119641 | AA93: 2968540 | AC93: 0 | AD93: 0 | AE93: 716.1052632 | AG93: 0 | AH93: 0 | AI93: 408180 | AK93: 18157300.01 | AL93: 2099863.2 | AM93: 2771927 | AN93: 0.1203663269 | AP93: 4.358861961 | AQ93: 6.537157831 | AR93: 3.973372995 | AT93: 0.580322569 | AU93: 4.8213033 | AY93: 5.144453917
B94: 928 | C94: Northamptonshire | E94: 2265.49304 | F94: 3115.858653 | G94: 2267.272601 | I94: 2701.8 | J94: 2701.8 | K94: 2701.8 | M94: 4856012.79 | N94: 2676954.43 | O94: 17529955.1 | Q94: 4.74 | R94: 4.74 | S94: 5984117.28 | U94: 2143.468421 | V94: 859.1385965 | W94: 7731.736842 | Y94: 1221777 | Z94: 489709 | AA94: 4407090 | AC94: 0.001754385965 | AD94: 0.001754385965 | AE94: 2214.863158 | AG94: 1 | AH94: 1 | AI94: 1262472 | AK94: 25062922.32 | AL94: 5984126.76 | AM94: 3158091 | AN94: 0.0923279657 | AP94: 3.974549194 | AQ94: 5.466418689 | AR94: 3.97767123 | AT94: 0.4278647347 | AU94: 4.634183494 | AW94: 4.74 | AX94: 4.74 | AY94: 4.74
B95: 929 | C95: Northumberland | E95: 2235.213476 | G95: 2094.623653 | K95: 2965.004074 | M95: 5751031.73 | N95: 0 | O95: 3000423.44 | Q95: 0 | R95: 0 | S95: 506375.88 | U95: 2572.922807 | V95: 0 | W95: 1432.440351 | Y95: 1466566 | Z95: 0 | AA95: 816491 | AC95: 0 | AD95: 0 | AE95: 170.7842105 | AG95: 0 | AH95: 0 | AI95: 97347 | AK95: 8751455.17 | AL95: 506375.88 | AM95: 2131270 | AN95: 0.1871324164 | AP95: 3.92142715 | AR95: 3.674778338 | AT95: 0.8953396146 | AU95: 4.784524413 | AY95: 5.201761533
B96: 892 | C96: Nottingham | E96: 2311.253778 | F96: 3448.5 | G96: 2385.45 | K96: 2850 | M96: 8547795 | N96: 341837.1 | O96: 3293595 | Q96: 0 | R96: 0 | S96: 374000 | U96: 3698.336842 | V96: 99.12631579 | W96: 1380.701754 | Y96: 2108052 | Z96: 56502 | AA96: 787000 | AC96: 0 | AD96: 0 | AE96: 131.2280702 | AG96: 0 | AH96: 0 | AI96: 74800 | AK96: 12183227.1 | AL96: 374000 | AM96: 1509363 | AN96: 0.1073012713 | AP96: 4.05483119 | AQ96: 6.05 | AR96: 4.185 | AT96: 0.4987397377 | AU96: 4.648031955 | AY96: 5
B97: 891 | C97: Nottinghamshire | E97: 2144.591655 | G97: 2152.326902 | M97: 12523796.04 | N97: 0 | O97: 12049062.06 | Q97: 0 | R97: 0 | S97: 0 | U97: 5839.711263 | V97: 0 | W97: 5598.15614 | Y97: 3328635.42 | Z97: 0 | AA97: 3190949 | AC97: 0 | AD97: 0 | AE97: 0 | AG97: 0 | AH97: 0 | AI97: 0 | AK97: 24572858.1 | AL97: 0 | AM97: 6976673 | AN97: 0.221133968 | AP97: 3.762441499 | AR97: 3.776012108 | AT97: 1.070110079 | AU97: 4.839193585
B98: 353 | C98: Oldham | E98: 2430.280775 | G98: 2092.645611 | K98: 2764.5 | M98: 6108105.68 | N98: 0 | O98: 3647481.3 | Q98: 0 | R98: 0 | S98: 610954.5 | U98: 2513.333333 | V98: 0 | W98: 1743 | Y98: 1432600 | Z98: 0 | AA98: 993510 | AC98: 0 | AD98: 0 | AE98: 221 | AG98: 0 | AH98: 0 | AI98: 125970 | AK98: 9755586.98 | AL98: 610954.5 | AM98: 3787356 | AN98: 0.2675839644 | AP98: 4.263650482 | AR98: 3.67130809 | AT98: 1.484027146 | AU98: 5.546024216 | AY98: 4.85
B99: 931 | C99: Oxfordshire | E99: 2321.512074 | F99: 3604.586053 | G99: 2196.173907 | J99: 2850 | K99: 2917.363636 | M99: 6064628.54 | N99: 1706613.4 | O99: 14694869.32 | Q99: 0 | R99: 159600 | S99: 3209100 | U99: 2612.361404 | V99: 473.4561404 | W99: 6691.122807 | Y99: 1489046 | Z99: 269870 | AA99: 3813940 | AC99: 0 | AD99: 56 | AE99: 1100 | AG99: 0 | AH99: 31920 | AI99: 627000 | AK99: 22466111.26 | AL99: 3368700 | AM99: 7117729 | AN99: 0.2159994023 | AP99: 4.0728282 | AQ99: 6.32383518 | AR99: 3.85293668 | AT99: 1.142167016 | AU99: 5.287824893 | AX99: 5 | AY99: 5.118181818
B100: 874 | C100: Peterborough | E100: 2684.88 | F100: 5016.18 | G100: 2351.174652 | I100: 2878.5 | K100: 2878.5 | M100: 649740.96 | N100: 601941.6 | O100: 7193217.72 | Q100: 14392.5 | R100: 0 | S100: 1747249.5 | U100: 242 | V100: 120 | W100: 3059.414456 | Y100: 137940 | Z100: 68400 | AA100: 1743866.24 | AC100: 5 | AD100: 0 | AE100: 607 | AG100: 2850 | AH100: 0 | AI100: 345990 | AK100: 8444900.28 | AL100: 1761642 | AM100: 1700518 | AN100: 0.1428159395 | AP100: 4.710315789 | AQ100: 8.800315789 | AR100: 4.124867811 | AT100: 0.7396623741 | AU100: 5.179130403 | AW100: 5.05 | AY100: 5.05
B101: 879 | C101: Plymouth | E101: 2905.489582 | F101: 2869.039503 | G101: 2329.545548 | I101: 2901.3 | J101: 2901.3 | K101: 2901.3 | M101: 2282985.89 | N101: 397034.8 | O101: 6585539.44 | Q101: 15.27 | R101: 15.27 | S101: 2129676.36 | U101: 785.7491228 | V101: 138.3859649 | W101: 2826.963158 | Y101: 447877 | Z101: 78880 | AA101: 1611369 | AC101: 0.005263157895 | AD101: 0.005263157895 | AE101: 734.0421053 | AG101: 3 | AH101: 3 | AI101: 418404 | AK101: 9265560.13 | AL101: 2129706.9 | AM101: 1106344 | AN101: 0.08849611441 | AP101: 5.097350143 | AQ101: 5.033402637 | AR101: 4.086922015 | AT101: 0.4327511915 | AU101: 4.890058669 | AW101: 5.09 | AX101: 5.09 | AY101: 5.09
B102: 836 | C102: Poole | E102: 2420.579296 | G102: 2143.35024 | K102: 2781.6 | M102: 418152.95 | N102: 0 | O102: 3663707.53 | Q102: 0 | R102: 0 | S102: 831405.6 | U102: 172.7491228 | V102: 0 | W102: 1709.336842 | Y102: 98467 | Z102: 0 | AA102: 974322 | AC102: 0 | AD102: 0 | AE102: 298.8947368 | AG102: 0 | AH102: 0 | AI102: 170370 | AK102: 4081860.48 | AL102: 831405.6 | AM102: 0 | AN102: 0 | AP102: 4.246630343 | AR102: 3.760263578 | AT102: 0 | AU102: 3.952242698 | AY102: 4.88
B103: 851 | C103: Portsmouth | E103: 2640.528207 | F103: 4485.225769 | G103: 2272.24287 | K103: 2764.5 | M103: 1422498.87 | N103: 387499.9 | O103: 5635899.8 | Q103: 0 | R103: 0 | S103: 1704600.4 | U103: 538.7175439 | V103: 86.39473684 | W103: 2480.324561 | Y103: 307069 | Z103: 49245 | AA103: 1413785 | AC103: 0 | AD103: 0 | AE103: 616.6035088 | AG103: 0 | AH103: 0 | AI103: 351464 | AK103: 7445898.57 | AL103: 1704600.4 | AM103: 2947400 | AN103: 0.2436290803 | AP103: 4.632505626 | AQ103: 7.868817139 | AR103: 3.986391 | AT103: 1.389258768 | AU103: 5.702351978 | AY103: 4.85
B104: 870 | C104: Reading | E104: 2174.4391 | F104: 3376.368648 | G104: 2379.71996 | I104: 2850 | J104: 2850 | K104: 2850 | M104: 2094744 | N104: 1705036.55 | O104: 3228532.67 | Q104: 57000 | R104: 262555 | S104: 1050215 | U104: 963.3491228 | V104: 504.9912281 | W104: 1356.685965 | Y104: 549109 | Z104: 287845 | AA104: 773311 | AC104: 20 | AD104: 92.1245614 | AE104: 368.4964912 | AG104: 11400 | AH104: 52511 | AI104: 210043 | AK104: 7028313.22 | AL104: 1369770 | AM104: 701900 | AN104: 0.07713201036 | AP104: 3.814805439 | AQ104: 5.923453769 | AR104: 4.174947298 | AT104: 0.3725150845 | AU104: 4.829578313 | AW104: 5 | AX104: 5 | AY104: 5
B105: 317 | C105: Redbridge | E105: 2057.96774 | G105: 2230.042037 | K105: 3420 | M105: 5559823.7 | N105: 0 | O105: 6164485.64 | Q105: 0 | R105: 0 | S105: 433323.96 | U105: 2701.608772 | V105: 0 | W105: 2764.291228 | Y105: 1539917 | Z105: 0 | AA105: 1575646 | AC105: 0 | AD105: 0 | AE105: 126.7029123 | AG105: 0 | AH105: 0 | AI105: 72220.66 | AK105: 11724309.34 | AL105: 433323.96 | AM105: 4890206 | AN105: 0.2868519531 | AP105: 3.61046972 | AR105: 3.91235445 | AT105: 1.534045758 | AU105: 5.347865827 | AY105: 6
B106: 807 | C106: Redcar and Cleveland | E106: 2114.797309 | G106: 2151.765639 | I106: 5517.6 | K106: 5517.901564 | M106: 3881038.92 | N106: 0 | O106: 182998.23 | Q106: 331104.4 | R106: 0 | S106: 1771207.68 | U106: 1835.182456 | V106: 0 | W106: 85.04561404 | Y106: 1046054 | Z106: 0 | AA106: 48476 | AC106: 60.00877193 | AD106: 0 | AE106: 320.9929825 | AG106: 34205 | AH106: 0 | AI106: 182966 | AK106: 4064037.15 | AL106: 2102312.08 | AM106: 577185 | AN106: 0.08559087569 | AP106: 3.710170718 | AR106: 3.775027436 | AT106: 0.4400278722 | AU106: 5.141060524 | AW106: 9.68 | AY106: 9.68052906
B107: 318 | C107: Richmond upon Thames | E107: 2072.649168 | F107: 4286.166923 | G107: 2038.770932 | K107: 3477 | M107: 1993888.5 | N107: 334321.02 | O107: 5101358.33 | Q107: 0 | R107: 0 | S107: 837225 | U107: 962 | V107: 78 | W107: 2502.173368 | Y107: 548340 | Z107: 44460 | AA107: 1426238.82 | AC107: 0 | AD107: 0 | AE107: 240.7894737 | AG107: 0 | AH107: 0 | AI107: 137250 | AK107: 7429567.85 | AL107: 837225 | AM107: 764021 | AN107: 0.08460156667 | AP107: 3.636226611 | AQ107: 7.519591093 | AR107: 3.576791109 | AT107: 0.3543222007 | AU107: 4.188128124 | AY107: 6.1
B108: 354 | C108: Rochdale | E108: 2479.191941 | F108: 4118.079028 | G108: 2035.589117 | K108: 2821.5 | M108: 3661179.32 | N108: 1169989.6 | O108: 3584479.59 | Q108: 0 | R108: 0 | S108: 2682999 | U108: 1476.763158 | V108: 284.1105263 | W108: 1760.905263 | Y108: 841755 | Z108: 161943 | AA108: 1003716 | AC108: 0 | AD108: 0 | AE108: 950.9122807 | AG108: 0 | AH108: 0 | AI108: 542020 | AK108: 8415648.51 | AL108: 2682999 | AM108: 790476 | AN108: 0.06648732342 | AP108: 4.349459546 | AQ108: 7.224700049 | AR108: 3.571208977 | AT108: 0.3100594093 | AU108: 4.663436476 | AY108: 4.95
B109: 372 | C109: Rotherham | E109: 2103.197194 | F109: 5544.148172 | G109: 2099.38779 | K109: 2764.5 | M109: 4581744.98 | N109: 1728665.4 | O109: 3081577.16 | Q109: 0 | R109: 0 | S109: 2527999.45 | U109: 2178.466667 | V109: 311.8 | W109: 1467.845614 | Y109: 1241726 | Z109: 177726 | AA109: 836672 | AC109: 0 | AD109: 0 | AE109: 914.4508772 | AG109: 0 | AH109: 0 | AI109: 521237 | AK109: 9391987.54 | AL109: 2527999.45 | AM109: 0 | AN109: 0 | AP109: 3.689819638 | AQ109: 9.72657574 | AR109: 3.683136474 | AT109: 0 | AU109: 4.291839264 | AY109: 4.85
B110: 857 | C110: Rutland | E110: 2284.18 | F110: 2284.478571 | G110: 2282.6125 | J110: 2764.5 | K110: 2764.5 | M110: 120220 | N110: 841650 | O110: 48055 | Q110: 0 | R110: 117855 | S110: 8245 | U110: 52.63157895 | V110: 368.4210526 | W110: 21.05263158 | Y110: 30000 | Z110: 210000 | AA110: 12000 | AC110: 0 | AD110: 42.63157895 | AE110: 2.98245614 | AG110: 0 | AH110: 24300 | AI110: 1700 | AK110: 1009925 | AL110: 126100 | AM110: 172975 | AN110: 0.1321428571 | AP110: 4.007333333 | AQ110: 4.007857143 | AR110: 4.004583333 | AT110: 0.6222122302 | AU110: 4.708633094 | AX110: 4.85 | AY110: 4.85
B111: 355 | C111: Salford | E111: 3287.087461 | G111: 1995.9293 | K111: 2764.5 | M111: 8362350.5 | N111: 0 | O111: 3278366.4 | Q111: 0 | R111: 0 | S111: 3199656.55 | U111: 2544 | V111: 0 | W111: 1642.526316 | Y111: 1450080 | Z111: 0 | AA111: 936240 | AC111: 0 | AD111: 0 | AE111: 1157.408772 | AG111: 0 | AH111: 0 | AI111: 659723 | AK111: 11640716.9 | AL111: 3199656.55 | AM111: 4310541 | AN111: 0.2250827767 | AP111: 5.766820106 | AR111: 3.501630351 | AT111: 1.415128086 | AU111: 6.287145142 | AY111: 4.85
B112: 333 | C112: Sandwell | E112: 2015.056156 | G112: 2084.766834 | I112: 2764.5 | K112: 2764.5 | M112: 8017190.8 | N112: 0 | O112: 3104356.8 | Q112: 414675 | R112: 0 | S112: 2349825 | U112: 3978.64386 | V112: 0 | W112: 1489.066667 | Y112: 2267827 | Z112: 0 | AA112: 848768 | AC112: 150 | AD112: 0 | AE112: 850 | AG112: 85500 | AH112: 0 | AI112: 484500 | AK112: 11121547.6 | AL112: 2764500 | AM112: 2219951.33 | AN112: 0.1378338183 | AP112: 3.535186238 | AR112: 3.657485673 | AT112: 0.6021684861 | AU112: 4.368800731 | AW112: 4.85 | AY112: 4.85
B113: 343 | C113: Sefton | E113: 2245.575288 | F113: 4897.828258 | G113: 2084.83251 | K113: 2593.499997 | M113: 4299035.7 | N113: 1062854.51 | O113: 3193224.57 | Q113: 0 | R113: 0 | S113: 1532628.96 | U113: 1914.447368 | V113: 217.0052632 | W113: 1531.645614 | Y113: 1091235 | Z113: 123693 | AA113: 873038 | AC113: 0 | AD113: 0 | AE113: 590.9500526 | AG113: 0 | AH113: 0 | AI113: 336841.53 | AK113: 8555114.78 | AL113: 1532628.96 | AM113: 852333 | AN113: 0.07790923412 | AP113: 3.939605768 | AQ113: 8.592681154 | AR113: 3.657600895 | AT113: 0.3515054244 | AU113: 4.511729943 | AY113: 4.549999996
B114: 373 | C114: Sheffield | E114: 2287.95659 | F114: 2775.459731 | G114: 2203.544824 | I114: 2878.5 | J114: 2878.5 | K114: 2878.5 | M114: 8736387.67 | N114: 424083.43 | O114: 9439760.3 | Q114: 259065 | R114: 172710 | S114: 2466874.5 | U114: 3818.423702 | V114: 152.7975439 | W114: 4283.897561 | Y114: 2176501.51 | Z114: 87094.6 | AA114: 2441821.61 | AC114: 90 | AD114: 60 | AE114: 857 | AG114: 51300 | AH114: 34200 | AI114: 488490 | AK114: 18600231.4 | AL114: 2898649.5 | AM114: 4963921 | AN114: 0.1875810815 | AP114: 4.013958929 | AQ114: 4.869227598 | AR114: 3.865868113 | AT114: 0.940242024 | AU114: 5.012456568 | AW114: 5.05 | AX114: 5.05 | AY114: 5.05
B115: 893 | C115: Shropshire | E115: 2481.941688 | G115: 1766.915551 | K115: 1675.800005 | M115: 2867486.51 | N115: 0 | O115: 4769593.24 | Q115: 0 | R115: 0 | S115: 999999.99 | U115: 1155.34 | V115: 0 | W115: 2699.389474 | Y115: 658543.8 | Z115: 0 | AA115: 1538652 | AC115: 0 | AD115: 0 | AE115: 596.7299123 | AG115: 0 | AH115: 0 | AI115: 340136.05 | AK115: 7637079.75 | AL115: 999999.99 | AM115: 715780 | AN115: 0.07653060346 | AP115: 4.354283663 | AR115: 3.099851844 | AT115: 0.2820994818 | AU115: 3.686100318 | AY115: 2.940000009
B116: 871 | C116: Slough | E116: 2368.645386 | F116: 4324.464471 | G116: 2893.276699 | M116: 3456065.55 | N116: 2528787.5 | O116: 2335280.37 | Q116: 0 | R116: 0 | S116: 0 | U116: 1459.089474 | V116: 584.7631579 | W116: 807.1403509 | Y116: 831681 | Z116: 333315 | AA116: 460070 | AC116: 0 | AD116: 0 | AE116: 0 | AG116: 0 | AH116: 0 | AI116: 0 | AK116: 8320133.42 | AL116: 0 | AM116: 2339560 | AN116: 0.2194772315 | AP116: 4.155518222 | AQ116: 7.586779773 | AR116: 5.075924033 | AT116: 1.439670758 | AU116: 6.559544917
B117: 334 | C117: Solihull | E117: 1510.402873 | G117: 2039.952639 | K117: 2850 | M117: 3134435.74 | N117: 0 | O117: 2495896.87 | Q117: 0 | R117: 0 | S117: 1594995 | U117: 2075.231579 | V117: 0 | W117: 1223.507263 | Y117: 1182882 | Z117: 0 | AA117: 697399.14 | AC117: 0 | AD117: 0 | AE117: 559.6473684 | AG117: 0 | AH117: 0 | AI117: 318999 | AK117: 5630332.61 | AL117: 1594995 | AM117: 0 | AN117: 0 | AP117: 2.649829603 | AR117: 3.578864278 | AT117: 0 | AU117: 3.285314808 | AY117: 5
B118: 933 | C118: Somerset | E118: 2650.785 | G118: 2240.574856 | K118: 2764.5 | M118: 1717708.68 | N118: 0 | O118: 12958989.68 | Q118: 0 | R118: 0 | S118: 2498070.1 | U118: 648 | V118: 0 | W118: 5783.778947 | Y118: 369360 | Z118: 0 | AA118: 3296754 | AC118: 0 | AD118: 0 | AE118: 903.6245614 | AG118: 0 | AH118: 0 | AI118: 515066 | AK118: 14676698.36 | AL118: 2498070.1 | AM118: 1339774 | AN118: 0.07236333293 | AP118: 4.6505 | AR118: 3.93083308 | AT118: 0.3204296395 | AU118: 4.42806635 | AY118: 4.85
B119: 803 | C119: South Gloucestershire | E119: 2012.1 | G119: 2023.204024 | I119: 2821.5 | K119: 3534.039606 | M119: 130910.05 | N119: 0 | O119: 7892852.55 | Q119: 37125 | R119: 0 | S119: 1650768.5 | U119: 65.06140351 | V119: 0 | W119: 3901.164912 | Y119: 37085 | Z119: 0 | AA119: 2223664 | AC119: 13.15789474 | AD119: 0 | AE119: 467.1052632 | AG119: 7500 | AH119: 0 | AI119: 266250 | AK119: 8023762.6 | AL119: 1687893.5 | AM119: 1258789 | AN119: 0.1147436579 | AP119: 3.53 | AR119: 3.549480744 | AT119: 0.4966618649 | AU119: 4.3284472 | AW119: 4.95 | AY119: 6.200069484
B120: 393 | C120: South Tyneside | E120: 1994.949329 | F120: 3380.471493 | G120: 2192.75 | J120: 3149.25 | K120: 3136.570556 | M120: 2834665.5 | N120: 1132457.95 | O120: 749920.5 | Q120: 0 | R120: 251940 | S120: 1431927 | U120: 1420.921053 | V120: 335 | W120: 342 | Y120: 809925 | Z120: 190950 | AA120: 194940 | AC120: 0 | AD120: 80 | AE120: 456.5263158 | AG120: 0 | AH120: 45600 | AI120: 260220 | AK120: 4717043.95 | AL120: 1683867 | AM120: 401467 | AN120: 0.05901862598 | AP120: 3.499911103 | AQ120: 5.930651741 | AR120: 3.846929825 | AT120: 0.2673532516 | AU120: 4.529980954 | AX120: 5.525 | AY120: 5.502755361
B121: 852 | C121: Southampton | E121: 3124.039022 | F121: 5503.311368 | G121: 2341.294126 | I121: 2764.499958 | J121: 2764.500049 | K121: 2764.500001 | M121: 1570695.57 | N121: 523519.39 | O121: 6384844.67 | Q121: 298388.34 | R121: 56456.62 | S121: 1618455.04 | U121: 502.777193 | V121: 95.12807018 | W121: 2727.057912 | Y121: 286583 | Z121: 54223 | AA121: 1554423.01 | AC121: 107.9357368 | AD121: 20.422 | AE121: 585.4422281 | AG121: 61523.37 | AH121: 11640.54 | AI121: 333702.07 | AK121: 8479059.63 | AL121: 1973300 | AM121: 1964970 | AN121: 0.1582441683 | AP121: 5.480770213 | AQ121: 9.654932224 | AR121: 4.107533554 | AT121: 0.8535573069 | AU121: 5.39392583 | AW121: 4.849999927 | AX121: 4.850000086 | AY121: 4.850000001
B122: 882 | C122: Southend-on-Sea | E122: 2720.327129 | G122: 2333.0269 | I122: 2907 | K122: 2907 | M122: 2226463.67 | N122: 0 | O122: 4298814.9 | Q122: 40468.5 | R122: 0 | S122: 1760530.2 | U122: 818.454386 | V122: 0 | W122: 1842.591228 | Y122: 466519 | Z122: 0 | AA122: 1050277 | AC122: 13.92105263 | AD122: 0 | AE122: 605.6175439 | AG122: 7935 | AH122: 0 | AI122: 345202 | AK122: 6525278.57 | AL122: 1800998.7 | AM122: 500000 | AN122: 0.0566490248 | AP122: 4.772503735 | AR122: 4.093029648 | AT122: 0.2673892594 | AU122: 4.720103485 | AW122: 5.1 | AY122: 5.1
B123: 210 | C123: Southwark | E123: 3186.409856 | F123: 6188.667893 | G123: 2461.669592 | J123: 14158.34419 | K123: 3420 | M123: 7939024.01 | N123: 3706034.91 | O123: 4203527 | Q123: 0 | R123: 2331573.02 | S123: 3941371.02 | U123: 2491.526316 | V123: 598.8421053 | W123: 1707.591877 | Y123: 1420170 | Z123: 341340 | AA123: 973327.37 | AC123: 0 | AD123: 164.6783684 | AE123: 1152.447667 | AG123: 0 | AH123: 93866.67 | AI123: 656895.17 | AK123: 15848585.92 | AL123: 6272944.04 | AM123: 4270380 | AN123: 0.1618064023 | AP123: 5.59019273 | AQ123: 10.85731209 | AR123: 4.318718583 | AT123: 1.225149463 | AU123: 7.571699547 | AX123: 24.83920033 | AY123: 6
B124: 342 | C124: St. Helens | E124: 1977.9 | F124: 1714.79979 | G124: 1975.240078 | K124: 2764.5 | M124: 157555.35 | N124: 2216718.68 | O124: 2462535.27 | Q124: 0 | R124: 0 | S124: 1003950 | U124: 79.65789474 | V124: 1292.698246 | W124: 1246.701754 | Y124: 45405 | Z124: 736838 | AA124: 710620 | AC124: 0 | AD124: 0 | AE124: 363.1578947 | AG124: 0 | AH124: 0 | AI124: 207000 | AK124: 4836809.3 | AL124: 1003950 | AM124: 2693757 | AN124: 0.3156308929 | AP124: 3.47 | AQ124: 3.008420684 | AR124: 3.465333469 | AT124: 1.584690649 | AU124: 5.020708316 | AY124: 4.85
B125: 860 | C125: Staffordshire | E125: 1721.874657 | F125: 4784.825909 | G125: 1976.012445 | K125: 2764.499999 | M125: 6718960.33 | N125: 296472.85 | O125: 15289888.56 | Q125: 0 | R125: 0 | S125: 1508636.78 | U125: 3902.119298 | V125: 61.96105263 | W125: 7737.749123 | Y125: 2224208 | Z125: 35317.8 | AA125: 4410517 | AC125: 0 | AD125: 0 | AE125: 545.7177719 | AG125: 0 | AH125: 0 | AI125: 311059.13 | AK125: 22305321.74 | AL125: 1508636.78 | AM125: 6936723 | AN125: 0.2255794882 | AP125: 3.020832732 | AQ125: 8.39443142 | AR125: 3.466688499 | AT125: 0.9936429907 | AU125: 4.404846374 | AY125: 4.849999998
B126: 356 | C126: Stockport | E126: 2451.939502 | F126: 4222.919048 | G126: 2435.224309 | M126: 4703800.74 | N126: 1862307.3 | O126: 4756809.09 | Q126: 0 | R126: 0 | S126: 0 | U126: 1918.4 | V126: 441 | W126: 1953.335088 | Y126: 1093488 | Z126: 251370 | AA126: 1113401 | AC126: 0 | AD126: 0 | AE126: 0 | AG126: 0 | AH126: 0 | AI126: 0 | AK126: 11322917.13 | AL126: 0 | AM126: 2449222 | AN126: 0.1778388947 | AP126: 4.301648249 | AQ126: 7.408629908 | AR126: 4.27232335 | AT126: 0.996323821 | AU126: 5.602395488
B127: 808 | C127: Stockton-on-Tees | E127: 2204.257145 | G127: 2258.56306 | M127: 5806202.81 | N127: 0 | O127: 1045322.42 | Q127: 0 | R127: 0 | S127: 0 | U127: 2634.085965 | V127: 0 | W127: 462.8263158 | Y127: 1501429 | Z127: 0 | AA127: 263811 | AC127: 0 | AD127: 0 | AE127: 0 | AG127: 0 | AH127: 0 | AI127: 0 | AK127: 6851525.23 | AL127: 0 | AM127: 436230 | AN127: 0.0598579379 | AP127: 3.867117799 | AR127: 3.962391333 | AT127: 0.2471222043 | AU127: 4.128478411
B128: 861 | C128: Stoke-on-Trent | E128: 2430.270235 | F128: 5460.10303 | G128: 2427.82343 | M128: 6515554.5 | N128: 1801834 | O128: 2859976 | Q128: 0 | R128: 0 | S128: 0 | U128: 2681 | V128: 330 | W128: 1178 | Y128: 1528170 | Z128: 188100 | AA128: 671460 | AC128: 0 | AD128: 0 | AE128: 0 | AG128: 0 | AH128: 0 | AI128: 0 | AK128: 11177364.5 | AL128: 0 | AM128: 5468607 | AN128: 0.328524352 | AP128: 4.263631991 | AQ128: 9.579128123 | AR128: 4.25933935 | AT128: 2.290295385 | AU128: 6.971463063
B129: 935 | C129: Suffolk | E129: 2188.851831 | F129: 3249.576923 | G129: 2085.022701 | M129: 7281843.01 | N129: 337956 | O129: 14300153.8 | Q129: 0 | R129: 0 | S129: 0 | U129: 3326.786632 | V129: 104 | W129: 6858.512281 | Y129: 1896268.38 | Z129: 59280 | AA129: 3909352 | AC129: 0 | AD129: 0 | AE129: 0 | AG129: 0 | AH129: 0 | AI129: 0 | AK129: 21919952.81 | AL129: 0 | AM129: 9904117 | AN129: 0.3112146579 | AP129: 3.840090932 | AQ129: 5.701012146 | AR129: 3.657934563 | AT129: 1.688710184 | AU129: 5.426191026
B130: 394 | C130: Sunderland | E130: 2107.926081 | F130: 4640.188107 | G130: 2814.459478 | I130: 2758.8 | J130: 2758.8 | K130: 2758.8 | M130: 5453914.81 | N130: 3107949.15 | O130: 1910349.28 | Q130: 44140.8 | R130: 182080.8 | S130: 2027718 | U130: 2587.336842 | V130: 669.7894737 | W130: 678.7624035 | Y130: 1474782 | Z130: 381780 | AA130: 386894.57 | AC130: 16 | AD130: 66 | AE130: 735 | AG130: 9120 | AH130: 37620 | AI130: 418950 | AK130: 10472213.24 | AL130: 2253939.6 | AM130: 3559287 | AN130: 0.2185563936 | AP130: 3.698115932 | AQ130: 8.14068089 | AR130: 4.937648207 | AT130: 1.313803778 | AU130: 6.01128046 | AW130: 4.84 | AX130: 4.84 | AY130: 4.84
B131: 936 | C131: Surrey | E131: 2518.114286 | F131: 6052.142962 | G131: 2321.78144 | K131: 3420 | M131: 6736454.92 | N131: 1936048.68 | O131: 31198119.36 | Q131: 0 | R131: 0 | S131: 4329000 | U131: 2675.198246 | V131: 319.8947368 | W131: 13437.14737 | Y131: 1524863 | Z131: 182340 | AA131: 7659174 | AC131: 0 | AD131: 0 | AE131: 1265.789474 | AG131: 0 | AH131: 0 | AI131: 721500 | AK131: 39870622.96 | AL131: 4329000 | AM131: 4459783 | AN131: 0.09165305067 | AP131: 4.417744361 | AQ131: 10.61779467 | AR131: 4.073300771 | AT131: 0.4420933166 | AU131: 4.823552662 | AY131: 6
B132: 319 | C132: Sutton | E132: 2446.465883 | F132: 5070.14839 | G132: 2209.3583 | K132: 3043.8 | M132: 3449946.1 | N132: 818695.54 | O132: 3140901.28 | Q132: 0 | R132: 0 | S132: 1401840.78 | U132: 1410.175439 | V132: 161.4736842 | W132: 1421.635088 | Y132: 803800 | Z132: 92040 | AA132: 810332 | AC132: 0 | AD132: 0 | AE132: 460.5561404 | AG132: 0 | AH132: 0 | AI132: 262517 | AK132: 7409542.92 | AL132: 1401840.78 | AM132: 1684046 | AN132: 0.1604551741 | AP132: 4.292045409 | AQ132: 8.894997175 | AR132: 3.876067192 | AT132: 0.8554149487 | AU132: 5.331177093 | AY132: 5.34
B133: 866 | C133: Swindon | F133: 2174.03616 | G133: 2203.004103 | K133: 2821.5 | M133: 0 | N133: 1743577 | O133: 5695028.42 | Q133: 0 | R133: 0 | S133: 1106849.7 | U133: 0 | V133: 802 | W133: 2585.119298 | Y133: 0 | Z133: 457140 | AA133: 1473518 | AC133: 0 | AD133: 0 | AE133: 392.2912281 | AG133: 0 | AH133: 0 | AI133: 223606 | AK133: 7438605.42 | AL133: 1106849.7 | AM133: 0 | AN133: 0 | AQ133: 3.814098526 | AR133: 3.864919478 | AT133: 0 | AU133: 3.966763182 | AY133: 4.95
B134: 357 | C134: Tameside | E134: 1896.424072 | G134: 1867.089592 | K134: 2764.5 | M134: 4316361 | N134: 0 | O134: 2729999.44 | Q134: 0 | R134: 0 | S134: 1943443.5 | U134: 2276.052632 | V134: 0 | W134: 1462.168421 | Y134: 1297350 | Z134: 0 | AA134: 833436 | AC134: 0 | AD134: 0 | AE134: 703 | AG134: 0 | AH134: 0 | AI134: 400710 | AK134: 7046360.44 | AL134: 1943443.5 | AM134: 821056.5 | AN134: 0.0836885312 | AP134: 3.327059776 | AR134: 3.275595775 | AT134: 0.3243364793 | AU134: 3.875518839 | AY134: 4.85
B135: 894 | C135: Telford and Wrekin | E135: 2205.853613 | F135: 4225.524502 | G135: 2230.824257 | K135: 2764.5 | M135: 5591479.78 | N135: 598655.78 | O135: 41583.66 | Q135: 0 | R135: 0 | S135: 1382250 | U135: 2534.837193 | V135: 141.6760877 | W135: 18.64049123 | Y135: 1444857.2 | Z135: 80755.37 | AA135: 10625.08 | AC135: 0 | AD135: 0 | AE135: 500 | AG135: 0 | AH135: 0 | AI135: 285000 | AK135: 6231719.22 | AL135: 1382250 | AM135: 639750 | AN135: 0.07751051168 | AP135: 3.869918619 | AQ135: 7.413200881 | AR135: 3.913726767 | AT135: 0.3512721143 | AU135: 4.531928724 | AY135: 4.85
B136: 883 | C136: Thurrock | E136: 2188.994596 | G136: 2213.133176 | K136: 2764.5 | M136: 2573639.35 | N136: 0 | O136: 3365740.7 | Q136: 0 | R136: 0 | S136: 1299315 | U136: 1175.717544 | V136: 0 | W136: 1520.803509 | Y136: 670159 | Z136: 0 | AA136: 866858 | AC136: 0 | AD136: 0 | AE136: 470 | AG136: 0 | AH136: 0 | AI136: 267900 | AK136: 5939380.05 | AL136: 1299315 | AM136: 660300 | AN136: 0.08359291224 | AP136: 3.840341397 | AR136: 3.882689783 | AT136: 0.3658339968 | AU136: 4.376375783 | AY136: 4.85
B137: 880 | C137: Torbay | E137: 2138.461235 | G137: 2362.048723 | M137: 1416066.52 | N137: 0 | O137: 2496726.94 | Q137: 0 | R137: 0 | S137: 0 | U137: 662.1894737 | V137: 0 | W137: 1057.017544 | Y137: 377448 | Z137: 0 | AA137: 602500 | AC137: 0 | AD137: 0 | AE137: 0 | AG137: 0 | AH137: 0 | AI137: 0 | AK137: 3912793.46 | AL137: 0 | AM137: 1149654 | AN137: 0.227094505 | AP137: 3.751686378 | AR137: 4.143945129 | AT137: 1.173178577 | AU137: 5.166036831
B138: 211 | C138: Tower Hamlets | E138: 2766.390506 | F138: 5327.633232 | G138: 2762.6 | K138: 3420 | M138: 12290209.13 | N138: 4563725.4 | O138: 2594081.4 | Q138: 0 | R138: 0 | S138: 5666808 | U138: 4442.687719 | V138: 856.6140351 | W138: 939 | Y138: 2532332 | Z138: 488270 | AA138: 535230 | AC138: 0 | AD138: 0 | AE138: 1656.961404 | AG138: 0 | AH138: 0 | AI138: 944468 | AK138: 19448015.93 | AL138: 5666808 | AM138: 1883282 | AN138: 0.06975607863 | AP138: 4.853316678 | AQ138: 9.346724968 | AR138: 4.846666667 | AT138: 0.4184792125 | AU138: 5.99917915 | AY138: 6
B139: 358 | C139: Trafford | E139: 1788.386464 | G139: 2312.623053 | M139: 4050695.34 | N139: 71400.03 | O139: 3703966.46 | Q139: 0 | R139: 0 | S139: 0 | U139: 2265 | V139: 0 | W139: 1601.63 | Y139: 1291050 | Z139: 0 | AA139: 912929.1 | AC139: 0 | AD139: 0 | AE139: 0 | AG139: 0 | AH139: 0 | AI139: 0 | AK139: 7826061.83 | AL139: 0 | AM139: 1993893 | AN139: 0.2030450277 | AP139: 3.137520112 | AR139: 4.057233426 | AT139: 0.904678724 | AU139: 4.455557147
B140: 384 | C140: Wakefield | E140: 2230.497847 | F140: 4472.638566 | G140: 2247.553137 | K140: 2764.499998 | M140: 8419792.84 | N140: 913108.78 | O140: 2682738.57 | Q140: 0 | R140: 0 | S140: 3126200 | U140: 3774.849123 | V140: 204.154386 | W140: 1193.626316 | Y140: 2151664 | Z140: 116368 | AA140: 680367 | AC140: 0 | AD140: 0 | AE140: 1130.837404 | AG140: 0 | AH140: 0 | AI140: 644577.32 | AK140: 12015640.19 | AL140: 3126200 | AM140: 0 | AN140: 0 | AP140: 3.913154117 | AQ140: 7.846734326 | AR140: 3.943075678 | AT140: 0 | AU140: 4.214288891 | AY140: 4.849999997
B141: 335 | C141: Walsall | E141: 1915.125605 | F141: 4062.854993 | G141: 2257.392599 | M141: 5454869.06 | N141: 2749932.71 | O141: 1905199.75 | Q141: 0 | R141: 0 | S141: 0 | U141: 2848.308772 | V141: 676.8473684 | W141: 843.9824561 | Y141: 1623536 | Z141: 385803 | AA141: 481070 | AC141: 0 | AD141: 0 | AE141: 0 | AG141: 0 | AH141: 0 | AI141: 0 | AK141: 10110001.52 | AL141: 0 | AM141: 4275022 | AN141: 0.2971856107 | AP141: 3.359869482 | AQ141: 7.127815776 | AR141: 3.960337893 | AT141: 1.716594343 | AU141: 5.776169103
B142: 320 | C142: Waltham Forest | E142: 2479.493028 | F142: 3898.581748 | G142: 2419.828424 | I142: 3420 | J142: 3420 | K142: 3420 | M142: 6749549.77 | N142: 1118209 | O142: 4785427.22 | Q142: 473994 | R142: 438888 | S142: 2448978 | U142: 2722.149123 | V142: 286.8245614 | W142: 1977.589474 | Y142: 1551625 | Z142: 163490 | AA142: 1127226 | AC142: 138.5947368 | AD142: 128.3298246 | AE142: 716.0754386 | AG142: 78999 | AH142: 73148 | AI142: 408163 | AK142: 12653185.99 | AL142: 3361860 | AM142: 1168578 | AN142: 0.06800532883 | AP142: 4.349987768 | AQ142: 6.839617102 | AR142: 4.245313025 | AT142: 0.3434316361 | AU142: 5.050069487 | AW142: 6 | AX142: 6 | AY142: 6
B143: 212 | C143: Wandsworth | E143: 4293.560171 | F143: 7062.74864 | G143: 2309.123856 | M143: 5508637.7 | N143: 1610306.69 | O143: 6491101.1 | Q143: 0 | R143: 0 | S143: 0 | U143: 1283 | V143: 228 | W143: 2811.066667 | Y143: 731310 | Z143: 129960 | AA143: 1602308 | AC143: 0 | AD143: 0 | AE143: 0 | AG143: 0 | AH143: 0 | AI143: 0 | AK143: 13610045.49 | AL143: 0 | AM143: 4842560 | AN143: 0.2624323163 | AP143: 7.532561704 | AQ143: 12.39078709 | AR143: 4.051094484 | AT143: 1.965661327 | AU143: 7.490164911
B144: 877 | C144: Warrington | E144: 3184.516816 | F144: 2467.063306 | G144: 1985.263979 | M144: 311864.76 | N144: 2694937.72 | O144: 3749999.96 | Q144: 0 | R144: 0 | S144: 0 | U144: 97.93157895 | V144: 1092.366667 | W144: 1888.917544 | Y144: 55821 | Z144: 622649 | AA144: 1076683 | AC144: 0 | AD144: 0 | AE144: 0 | AG144: 0 | AH144: 0 | AI144: 0 | AK144: 6756802.44 | AL144: 0 | AM144: 1582132 | AN144: 0.1897283174 | AP144: 5.586871607 | AQ144: 4.328181239 | AR144: 3.482919262 | AT144: 0.9014211297 | AU144: 4.751115396
B145: 937 | C145: Warwickshire | E145: 2478.149639 | F145: 3773.468231 | G145: 2097.640991 | I145: 2821.5 | J145: 2821.5 | K145: 2821.5 | M145: 3823789.24 | N145: 1778587.84 | O145: 12071184.21 | Q145: 247500 | R145: 247500 | S145: 2101466.07 | U145: 1543.001754 | V145: 471.3403509 | W145: 5754.647368 | Y145: 879511 | Z145: 268664 | AA145: 3280149 | AC145: 87.71929825 | AD145: 87.71929825 | AE145: 744.8045614 | AG145: 50000 | AH145: 50000 | AI145: 424538.6 | AK145: 17673561.29 | AL145: 2596466.07 | AM145: 2978465 | AN145: 0.128114329 | AP145: 4.347630945 | AQ145: 6.620119703 | AR145: 3.680071914 | AT145: 0.6013623314 | AU145: 4.693950597 | AW145: 4.95 | AX145: 4.95 | AY145: 4.95
B146: 869 | C146: West Berkshire | E146: 2462.816076 | F146: 3979.695568 | G146: 2414.066273 | I146: 2998.2 | J146: 2998.2 | K146: 2998.2 | M146: 1128604.91 | N146: 827965.19 | O146: 3961804.63 | Q146: 151109.28 | R146: 68001.28 | S146: 536435.84 | U146: 458.2578947 | V146: 208.0473684 | W146: 1641.133333 | Y146: 261207 | Z146: 118587 | AA146: 935446 | AC146: 50.4 | AD146: 22.68070175 | AE146: 178.9192982 | AG146: 28728 | AH146: 12928 | AI146: 101984 | AK146: 5918374.73 | AL146: 755546.4 | AM146: 470720 | AN146: 0.06588434484 | AP146: 4.320729957 | AQ146: 6.981922049 | AR146: 4.235203988 | AT146: 0.3226584777 | AU146: 4.897346684 | AW146: 5.26 | AX146: 5.26 | AY146: 5.26
B147: 938 | C147: West Sussex | E147: 2538.309583 | F147: 3790.068191 | G147: 2228.873358 | K147: 2764.5 | M147: 999693.19 | N147: 1876562.5 | O147: 23283116.1 | Q147: 0 | R147: 0 | S147: 4962597.6 | U147: 393.8421053 | V147: 495.1263158 | W147: 10446.13684 | Y147: 224490 | Z147: 282222 | AA147: 5954298 | AC147: 0 | AD147: 0 | AE147: 1795.115789 | AG147: 0 | AH147: 0 | AI147: 1023216 | AK147: 26159371.79 | AL147: 4962597.6 | AM147: 735100 | AN147: 0.02307494111 | AP147: 4.453174707 | AQ147: 6.64924244 | AR147: 3.910304137 | AT147: 0.09821990945 | AU147: 4.256561652 | AY147: 4.85
B148: 213 | C148: Westminster | E148: 2789.252722 | F148: 15069.34167 | G148: 2686.78902 | M148: 2920347.6 | N148: 3616642 | O148: 3465203.65 | Q148: 0 | R148: 0 | S148: 0 | U148: 1047 | V148: 240 | W148: 1289.719298 | Y148: 596790 | Z148: 136800 | AA148: 735140 | AC148: 0 | AD148: 0 | AE148: 0 | AG148: 0 | AH148: 0 | AI148: 0 | AK148: 10002193.25 | AL148: 0 | AM148: 4331252.5 | AN148: 0.302178037 | AP148: 4.893425828 | AQ148: 26.43744152 | AR148: 4.713664948 | AT148: 2.948978029 | AU148: 9.759074677
B149: 359 | C149: Wigan | E149: 2333.841569 | F149: 3603.923149 | G149: 1865.504439 | I149: 2194.58473 | J149: 2194.585091 | K149: 2194.584724 | M149: 3695745.4 | N149: 677311.39 | O149: 5116330.02 | Q149: 761088.26 | R149: 89933.25 | S149: 1188382.99 | U149: 1583.545965 | V149: 187.9372456 | W149: 2742.598684 | Y149: 902621.2 | Z149: 107124.23 | AA149: 1563281.25 | AC149: 346.8028596 | AD149: 40.97961404 | AE149: 541.507 | AG149: 197677.63 | AH149: 23358.38 | AI149: 308658.99 | AK149: 9489386.81 | AL149: 2039404.5 | AM149: 109815 | AN149: 0.009435408079 | AP149: 4.094458894 | AQ149: 6.322672191 | AR149: 3.272814805 | AT149: 0.03539311976 | AU149: 3.751095815 | AW149: 3.850148649 | AX149: 3.850149283 | AY149: 3.850148638
B150: 865 | C150: Wiltshire | F150: 2362.833875 | G150: 2205.14691 | K150: 3230.244148 | M150: 0 | N150: 658380.86 | O150: 13449527.58 | Q150: 0 | R150: 0 | S150: 2376586.96 | U150: 0 | V150: 278.6403509 | W150: 6099.152632 | Y150: 0 | Z150: 158825 | AA150: 3476517 | AC150: 0 | AD150: 0 | AE150: 735.7298246 | AG150: 0 | AH150: 0 | AI150: 419366 | AK150: 14107908.44 | AL150: 2376586.96 | AM150: 2752181 | AN150: 0.143069465 | AQ150: 4.145322588 | AR150: 3.86867879 | AT150: 0.6787618245 | AU150: 4.744281561 | AY150: 5.667094996
B151: 868 | C151: Windsor and Maidenhead | E151: 2359.976013 | F151: 3592.592947 | G151: 2362.690898 | K151: 2850 | M151: 2059192.93 | N151: 908327.25 | O151: 3420958.39 | Q151: 0 | R151: 0 | S151: 285000 | U151: 872.5482456 | V151: 252.8333333 | W151: 1447.907719 | Y151: 497352.5 | Z151: 144115 | AA151: 825307.4 | AC151: 0 | AD151: 0 | AE151: 100 | AG151: 0 | AH151: 0 | AI151: 57000 | AK151: 6388478.57 | AL151: 285000 | AM151: 486049 | AN151: 0.06788841795 | AP151: 4.140308795 | AQ151: 6.302794643 | AR151: 4.145071751 | AT151: 0.318976904 | AU151: 4.698546728 | AY151: 5
B152: 344 | C152: Wirral | E152: 2929.277002 | F152: 2253.6462 | G152: 2053.853217 | J152: 2764.5 | K152: 2764.5 | M152: 653293.01 | N152: 3417782.96 | O152: 6109003.24 | Q152: 0 | R152: 174163.5 | S152: 2139189.5 | U152: 223.0219298 | V152: 1516.557018 | W152: 2974.410825 | Y152: 127122.5 | Z152: 864437.5 | AA152: 1695414.17 | AC152: 0 | AD152: 63 | AE152: 773.8070175 | AG152: 0 | AH152: 35910 | AI152: 441070 | AK152: 10180079.21 | AL152: 2313353 | AM152: 3814600 | AN152: 0.2339092756 | AP152: 5.13908246 | AQ152: 3.953765264 | AR152: 3.603251257 | AT152: 1.205643254 | AU152: 5.154319985 | AX152: 4.85 | AY152: 4.85
B153: 872 | C153: Wokingham | E153: 2053.075886 | F153: 2685.218068 | G153: 2112.999382 | K153: 2850 | M153: 1130971.07 | N153: 387387.46 | O153: 4162047.17 | Q153: 0 | R153: 0 | S153: 588745 | U153: 550.8666667 | V153: 144.2666667 | W153: 1969.734211 | Y153: 313994 | Z153: 82232 | AA153: 1122748.5 | AC153: 0 | AD153: 0 | AE153: 206.577193 | AG153: 0 | AH153: 0 | AI153: 117749 | AK153: 5680405.7 | AL153: 588745 | AM153: 1096000 | AN153: 0.1488089035 | AP153: 3.60188752 | AQ153: 4.710908892 | AR153: 3.70701646 | AT153: 0.6696305149 | AU153: 4.499935817 | AY153: 5
B154: 336 | C154: Wolverhampton | E154: 2567.997009 | F154: 4669.795703 | G154: 2488.645542 | M154: 6829678.15 | N154: 2273698.95 | O154: 1674858.45 | Q154: 0 | R154: 0 | S154: 0 | U154: 2659.535088 | V154: 486.8947368 | W154: 673 | Y154: 1515935 | Z154: 277530 | AA154: 383610 | AC154: 0 | AD154: 0 | AE154: 0 | AG154: 0 | AH154: 0 | AI154: 0 | AK154: 10778235.55 | AL154: 0 | AM154: 3554000 | AN154: 0.2479724805 | AP154: 4.50525791 | AQ154: 8.192624041 | AR154: 4.366044811 | AT154: 1.632465579 | AU154: 6.583253011
B155: 885 | C155: Worcestershire | E155: 1710 | F155: 3416.636728 | G155: 2011.523202 | M155: 3022752 | N155: 194538.5 | O155: 12753088.86 | Q155: 0 | R155: 0 | S155: 0 | U155: 1767.691228 | V155: 56.93859649 | W155: 6340.015789 | Y155: 1007584 | Z155: 32455 | AA155: 3613809 | AC155: 0 | AD155: 0 | AE155: 0 | AG155: 0 | AH155: 0 | AI155: 0 | AK155: 15970379.36 | AL155: 0 | AM155: 4197132 | AN155: 0.208113531 | AP155: 3 | AQ155: 5.994099522 | AR155: 3.528988073 | AT155: 0.9018627166 | AU155: 4.333513119
B156: 816 | C156: York | E156: 2023.677405 | F156: 4084.675482 | G156: 1953.488909 | M156: 1618042.63 | N156: 388724.95 | O156: 3415380.62 | Q156: 0 | R156: 0 | S156: 0 | U156: 799.555614 | V156: 95.16666667 | W156: 1748.349123 | Y156: 455746.7 | Z156: 54245 | AA156: 996559 | AC156: 0 | AD156: 0 | AE156: 0 | AG156: 0 | AH156: 0 | AI156: 0 | AK156: 5422148.2 | AL156: 0 | AM156: 0 | AN156: 0 | AP156: 3.550311236 | AQ156: 7.166097336 | AR156: 3.427173524 | AT156: 0 | AU156: 3.599047944
C158: England | E158: 2421.53672 | F158: 4166.384844 | G158: 2232.218498 | I158: 2917.446574 | J158: 4262.751497 | K158: 2963.518586 | M158: 695271828.1 | N158: 175989269.3 | O158: 1063558810 | Q158: 10792771.35 | R158: 8978081.49 | S158: 262070757 | U158: 287120.0847 | V158: 42240.28165 | W158: 476458.201 | Y158: 163658448.3 | Z158: 24076960.54 | AA158: 271581174.5 | AC158: 3699.389544 | AD158: 2106.170509 | AE158: 88432.29742 | AG158: 2108652.04 | AH158: 1200517.19 | AI158: 50406409.53 | AK158: 1934819907 | AL158: 281841609.9 | AM158: 386339786 | AN158: 0.1484208961 | AP158: 4.248310035 | AQ158: 7.309447096 | AR158: 3.916172803 | AT158: 0.7530517861 | AU158: 4.524394111 | AW158: 5.118327323 | AX158: 7.478511399 | AY158: 5.199155415
C160: Median | E160: 2320.782469 | F160: 4063.981649 | G160: 2236.898133 | I160: 2850 | J160: 2850 | K160: 2850 | M160: 3965867.13 | N160: 581226.085 | O160: 4708328.255 | Q160: 0 | R160: 0 | S160: 1461838.005 | U160: 1753.146491 | V160: 142.9696228 | W160: 2031.414912 | Y160: 999293.5 | Z160: 81492.685 | AA160: 1157906.5 | AC160: 0 | AD160: 0 | AE160: 480.9912281 | AG160: 0 | AH160: 0 | AI160: 274165 | AK160: 10265815.38 | AL160: 1586138.1 | AM160: 1932073 | AN160: 0.1301285931 | AP160: 4.071548192 | AQ160: 7.129792366 | AR160: 3.92438269 | AT160: 0.5908424502 | AU160: 4.793970022 | AW160: 5 | AX160: 5 | AY160: 5
C161: Min | E161: 1510.402873 | F161: 1714.79979 | G161: 1766.915551 | I161: 2194.58473 | J161: 2194.585091 | K161: 1675.800005 | M161: 0 | N161: 0 | O161: 17998.24 | Q161: 0 | R161: 0 | S161: 0 | U161: 0 | V161: 0 | W161: 2.733333333 | Y161: 0 | Z161: 0 | AA161: 1558 | AC161: 0 | AD161: 0 | AE161: 0 | AG161: 0 | AH161: 0 | AI161: 0 | AK161: 78173.14 | AL161: 0 | AM161: 0 | AN161: 0 | AP161: 2.649829603 | AQ161: 3.008420684 | AR161: 3.099851844 | AT161: 0 | AU161: 3.285314808 | AW161: 3.850148649 | AX161: 3.850149283 | AY161: 2.940000009
C162: Max | E162: 4372.272955 | F162: 15069.34167 | G162: 3420.000399 | I162: 5517.6 | J162: 36376.01154 | K162: 5517.901564 | M162: 26518570.53 | N162: 12979208.2 | O162: 45263060.46 | Q162: 4613389.99 | R162: 2331573.02 | S162: 12124500.45 | U162: 8201.005263 | V162: 2332.657895 | W162: 18183.30175 | Y162: 4674573 | Z162: 1329615 | AA162: 10364482 | AC162: 1668.797246 | AD162: 197.5877193 | AE162: 4385.784211 | AG162: 951214.43 | AH162: 112625 | AI162: 2499897 | AK162: 58635068.33 | AL162: 12124500.45 | AM162: 19640234 | AN162: 0.3866335869 | AP162: 7.670654308 | AQ162: 26.43744152 | AR162: 6.000000701 | AT162: 4.09878178 | AU162: 10.60120465 | AW162: 9.68 | AX162: 63.8175641 | AY162: 9.68052906

Sheet metadata (hidden)
A1: Columns to display | B1: Total | C1: Per pupil | D1: Per hour
A2: 3-4 yrs Private, Voluntary, Independent | B2: 14 | C2: 6 | D2: 43
A3: 3-4 yrs Nursery Schools | B3: 13 | C3: 5 | D3: 42
A4: 3-4 yrs Primary Nursery Places | B4: 12 | C4: 4 | D4: 41
A5: 2 yrs Private, Voluntary, Independent | B5: 18 | C5: 10 | D5: 50
A6: 2 yrs Nursery Schools | B6: 17 | C6: 9 | D6: 49
A7: 2yrs Primary Nursery Places | B7: 16 | C7: 8 | D7: 48
A8: Central spend | B8: 38 | C8: N/A | D8: N/A
A9: Delegated as % of central spend | B9: 39 | C9: N/A | D9: N/A
A11: 3-4 yrs Chart Choice
A12: 3-4 yrs per pupil
A13: 3-4 yrs per hour
A15: 2 yrs Chart Choice
A16: 2 yrs per pupil
A17: 2 yrs per hour
A19: Central Spend Chart Choice
A20: 3-4 yrs
A21: 2 yrs
A22: 2 yrs revenue funding
A23: Central Spend
A24: % Central Spend
A26: 3-4 yrs SortOptions
A27: Original
A28: PVI rate
A29: Nursery rate
A30: Primary Place rate
A32: 2 yrs SortOptions
A33: Original
A34: PVI rate
A35: Nursery rate
A36: Primary Place rate
A38: Central spend SortOptions
A39: Original
A40: 3-4 yrs PVI
A41: 3-4 yrs Nursery
A42: 3-4 yrs Primary Place
A43: 2 yrs PVI
A44: 2 yrs Nursery
A45: 2 yrs Primary Place
A46: 2 yrs revenue funding
A47: Central spend
A48: % Central spend
A50: 1
A51: =INDEX(LAs,A50) -> Choice
A52: 1
A53: 1
A54: 1
A55: 2
A56: 2
A57: 1

Sheet StatNeighbours - std (hidden)
A1: This Sheet sent by Andrea Stoker to R Boland. The table has been modified by removing empty space and LA names. An autofilter has been added and the list sorted by LA.
A3: LA No | B3: Region | C3: Choice | D3: LA No | E3: LA No | F3: LA No | G3: LA No | H3: LA No | I3: LA No | J3: LA No | K3: LA No | L3: LA No | M3: LA No | N3: Proximity | O3: Proximity | P3: Proximity | Q3: Proximity | R3: Proximity | S3: Proximity | T3: Proximity | U3: Proximity | V3: Proximity | W3: Proximity
A4: 301 | B4: L | C4: Barking and Dagenham | D4: 892 | E4: 333 | F4: 203 | G4: 852 | H4: 810 | I4: 806 | J4: 330 | K4: 335 | L4: 331 | M4: 874 | N4: Close | O4: Close | P4: Close | Q4: Close | R4: Close | S4: Close | T4: Close | U4: Close | V4: Close | W4: Close
A5: 302 | B5: L | C5: Barnet | D5: 314 | E5: 315 | F5: 312 | G5: 870 | H5: 319 | I5: 313 | J5: 317 | K5: 305 | L5: 318 | M5: 822 | N5: Close | O5: Close | P5: Close | Q5: Close | R5: Close | S5: Close | T5: Close | U5: Somewhat close | V5: Somewhat close | W5: Somewhat close
A6: 370 | B6: YH | C6: Barnsley | D6: 805 | E6: 372 | F6: 807 | G6: 384 | H6: 371 | I6: 394 | J6: 840 | K6: 342 | L6: 861 | M6: 390 | N6: Very Close | O6: Very Close | P6: Very Close | Q6: Very Close | R6: Very Close | S6: Very Close | T6: Very Close | U6: Very Close | V6: Very Close | W6: Very Close
A7: 800 | B7: SW | C7: Bath and North East Somerset | D7: 916 | E7: 873 | F7: 931 | G7: 938 | H7: 850 | I7: 865 | J7: 802 | K7: 893 | L7: 835 | M7: 845 | N7: Extremely Close | O7: Very Close | P7: Very Close | Q7: Very Close | R7: Very Close | S7: Very Close | T7: Very Close | U7: Very Close | V7: Very Close | W7: Very Close
A8: 822 | B8: EE | C8: Bedford Borough | D8: 826 | E8: 358 | F8: 886 | G8: 919 | H8: 866 | I8: 928 | J8: 319 | K8: 305 | L8: 937 | M8: 356 | N8: Very Close | O8: Very Close | P8: Very Close | Q8: Very Close | R8: Very Close | S8: Very Close | T8: Very Close | U8: Very Close | V8: Very Close | W8: Very Close
A9: 303 | B9: L | C9: Bexley | D9: 311 | E9: 887 | F9: 866 | G9: 881 | H9: 886 | I9: 883 | J9: 882 | K9: 356 | L9: 319 | M9: 938 | N9: Extremely Close | O9: Very Close | P9: Very Close | Q9: Very Close | R9: Very Close | S9: Very Close | T9: Very Close | U9: Very Close | V9: Very Close | W9: Very Close
A10: 330 | B10: WM | C10: Birmingham | D10: 821 | E10: 333 | F10: 336 | G10: 892 | H10: 301 | I10: 331 | J10: 308 | K10: 380 | L10: 831 | M10: 335 | N10: Close | O10: Close | P10: Close | Q10: Close | R10: Close | S10: Somewhat close | T10: Somewhat close | U10: Somewhat close | V10: Somewhat close | W10: Somewhat close
A11: 889 | B11: NW | C11: Blackburn with Darwen | D11: 380 | E11: 335 | F11: 331 | G11: 354 | H11: 350 | I11: 353 | J11: 382 | K11: 831 | L11: 874 | M11: 806 | N11: Very Close | O11: Close | P11: Close | Q11: Close | R11: Close | S11: Close | T11: Close | U11: Close | V11: Close | W11: Close
A12: 890 | B12: NW | C12: Blackpool | D12: 880 | E12: 357 | F12: 807 | G12: 879 | H12: 805 | I12: 812 | J12: 370 | K12: 921 | L12: 371 | M12: 861 | N12: Very Close | O12: Very Close | P12: Very Close | Q12: Very Close | R12: Very Close | S12: Very Close | T12: Very Close | U12: Close | V12: Close | W12: Close
A13: 350 | B13: NW | C13: Bolton | D13: 382 | E13: 331 | F13: 381 | G13: 808 | H13: 357 | I13: 831 | J13: 383 | K13: 332 | L13: 342 | M13: 894 | N13: Very Close | O13: Very Close | P13: Very Close | Q13: Very Close | R13: Very Close | S13: Very Close | T13: Very Close | U13: Very Close | V13: Very Close | W13: Very Close
A14: 837 | B14: SW | C14: Bournemouth | D14: 882 | E14: 880 | F14: 921 | G14: 851 | H14: 836 | I14: 845 | J14: 879 | K14: 866 | L14: 878 | M14: 886 | N14: Very Close | O14: Very Close | P14: Very Close | Q14: Very Close | R14: Very Close | S14: Very Close | T14: Very Close | U14: Very Close | V14: Very Close | W14: Very Close
A15: 867 | B15: SE | C15: Bracknell Forest | D15: 919 | E15: 823 | F15: 869 | G15: 825 | H15: 850 | I15: 936 | J15: 868 | K15: 895 | L15: 931 | M15: 873 | N15: Extremely Close | O15: Very Close | P15: Very Close | Q15: Very Close | R15: Very Close | S15: Very Close | T15: Very Close | U15: Very Close | V15: Very Close | W15: Very Close
A16: 380 | B16: YH | C16: Bradford | D16: 354 | E16: 353 | F16: 889 | G16: 382 | H16: 335 | I16: 350 | J16: 831 | K16: 331 | L16: 381 | M16: 874 | N16: Very Close | O16: Very Close | P16: Very Close | Q16: Very Close | R16: Close | S16: Close | T16: Close | U16: Close | V16: Close | W16: Close
A17: 304 | B17: L | C17: Brent | D17: 307 | E17: 320 | F17: 309 | G17: 306 | H17: 209 | I17: 316 | J17: 308 | K17: 315 | L17: 310 | M17: 317 | N17: Somewhat close | O17: Somewhat close | P17: Not Close | Q17: Not Close | R17: Not Close | S17: Not Close | T17: Not Close | U17: Not Close | V17: Not Close | W17: Not Close
A18: 846 | B18: SE | C18: Brighton and Hove | D18: 801 | E18: 837 | F18: 870 | G18: 851 | H18: 373 | I18: 852 | J18: 800 | K18: 882 | L18: 816 | M18: 879 | N18: Very Close | O18: Very Close | P18: Close | Q18: Close | R18: Close | S18: Close | T18: Close | U18: Close | V18: Close | W18: Close
A19: 801 | B19: SW | C19: Bristol, City of | D19: 852 | E19: 851 | F19: 846 | G19: 870 | H19: 831 | I19: 874 | J19: 373 | K19: 879 | L19: 837 | M19: 882 | N19: Very Close | O19: Very Close | P19: Very Close | Q19: Very Close | R19: Very Close | S19: Very Close | T19: Very Close | U19: Close | V19: Close | W19: Close
A20: 305 | B20: L | C20: Bromley | D20: 919 | E20: 358 | F20: 319 | G20: 356 | H20: 867 | I20: 334 | J20: 938 | K20: 850 | L20: 822 | M20: 800 | N20: Very Close | O20: Very Close | P20: Very Close | Q20: Very Close | R20: Very Close | S20: Very Close | T20: Very Close | U20: Very Close | V20: Very Close | W20: Very Close
A21: 825 | B21: SE | C21: Buckinghamshire | D21: 936 | E21: 869 | F21: 867 | G21: 868 | H21: 919 | I21: 823 | J21: 931 | K21: 850 | L21: 873 | M21: 872 | N21: Very Close | O21: Very Close | P21: Very Close | Q21: Very Close | R21: Very Close | S21: Very Close | T21: Very Close | U21: Very Close | V21: Very Close | W21: Very Close
A22: 351 | B22: NW | C22: Bury | D22: 888 | E22: 808 | F22: 381 | G22: 343 | H22: 356 | I22: 877 | J22: 841 | K22: 891 | L22: 896 | M22: 334 | N22: Extremely Close | O22: Very Close | P22: Very Close | Q22: Very Close | R22: Very Close | S22: Very Close | T22: Very Close | U22: Very Close | V22: Very Close | W22: Very Close
A23: 381 | B23: YH | C23: Calderdale | D23: 888 | E23: 351 | F23: 808 | G23: 382 | H23: 350 | I23: 332 | J23: 841 | K23: 342 | L23: 891 | M23: 383 | N23: Very Close | O23: Very Close | P23: Very Close | Q23: Very Close | R23: Very Close | S23: Very Close | T23: Very Close | U23: Very Close | V23: Very Close | W23: Very Close
A24: 873 | B24: EE | C24: Cambridgeshire | D24: 931 | E24: 800 | F24: 865 | G24: 850 | H24: 916 | I24: 869 | J24: 919 | K24: 885 | L24: 938 | M24: 893 | N24: Extremely Close | O24: Very Close | P24: Very Close | Q24: Very Close | R24: Very Close | S24: Very Close | T24: Very Close | U24: Very Close | V24: Very Close | W24: Very Close
A25: 202 | B25: L | C25: Camden | D25: 213 | E25: 205 | F25: 206 | G25: 207 | H25: 212 | I25: 203 | J25: 309 | K25: 201 | L25: 352 | M25: 302 | N25: Close | O25: Close | P25: Close | Q25: Somewhat close | R25: Somewhat close | S25: Not Close | T25: Not Close | U25: Not Close | V25: Not Close | W25: Not Close
A26: 823 | B26: EE | C26: Central Bedfordshire | D26: 850 | E26: 869 | F26: 881 | G26: 919 | H26: 895 | I26: 867 | J26: 803 | K26: 937 | L26: 855 | M26: 334 | N26: Extremely Close | O26: Very Close | P26: Very Close | Q26: Very Close | R26: Very Close | S26: Very Close | T26: Very Close | U26: Very Close | V26: Very Close | W26: Very Close
A27: 895 | B27: NW | C27: Cheshire East | D27: 896 | E27: 850 | F27: 823 | G27: 937 | H27: 869 | I27: 877 | J27: 334 | K27: 815 | L27: 919 | M27: 885 | N27: Very Close | O27: Very Close | P27: Very Close | Q27: Very Close | R27: Very Close | S27: Very Close | T27: Very Close | U27: Very Close | V27: Very Close | W27: Very Close
A28: 896 | B28: NW | C28: Cheshire West and Chester | D28: 937 | E28: 877 | F28: 356 | G28: 895 | H28: 860 | I28: 334 | J28: 811 | K28: 885 | L28: 816 | M28: 815 | N28: Extremely Close | O28: Extremely Close | P28: Very Close | Q28: Very Close | R28: Very Close | S28: Very Close | T28: Very Close | U28: Very Close | V28: Very Close | W28: Very Close
A29: 201 | B29: L | C29: City of London | D29: 207 | E29: 213 | F29: 202 | G29: 212 | H29: 205 | I29: 318 | J29: 206 | K29: 846 | L29: 302 | M29: 391 | N29: Somewhat close | O29: Not Close | P29: Not Close | Q29: Not Close | R29: Not Close | S29: Not Close | T29: Not Close | U29: Not Close | V29: Not Close | W29: Not Close
A30: 908 | B30: SW | C30: Cornwall | D30: 926 | E30: 878 | F30: 933 | G30: 884 | H30: 935 | I30: 893 | J30: 909 | K30: 925 | L30: 835 | M30: 921 | N30: Extremely Close | O30: Extremely Close | P30: Extremely Close | Q30: Very Close | R30: Very Close | S30: Very Close | T30: Very Close | U30: Very Close | V30: Very Close | W30: Very Close
A31: 331 | B31: WM | C31: Coventry | D31: 831 | E31: 350 | F31: 335 | G31: 874 | H31: 894 | I31: 357 | J31: 382 | K31: 383 | L31: 373 | M31: 883 | N31: Very Close | O31: Very Close | P31: Very Close | Q31: Very Close | R31: Very Close | S31: Very Close | T31: Very Close | U31: Very Close | V31: Very Close | W31: Close
A32: 306 | B32: L | C32: Croydon | D32: 308 | E32: 320 | F32: 317 | G32: 315 | H32: 330 | I32: 307 | J32: 870 | K32: 312 | L32: 821 | M32: 203 | N32: Very Close | O32: Close | P32: Somewhat close | Q32: Somewhat close | R32: Somewhat close | S32: Somewhat close | T32: Somewhat close | U32: Somewhat close | V32: Somewhat close | W32: Somewhat close
A33: 909 | B33: NW | C33: Cumbria | D33: 830 | E33: 925 | F33: 926 | G33: 891 | H33: 860 | I33: 888 | J33: 878 | K33: 908 | L33: 813 | M33: 893 | N33: Extremely Close | O33: Very Close | P33: Very Close | Q33: Very Close | R33: Very Close | S33: Very Close | T33: Very Close | U33: Very Close | V33: Very Close | W33: Very Close
A34: 841 | B34: NE | C34: Darlington | D34: 808 | E34: 392 | F34: 342 | G34: 840 | H34: 359 | I34: 351 | J34: 888 | K34: 357 | L34: 876 | M34: 381 | N34: Extremely Close | O34: Very Close | P34: Very Close | Q34: Very Close | R34: Very Close | S34: Very Close | T34: Very Close | U34: Very Close | V34: Very Close | W34: Very Close
A35: 831 | B35: EM | C35: Derby | D35: 874 | E35: 331 | F35: 894 | G35: 350 | H35: 373 | I35: 335 | J35: 383 | K35: 851 | L35: 332 | M35: 357 | N35: Very Close | O35: Very Close | P35: Very Close | Q35: Very Close | R35: Very Close | S35: Very Close | T35: Very Close | U35: Very Close | V35: Very Close | W35: Very Close
A36: 830 | B36: EM | C36: Derbyshire | D36: 891 | E36: 860 | F36: 909 | G36: 925 | H36: 888 | I36: 359 | J36: 928 | K36: 332 | L36: 886 | M36: 937 | N36: Extremely Close | O36: Extremely Close | P36: Extremely Close | Q36: Very Close | R36: Very Close | S36: Very Close | T36: Very Close | U36: Very Close | V36: Very Close | W36: Very Close
A37: 878 | B37: SW | C37: Devon | D37: 933 | E37: 893 | F37: 935 | G37: 908 | H37: 835 | I37: 884 | J37: 916 | K37: 926 | L37: 845 | M37: 885 | N37: Extremely Close | O37: Extremely Close | P37: Extremely Close | Q37: Extremely Close | R37: Extremely Close | S37: Extremely Close | T37: Very Close | U37: Very Close | V37: Very Close | W37: Very Close
A38: 371 | B38: YH | C38: Doncaster | D38: 372 | E38: 807 | F38: 359 | G38: 342 | H38: 357 | I38: 384 | J38: 332 | K38: 812 | L38: 370 | M38: 813 | N38: Extremely Close | O38: Extremely Close | P38: Extremely Close | Q38: Very Close | R38: Very Close | S38: Very Close | T38: Very Close | U38: Very Close | V38: Very Close | W38: Very Close
A39: 835 | B39: SW | C39: Dorset | D39: 893 | E39: 878 | F39: 916 | G39: 885 | H39: 938 | I39: 933 | J39: 845 | K39: 935 | L39: 802 | M39: 836 | N39: Extremely Close | O39: Extremely Close | P39: Extremely Close | Q39: Very Close | R39: Very Close | S39: Very Close | T39: Very Close | U39: Very Close | V39: Very Close | W39: Very Close
A40: 332 | B40: WM | C40: Dudley | D40: 359 | E40: 371 | F40: 891 | G40: 883 | H40: 372 | I40: 888 | J40: 830 | K40: 894 | L40: 808 | M40: 350 | N40: Very Close | O40: Very Close | P40: Very Close | Q40: Very Close | R40: Very Close | S40: Very Close | T40: Very Close | U40: Very Close | V40: Very Close | W40: Very Close
A41: 840 | B41: NE | C41: Durham | D41: 384 | E41: 392 | F41: 394 | G41: 342 | H41: 841 | I41: 390 | J41: 370 | K41: 808 | L41: 359 | M41: 371 | N41: Extremely Close | O41: Very Close | P41: Very Close | Q41: Very Close | R41: Very Close | S41: Very Close | T41: Very Close | U41: Very Close | V41: Very Close | W41: Very Close
A42: 307 | B42: L | C42: Ealing | D42: 313 | E42: 315 | F42: 310 | G42: 317 | H42: 308 | I42: 302 | J42: 871 | K42: 306 | L42: 304 | M42: 312 | N42: Close | O42: Close | P42: Close | Q42: Close | R42: Somewhat close | S42: Somewhat close | T42: Somewhat close | U42: Somewhat close | V42: Somewhat close | W42: Somewhat close
A43: 811 | B43: YH | C43: East Riding of Yorkshire | D43: 815 | E43: 860 | F43: 937 | G43: 896 | H43: 885 | I43: 877 | J43: 895 | K43: 830 | L43: 891 | M43: 855 | N43: Extremely Close | O43: Very Close | P43: Very Close | Q43: Very Close | R43: Very Close | S43: Very Close | T43: Very Close | U43: Very Close | V43: Very Close | W43: Very Close
A44: 845 | B44: SE | C44: East Sussex | D44: 886 | E44: 835 | F44: 938 | G44: 916 | H44: 878 | I44: 881 | J44: 802 | K44: 885 | L44: 893 | M44: 935 | N44: Very Close | O44: Very Close | P44: Very Close | Q44: Very Close | R44: Very Close | S44: Very Close | T44: Very Close | U44: Very Close | V44: Very Close | W44: Very Close
A45: 308 | B45: L | C45: Enfield | D45: 306 | E45: 312 | F45: 317 | G45: 320 | H45: 870 | I45: 315 | J45: 821 | K45: 330 | L45: 319 | M45: 302 | N45: Very Close | O45: Close | P45: Close | Q45: Close | R45: Close | S45: Close | T45: Close | U45: Somewhat close | V45: Somewhat close | W45: Somewhat close
A46: 881 | B46: EE | C46: Essex | D46: 886 | E46: 938 | F46: 850 | G46: 885 | H46: 823 | I46: 866 | J46: 802 | K46: 937 | L46: 860 | M46: 855 | N46: Extremely Close | O46: Very Close | P46: Very Close | Q46: Very Close | R46: Very Close | S46: Very Close | T46: Very Close | U46: Very Close | V46: Very Close | W46: Very Close
A47: 390 | B47: NE | C47: Gateshead | D47: 394 | E47: 393 | F47: 840 | G47: 392 | H47: 370 | I47: 384 | J47: 805 | K47: 342 | L47: 876 | M47: 355 | N47: Extremely Close | O47: Very Close | P47: Very Close | Q47: Very Close | R47: Very Close | S47: Very Close | T47: Very Close | U47: Very Close | V47: Very Close | W47: Very Close
A48: 916 | B48: SW | C48: Gloucestershire | D48: 893 | E48: 835 | F48: 800 | G48: 865 | H48: 938 | I48: 935 | J48: 878 | K48: 885 | L48: 933 | M48: 873 | N48: Extremely Close | O48: Extremely Close | P48: Extremely Close | Q48: Extremely Close | R48: Very Close | S48: Very Close | T48: Very Close | U48: Very Close | V48: Very Close | W48: Very Close
A49: 203 | B49: L | C49: Greenwich | D49: 301 | E49: 352 | F49: 892 | G49: 308 | H49: 330 | I49: 320 | J49: 206 | K49: 801 | L49: 852 | M49: 205 | N49: Close | O49: Close | P49: Somewhat close | Q49: Somewhat close | R49: Somewhat close | S49: Somewhat close | T49: Somewhat close | U49: Somewhat close | V49: Somewhat close | W49: Somewhat close
A50: 204 | B50: L | C50: Hackney | D50: 210 | E50: 208 | F50: 309 | G50: 209 | H50: 316 | I50: 206 | J50: 320 | K50: 205 | L50: 203 | M50: 304 | N50: Close | O50: Close | P50: Somewhat close | Q50: Somewhat close | R50: Not Close | S50: Not Close | T50: Not Close | U50: Not Close | V50: Not Close | W50: Not Close
A51: 876 | B51: NW | C51: Halton | D51: 805 | E51: 342 | F51: 357 | G51: 807 | H51: 394 | I51: 808 | J51: 841 | K51: 812 | L51: 355 | M51: 393 | N51: Very Close | O51: Very Close | P51: Very Close | Q51: Very Close | R51: Very Close | S51: Very Close | T51: Very Close | U51: Very Close | V51: Very Close | W51: Very Close
A52: 205 | B52: L | C52: Hammersmith and Fulham | D52: 212 | E52: 206 | F52: 213 | G52: 202 | H52: 207 | I52: 309 | J52: 203 | K52: 320 | L52: 210 | M52: 208 | N52: Close | O52: Close | P52: Close | Q52: Close | R52: Somewhat close | S52: Somewhat close | T52: Somewhat close | U52: Not Close | V52: Not Close | W52: Not Close
A53: 850 | B53: SE | C53: Hampshire | D53: 823 | E53: 938 | F53: 803 | G53: 802 | H53: 881 | I53: 885 | J53: 869 | K53: 919 | L53: 873 | M53: 895 | N53: Extremely Close | O53: Extremely Close | P53: Extremely Close | Q53: Extremely Close | R53: Very Close | S53: Very Close | T53: Very Close | U53: Very Close | V53: Very Close | W53: Very Close
A54: 309 | B54: L | C54: Haringey | D54: 209 | E54: 208 | F54: 204 | G54: 320 | H54: 210 | I54: 206 | J54: 205 | K54: 212 | L54: 203 | M54: 306 | N54: Close | O54: Close | P54: Somewhat close | Q54: Somewhat close | R54: Somewhat close | S54: Somewhat close | T54: Somewhat close | U54: Not Close | V54: Not Close | W54: Not Close
A55: 310 | B55: L | C55: Harrow | D55: 307 | E55: 317 | F55: 313 | G55: 315 | H55: 302 | I55: 312 | J55: 314 | K55: 871 | L55: 308 | M55: 306 | N55: Close | O55: Close | P55: Somewhat close | Q55: Somewhat close | R55: Not Close | S55: Not Close | T55: Not Close | U55: Not Close | V55: Not Close | W55: Not Close
A56: 805 | B56: NE | C56: Hartlepool | D56: 876 | E56: 807 | F56: 370 | G56: 357 | H56: 372 | I56: 342 | J56: 371 | K56: 812 | L56: 394 | M56: 393 | N56: Very Close | O56: Very Close | P56: Very Close | Q56: Very Close | R56: Very Close | S56: Very Close | T56: Very Close | U56: Very Close | V56: Very Close | W56: Very Close
A57: 311 | B57: L | C57: Havering | D57: 303 | E57: 881 | F57: 887 | G57: 886 | H57: 866 | I57: 883 | J57: 351 | K57: 334 | L57: 356 | M57: 860 | N57: Extremely Close | O57: Very Close | P57: Very Close | Q57: Very Close | R57: Very Close | S57: Very Close | T57: Very Close | U57: Very Close | V57: Very Close | W57: Very Close
A58: 884 | B58: WM | C58: Herefordshire | D58: 933 | E58: 878 | F58: 893 | G58: 908 | H58: 935 | I58: 926 | J58: 865 | K58: 835 | L58: 916 | M58: 845 | N58: Extremely Close | O58: Extremely Close | P58: Very Close | Q58: Very Close | R58: Very Close | S58: Very Close | T58: Very Close | U58: Very Close | V58: Very Close | W58: Very Close
A59: 919 | B59: EE | C59: Hertfordshire | D59: 867 | E59: 850 | F59: 823 | G59: 873 | H59: 931 | I59: 869 | J59: 825 | K59: 895 | L59: 358 | M59: 936 | N59: Extremely Close | O59: Very Close | P59: Very Close | Q59: Very Close | R59: Very Close | S59: Very Close | T59: Very Close | U59: Very Close | V59: Very Close | W59: Very Close
A60: 312 | B60: L | C60: Hillingdon | D60: 319 | E60: 822 | F60: 331 | G60: 870 | H60: 317 | I60: 313 | J60: 302 | K60: 303 | L60: 871 | M60: 831 | N60: Very Close | O60: Close | P60: Close | Q60: Close | R60: Close | S60: Close | T60: Close | U60: Close | V60: Close | W60: Close
A61: 313 | B61: L | C61: Hounslow | D61: 307 | E61: 312 | F61: 871 | G61: 317 | H61: 302 | I61: 315 | J61: 308 | K61: 310 | L61: 856 | M61: 870 | N61: Close | O61: Close | P61: Close | Q61: Close | R61: Close | S61: Somewhat close | T61: Somewhat close | U61: Somewhat close | V61: Somewhat close | W61: Somewhat close
A62: 921 | B62: SE | C62: Isle of Wight | D62: 880 | E62: 882 | F62: 837 | G62: 845 | H62: 908 | I62: 878 | J62: 926 | K62: 909 | L62: 891 | M62: 836 | N62: Extremely Close | O62: Very Close | P62: Very Close | Q62: Very Close | R62: Very Close | S62: Very Close | T62: Very Close | U62: Very Close | V62: Very Close | W62: Very Close
A63: 420 | B63: SW | C63: Isles of Scilly | D63: 884 | E63: 908 | F63: 865 | G63: 926 | H63: 893 | I63: 933 | J63: 878 | K63: 935 | L63: 857 | M63: 873 | N63: Not Close | O63: Not Close | P63: Not Close | Q63: Not Close | R63: Not Close | S63: Not Close | T63: Not Close | U63: Not Close | V63: Not Close | W63: Not Close
A64: 206 | B64: L | C64: Islington | D64: 205 | E64: 202 | F64: 213 | G64: 309 | H64: 203 | I64: 210 | J64: 212 | K64: 352 | L64: 208 | M64: 207 | N64: Close | O64: Close | P64: Somewhat close | Q64: Somewhat close | R64: Somewhat close | S64: Somewhat close | T64: Somewhat close | U64: Not Close | V64: Not Close | W64: Not Close
A65: 207 | B65: L | C65: Kensington and Chelsea | D65: 213 | E65: 212 | F65: 205 | G65: 202 | H65: 201 | I65: 206 | J65: 302 | K65: 318 | L65: 315 | M65: 203 | N65: Close | O65: Somewhat close | P65: Somewhat close | Q65: Somewhat close | R65: Somewhat close | S65: Not Close | T65: Not Close | U65: Not Close | V65: Not Close | W65: Not Close
A66: 886 | B66: SE | C66: Kent | D66: 881 | E66: 866 | F66: 845 | G66: 928 | H66: 885 | I66: 937 | J66: 938 | K66: 860 | L66: 888 | M66: 891 | N66: Extremely Close | O66: Extremely Close | P66: Very Close | Q66: Very Close | R66: Very Close | S66: Very Close | T66: Very Close | U66: Very Close | V66: Very Close | W66: Very Close
A67: 810 | B67: YH | C67: Kingston Upon Hull, City of | D67: 861 | E67: 806 | F67: 805 | G67: 355 | H67: 393 | I67: 852 | J67: 879 | K67: 370 | L67: 372 | M67: 876 | N67: Very Close | O67: Very Close | P67: Very Close | Q67: Close | R67: Close | S67: Close | T67: Close | U67: Close | V67: Close | W67: Close
A68: 314 | B68: L | C68: Kingston upon Thames | D68: 302 | E68: 319 | F68: 315 | G68: 318 | H68: 305 | I68: 868 | J68: 312 | K68: 919 | L68: 936 | M68: 870 | N68: Close | O68: Close | P68: Close | Q68: Close | R68: Close | S68: Close | T68: Close | U68: Close | V68: Close | W68: Close
A69: 382 | B69: YH | C69: Kirklees | D69: 350 | E69: 381 | F69: 354 | G69: 351 | H69: 383 | I69: 808 | J69: 353 | K69: 831 | L69: 332 | M69: 888 | N69: Very Close | O69: Very Close | P69: Very Close | Q69: Very Close | R69: Very Close | S69: Very Close | T69: Very Close | U69: Very Close | V69: Very Close | W69: Very Close
A70: 340 | B70: NW | C70: Knowsley | D70: 355 | E70: 806 | F70: 341 | G70: 393 | H70: 876 | I70: 805 | J70: 391 | K70: 354 | L70: 357 | M70: 390 | N70: Very Close | O70: Very Close | P70: Very Close | Q70: Very Close | R70: Very Close | S70: Close | T70: Close | U70: Close | V70: Close | W70: Close
A71: 208 | B71: L | C71: Lambeth | D71: 309 | E71: 209 | F71: 210 | G71: 204 | H71: 206 | I71: 205 | J71: 320 | K71: 212 | L71: 203 | M71: 304 | N71: Close | O71: Close | P71: Close | Q71: Close | R71: Not Close | S71: Not Close | T71: Not Close | U71: Not Close | V71: Not Close | W71: Not Close
A72: 888 | B72: NW | C72: Lancashire | D72: 891 | E72: 351 | F72: 381 | G72: 343 | H72: 830 | I72: 808 | J72: 886 | K72: 860 | L72: 928 | M72: 332 | N72: Extremely Close | O72: Extremely Close | P72: Very Close | Q72: Very Close | R72: Very Close | S72: Very Close | T72: Very Close | U72: Very Close | V72: Very Close | W72: Very Close
A73: 383 | B73: YH | C73: Leeds | D73: 373 | E73: 350 | F73: 808 | G73: 841 | H73: 381 | I73: 342 | J73: 831 | K73: 382 | L73: 392 | M73: 826 | N73: Very Close | O73: Very Close | P73: Very Close | Q73: Very Close | R73: Very Close | S73: Very Close | T73: Very Close | U73: Very Close | V73: Very Close | W73: Very Close
A74: 856 | B74: EM | C74: Leicester | D74: 336 | E74: 313 | F74: 333 | G74: 889 | H74: 871 | I74: 331 | J74: 312 | K74: 335 | L74: 330 | M74: 852 | N74: Somewhat close | O74: Somewhat close | P74: Somewhat close | Q74: Somewhat close | R74: Somewhat close | S74: Not Close | T74: Not Close | U74: Not Close | V74: Not Close | W74: Not Close
A75: 855 | B75: EM | C75: Leicestershire | D75: 803 | E75: 937 | F75: 885 | G75: 802 | H75: 850 | I75: 860 | J75: 881 | K75: 938 | L75: 823 | M75: 886 | N75: Very Close | O75: Very Close | P75: Very Close | Q75: Very Close | R75: Very Close | S75: Very Close | T75: Very Close | U75: Very Close | V75: Very Close | W75: Very Close
A76: 209 | B76: L | C76: Lewisham | D76: 309 | E76: 208 | F76: 320 | G76: 204 | H76: 210 | I76: 306 | J76: 304 | K76: 205 | L76: 206 | M76: 203 | N76: Close | O76: Close | P76: Somewhat close | Q76: Somewhat close | R76: Not Close | S76: Not Close | T76: Not Close | U76: Not Close | V76: Not Close | W76: Not Close
A77: 925 | B77: EM | C77: Lincolnshire | D77: 909 | E77: 830 | F77: 926 | G77: 935 | H77: 893 | I77: 891 | J77: 885 | K77: 860 | L77: 928 | M77: 835 | N77: Very Close | O77: Very Close | P77: Very Close | Q77: Very Close | R77: Very Close | S77: Very Close | T77: Very Close | U77: Very Close | V77: Very Close | W77: Very Close
A78: 341 | B78: NW | C78: Liverpool | D78: 355 | E78: 340 | F78: 393 | G78: 391 | H78: 806 | I78: 876 | J78: 390 | K78: 805 | L78: 394 | M78: 810 | N78: Very Close | O78: Very Close | P78: Very Close | Q78: Close | R78: Close | S78: Close | T78: Close | U78: Close | V78: Close | W78: Close
A79: 821 | B79: EE | C79: Luton | D79: 330 | E79: 380 | F79: 871 | G79: 308 | H79: 331 | I79: 335 | J79: 831 | K79: 333 | L79: 889 | M79: 874 | N79: Close | O79: Close | P79: Close | Q79: Close | R79: Close | S79: Close | T79: Close | U79: Somewhat close | V79: Somewhat close | W79: Somewhat close
A80: 352 | B80: NW | C80: Manchester | D80: 892 | E80: 203 | F80: 341 | G80: 301 | H80: 330 | I80: 355 | J80: 806 | K80: 810 | L80: 852 | M80: 391 | N80: Close | O80: Close | P80: Somewhat close | Q80: Somewhat close | R80: Somewhat close | S80: Somewhat close | T80: Somewhat close | U80: Somewhat close | V80: Somewhat close | W80: Somewhat close
A81: 887 | B81: SE | C81: Medway | D81: 883 | E81: 866 | F81: 886 | G81: 303 | H81: 928 | I81: 311 | J81: 894 | K81: 888 | L81: 332 | M81: 882 | N81: Very Close | O81: Very Close | P81: Very Close | Q81: Very Close | R81: Very Close | S81: Very Close | T81: Very Close | U81: Very Close | V81: Very Close | W81: Very Close
A82: 315 | B82: L | C82: Merton | D82: 302 | E82: 314 | F82: 307 | G82: 317 | H82: 308 | I82: 313 | J82: 312 | K82: 306 | L82: 870 | M82: 319 | N82: Close | O82: Close | P82: Close | Q82: Close | R82: Close | S82: Somewhat close | T82: Somewhat close | U82: Somewhat close | V82: Somewhat close | W82: Somewhat close
A83: 806 | B83: NE | C83: Middlesbrough | D83: 355 | E83: 805 | F83: 354 | G83: 393 | H83: 876 | I83: 340 | J83: 810 | K83: 807 | L83: 861 | M83: 357 | N83: Very Close | O83: Very Close | P83: Very Close | Q83: Very Close | R83: Very Close | S83: Very Close | T83: Very Close | U83: Very Close | V83: Very Close | W83: Very Close
A84: 826 | B84: SE | C84: Milton Keynes | D84: 822 | E84: 928 | F84: 358 | G84: 866 | H84: 886 | I84: 383 | J84: 351 | K84: 919 | L84: 356 | M84: 334 | N84: Very Close | O84: Very Close | P84: Very Close | Q84: Very Close | R84: Very Close | S84: Very Close | T84: Very Close | U84: Very Close | V84: Very Close | W84: Very Close
A85: 391 | B85: NE | C85: Newcastle upon Tyne | D85: 355 | E85: 393 | F85: 383 | G85: 390 | H85: 394 | I85: 341 | J85: 373 | K85: 806 | L85: 876 | M85: 805 | N85: Very Close | O85: Very Close | P85: Very Close | Q85: Very Close | R85: Very Close | S85: Close | T85: Close | U85: Close | V85: Close | W85: Close
A86: 316 | B86: L | C86: Newham | D86: 204 | E86: 320 | F86: 309 | G86: 304 | H86: 210 | I86: 203 | J86: 209 | K86: 307 | L86: 206 | M86: 330 | N86: Not Close | O86: Not Close | P86: Not Close | Q86: Not Close | R86: Not Close | S86: Not Close | T86: Not Close | U86: Not Close | V86: Not Close | W86: Not Close
A87: 926 | B87: EE | C87: Norfolk | D87: 908 | E87: 878 | F87: 909 | G87: 933 | H87: 925 | I87: 935 | J87: 893 | K87: 884 | L87: 835 | M87: 830 | N87: Extremely Close | O87: Very Close | P87: Very Close | Q87: Very Close | R87: Very Close | S87: Very Close | T87: Very Close | U87: Very Close | V87: Very Close | W87: Very Close
A88: 812 | B88: YH | C88: North East Lincolnshire | D88: 371 | E88: 807 | F88: 805 | G88: 357 | H88: 894 | I88: 876 | J88: 372 | K88: 342 | L88: 359 | M88: 813 | N88: Very Close | O88: Very Close | P88: Very Close | Q88: Very Close | R88: Very Close | S88: Very Close | T88: Very Close | U88: Very Close | V88: Very Close | W88: Very Close
A89: 813 | B89: YH | C89: North Lincolnshire | D89: 359 | E89: 371 | F89: 830 | G89: 891 | H89: 372 | I89: 909 | J89: 894 | K89: 332 | L89: 925 | M89: 888 | N89: Very Close | O89: Very Close | P89: Very Close | Q89: Very Close | R89: Very Close | S89: Very Close | T89: Very Close | U89: Very Close | V89: Very Close | W89: Very Close
A90: 802 | B90: SW | C90: North Somerset | D90: 938 | E90: 803 | F90: 850 | G90: 855 | H90: 881 | I90: 885 | J90: 835 | K90: 845 | L90: 916 | M90: 836 | N90: Extremely Close | O90: Extremely Close | P90: Extremely Close | Q90: Very Close | R90: Very Close | S90: Very Close | T90: Very Close | U90: Very Close | V90: Very Close | W90: Very Close
A91: 392 | B91: NE | C91: North Tyneside | D91: 841 | E91: 840 | F91: 808 | G91: 342 | H91: 390 | I91: 394 | J91: 929 | K91: 384 | L91: 383 | M91: 359 | N91: Very Close | O91: Very Close | P91: Very Close | Q91: Very Close | R91: Very Close | S91: Very Close | T91: Very Close | U91: Very Close | V91: Very Close | W91: Very Close
A92: 815 | B92: YH | C92: North Yorkshire | D92: 811 | E92: 937 | F92: 896 | G92: 885 | H92: 895 | I92: 857 | J92: 869 | K92: 860 | L92: 823 | M92: 881 | N92: Extremely Close | O92: Very Close | P92: Very Close | Q92: Very Close | R92: Very Close | S92: Very Close | T92: Very Close | U92: Very Close | V92: Very Close | W92: Very Close
A93: 928 | B93: EM | C93: Northamptonshire | D93: 866 | E93: 886 | F93: 860 | G93: 891 | H93: 937 | I93: 881 | J93: 888 | K93: 830 | L93: 885 | M93: 925 | N93: Extremely Close | O93: Very Close | P93: Very Close | Q93: Very Close | R93: Very Close | S93: Very Close | T93: Very Close | U93: Very Close | V93: Very Close | W93: Very Close
A94: 929 | B94: NE | C94: Northumberland | D94: 392 | E94: 808 | F94: 841 | G94: 840 | H94: 811 | I94: 830 | J94: 891 | K94: 860 | L94: 381 | M94: 877 | N94: Very Close | O94: Very Close | P94: Very Close | Q94: Very Close | R94: Very Close | S94: Very Close | T94: Very Close | U94: Very Close | V94: Very Close | W94: Very Close
A95: 892 | B95: EM | C95: Nottingham | D95: 352 | E95: 301 | F95: 333 | G95: 810 | H95: 852 | I95: 336 | J95: 330 | K95: 355 | L95: 806 | M95: 341 | N95: Close | O95: Close | P95: Close | Q95: Close | R95: Close | S95: Close | T95: Close | U95: Close | V95: Close | W95: Close
A96: 891 | B96: EM | C96: Nottinghamshire | D96: 830 | E96: 860 | F96: 888 | G96: 909 | H96: 928 | I96: 866 | J96: 886 | K96: 332 | L96: 359 | M96: 925 | N96: Extremely Close | O96: Extremely Close | P96: Extremely Close | Q96: Very Close | R96: Very Close | S96: Very Close | T96: Very Close | U96: Very Close | V96: Very Close | W96: Very Close
A97: 353 | B97: NW | C97: Oldham | D97: 354 | E97: 382 | F97: 357 | G97: 335 | H97: 380 | I97: 350 | J97: 342 | K97: 381 | L97: 807 | M97: 876 | N97: Very Close | O97: Very Close | P97: Very Close | Q97: Very Close | R97: Very Close | S97: Very Close | T97: Very Close | U97: Very Close | V97: Very Close | W97: Very Close
A98: 931 | B98: SE | C98: Oxfordshire | D98: 873 | E98: 800 | F98: 869 | G98: 919 | H98: 865 | I98: 850 | J98: 916 | K98: 867 | L98: 825 | M98: 936 | N98: Extremely Close | O98: Very Close | P98: Very Close | Q98: Very Close | R98: Very Close | S98: Very Close | T98: Very Close | U98: Very Close | V98: Very Close | W98: Very Close
A99: 874 | B99: EE | C99: Peterborough | D99: 831 | E99: 894 | F99: 851 | G99: 331 | H99: 852 | I99: 373 | J99: 879 | K99: 335 | L99: 882 | M99: 350 | N99: Very Close | O99: Very Close | P99: Very Close | Q99: Very Close | R99: Very Close | S99: Very Close | T99: Very Close | U99: Very Close | V99: Very Close | W99: Very Close
A100: 879 | B100: SW | C100: Plymouth | D100: 851 | E100: 880 | F100: 852 | G100: 894 | H100: 874 | I100: 882 | J100: 837 | K100: 372 | L100: 373 | M100: 921 | N100: Extremely Close | O100: Very Close | P100: Very Close | Q100: Very Close | R100: Very Close | S100: Very Close | T100: Very Close | U100: Very Close | V100: Very Close | W100: Very Close
A101: 836 | B101: SW | C101: Poole | D101: 938 | E101: 835 | F101: 802 | G101: 845 | H101: 866 | I101: 803 | J101: 916 | K101: 837 | L101: 886 | M101: 881 | N101: Very Close | O101: Very Close | P101: Very Close | Q101: Very Close | R101: Very Close | S101: Very Close | T101: Very Close | U101: Very Close | V101: Very Close | W101: Very Close
A102: 851 | B102: SE | C102: Portsmouth | D102: 879 | E102: 852 | F102: 874 | G102: 882 | H102: 837 | I102: 880 | J102: 801 | K102: 894 | L102: 373 | M102: 831 | N102: Extremely Close | O102: Very Close | P102: Very Close | Q102: Very Close | R102: Very Close | S102: Very Close | T102: Very Close | U102: Very Close | V102: Very Close | W102: Very Close
A103: 870 | B103: SE | C103: Reading | D103: 822 | E103: 801 | F103: 319 | G103: 846 | H103: 826 | I103: 305 | J103: 831 | K103: 800 | L103: 373 | M103: 358 | N103: Very Close | O103: Very Close | P103: Very Close | Q103: Close | R103: Close | S103: Close | T103: Close | U103: Close | V103: Close | W103: Close
A104: 317 | B104: L | C104: Redbridge | D104: 312 | E104: 871 | F104: 313 | G104: 308 | H104: 315 | I104: 302 | J104: 310 | K104: 307 | L104: 306 | M104: 319 | N104: Close | O104: Close | P104: Close | Q104: Close | R104: Close | S104: Close | T104: Close | U104: Close | V104: Somewhat close | W104: Somewhat close
A105: 807 | B105: NE | C105: Redcar and Cleveland | D105: 371 | E105: 372 | F105: 357 | G105: 805 | H105: 342 | I105: 370 | J105: 359 | K105: 812 | L105: 876 | M105: 808 | N105: Extremely Close | O105: Extremely Close | P105: Very Close | Q105: Very Close | R105: Very Close | S105: Very Close | T105: Very Close | U105: Very Close | V105: Very Close | W105: Very Close
A106: 318 | B106: L | C106: Richmond upon Thames | D106: 868 | E106: 314 | F106: 936 | G106: 931 | H106: 302 | I106: 872 | J106: 305 | K106: 919 | L106: 867 | M106: 825 | N106: Close | O106: Close | P106: Close | Q106: Somewhat close | R106: Somewhat close | S106: Somewhat close | T106: Somewhat close | U106: Somewhat close | V106: Somewhat close | W106: Somewhat close
A107: 354 | B107: NW | C107: Rochdale | D107: 353 | E107: 382 | F107: 806 | G107: 380 | H107: 357 | I107: 350 | J107: 342 | K107: 335 | L107: 876 | M107: 381 | N107: Very Close | O107: Very Close | P107: Very Close | Q107: Very Close | R107: Very Close | S107: Very Close | T107: Very Close | U107: Very Close | V107: Very Close | W107: Very Close
A108: 372 | B108: YH | C108: Rotherham | D108: 371 | E108: 807 | F108: 359 | G108: 370 | H108: 357 | I108: 805 | J108: 342 | K108: 384 | L108: 332 | M108: 894 | N108: Extremely Close | O108: Extremely Close | P108: Very Close | Q108: Very Close | R108: Very Close | S108: Very Close | T108: Very Close | U108: Very Close | V108: Very Close | W108: Very Close
A109: 857 | B109: EM | C109: Rutland | D109: 815 | E109: 869 | F109: 865 | G109: 895 | H109: 885 | I109: 873 | J109: 811 | K109: 931 | L109: 823 | M109: 825 | N109: Very Close | O109: Very Close | P109: Very Close | Q109: Very Close | R109: Close | S109: Close | T109: Close | U109: Close | V109: Close | W109: Close
A110: 355 | B110: NW | C110: Salford | D110: 393 | E110: 806 | F110: 391 | G110: 805 | H110: 876 | I110: 341 | J110: 340 | K110: 390 | L110: 357 | M110: 394 | N110: Very Close | O110: Very Close | P110: Very Close | Q110: Very Close | R110: Very Close | S110: Very Close | T110: Very Close | U110: Very Close | V110: Very Close | W110: Very Close
A111: 333 | B111: WM | C111: Sandwell | D111: 336 | E111: 335 | F111: 331 | G111: 831 | H111: 330 | I111: 892 | J111: 301 | K111: 861 | L111: 874 | M111: 806 | N111: Very Close | O111: Very Close | P111: Close | Q111: Close | R111: Close | S111: Close | T111: Close | U111: Close | V111: Close | W111: Close
A112: 343 | B112: NW | C112: Sefton | D112: 888 | E112: 351 | F112: 344 | G112: 808 | H112: 356 | I112: 891 | J112: 886 | K112: 841 | L112: 882 | M112: 866 | N112: Very Close | O112: Very Close | P112: Very Close | Q112: Very Close | R112: Very Close | S112: Very Close | T112: Very Close | U112: Very Close | V112: Very Close | W112: Very Close
A113: 373 | B113: YH | C113: Sheffield | D113: 383 | E113: 831 | F113: 874 | G113: 851 | H113: 852 | I113: 879 | J113: 332 | K113: 894 | L113: 372 | M113: 357 | N113: Very Close | O113: Very Close | P113: Very Close | Q113: Very Close | R113: Very Close | S113: Very Close | T113: Very Close | U113: Very Close | V113: Very Close | W113: Very Close
A114: 893 | B114: WM | C114: Shropshire | D114: 878 | E114: 933 | F114: 835 | G114: 935 | H114: 865 | I114: 916 | J114: 885 | K114: 884 | L114: 926 | M114: 925 | N114: Extremely Close | O114: Extremely Close | P114: Extremely Close | Q114: Extremely Close | R114: Extremely Close | S114: Extremely Close | T114: Extremely Close | U114: Very Close | V114: Very Close | W114: Very Close
A115: 871 | B115: SE | C115: Slough | D115: 312 | E115: 821 | F115: 313 | G115: 317 | H115: 308 | I115: 331 | J115: 330 | K115: 889 | L115: 380 | M115: 336 | N115: Close | O115: Close | P115: Close | Q115: Close | R115: Somewhat close | S115: Somewhat close | T115: Somewhat close | U115: Somewhat close | V115: Somewhat close | W115: Somewhat close
A116: 334 | B116: WM | C116: Solihull | D116: 877 | E116: 356 | F116: 358 | G116: 896 | H116: 823 | I116: 895 | J116: 881 | K116: 919 | L116: 937 | M116: 351 | N116: Very Close | O116: Very Close | P116: Very Close | Q116: Very Close | R116: Very Close | S116: Very Close | T116: Very Close | U116: Very Close | V116: Very Close | W116: Very Close
A117: 933 | B117: SW | C117: Somerset | D117: 878 | E117: 935 | F117: 884 | G117: 893 | H117: 908 | I117: 835 | J117: 926 | K117: 916 | L117: 845 | M117: 865 | N117: Extremely Close | O117: Extremely Close | P117: Extremely Close | Q117: Extremely Close | R117: Extremely Close | S117: Very Close | T117: Very Close | U117: Very Close | V117: Very Close | W117: Very Close
A118: 803 | B118: SW | C118: South Gloucestershire | D118: 850 | E118: 802 | F118: 855 | G118: 938 | H118: 881 | I118: 823 | J118: 916 | K118: 885 | L118: 836 | M118: 886 | N118: Extremely Close | O118: Extremely Close | P118: Very Close | Q118: Very Close | R118: Very Close | S118: Very Close | T118: Very Close | U118: Very Close | V118: Very Close | W118: Very Close
A119: 393 | B119: NE | C119: South Tyneside | D119: 355 | E119: 390 | F119: 394 | G119: 805 | H119: 391 | I119: 876 | J119: 806 | K119: 370 | L119: 340 | M119: 341 | N119: Very Close | O119: Very Close | P119: Very Close | Q119: Very Close | R119: Very Close | S119: Very Close | T119: Very Close | U119: Very Close | V119: Very Close | W119: Very Close
A120: 852 | B120: SE | C120: Southampton | D120: 851 | E120: 801 | F120: 879 | G120: 874 | H120: 373 | I120: 831 | J120: 894 | K120: 331 | L120: 810 | M120: 355 | N120: Very Close | O120: Very Close | P120: Very Close | Q120: Very Close | R120: Very Close | S120: Very Close | T120: Very Close | U120: Close | V120: Close | W120: Close
A121: 882 | B121: EE | C121: Southend-on-Sea | D121: 921 | E121: 837 | F121: 880 | G121: 866 | H121: 845 | I121: 851 | J121: 343 | K121: 886 | L121: 887 | M121: 894 | N121: Very Close | O121: Very Close | P121: Very Close | Q121: Very Close | R121: Very Close | S121: Very Close | T121: Very Close | U121: Very Close | V121: Very Close | W121: Very Close
A122: 210 | B122: L | C122: Southwark | D122: 204 | E122: 208 | F122: 309 | G122: 206 | H122: 209 | I122: 205 | J122: 203 | K122: 320 | L122: 202 | M122: 316 | N122: Close | O122: Close | P122: Somewhat close | Q122: Somewhat close | R122: Not Close | S122: Not Close | T122: Not Close | U122: Not Close | V122: Not Close | W122: Not Close
A123: 342 | B123: NW | C123: St. Helens | D123: 808 | E123: 357 | F123: 841 | G123: 876 | H123: 807 | I123: 371 | J123: 359 | K123: 840 | L123: 384 | M123: 372 | N123: Extremely Close | O123: Extremely Close | P123: Very Close | Q123: Very Close | R123: Very Close | S123: Very Close | T123: Very Close | U123: Very Close | V123: Very Close | W123: Very Close
A124: 860 | B124: WM | C124: Staffordshire | D124: 830 | E124: 891 | F124: 937 | G124: 928 | H124: 811 | I124: 885 | J124: 896 | K124: 881 | L124: 886 | M124: 855 | N124: Extremely Close | O124: Extremely Close | P124: Extremely Close | Q124: Very Close | R124: Very Close | S124: Very Close | T124: Very Close | U124: Very Close | V124: Very Close | W124: Very Close
A125: 356 | B125: NW | C125: Stockport | D125: 896 | E125: 334 | F125: 816 | G125: 358 | H125: 877 | I125: 886 | J125: 937 | K125: 881 | L125: 351 | M125: 888 | N125: Very Close | O125: Very Close | P125: Very Close | Q125: Very Close | R125: Very Close | S125: Very Close | T125: Very Close | U125: Very Close | V125: Very Close | W125: Very Close
A126: 808 | B126: NE | C126: Stockton-on-Tees | D126: 841 | E126: 342 | F126: 351 | G126: 381 | H126: 359 | I126: 888 | J126: 392 | K126: 343 | L126: 371 | M126: 840 | N126: Extremely Close | O126: Extremely Close | P126: Very Close | Q126: Very Close | R126: Very Close | S126: Very Close | T126: Very Close | U126: Very Close | V126: Very Close | W126: Very Close
A127: 861 | B127: WM | C127: Stoke-on-Trent | D127: 370 | E127: 805 | F127: 807 | G127: 372 | H127: 810 | I127: 371 | J127: 806 | K127: 357 | L127: 812 | M127: 384 | N127: Very Close | O127: Very Close | P127: Very Close | Q127: Very Close | R127: Very Close | S127: Very Close | T127: Very Close | U127: Very Close | V127: Very Close | W127: Close
A128: 935 | B128: EE | C128: Suffolk | D128: 933 | E128: 878 | F128: 893 | G128: 916 | H128: 926 | I128: 835 | J128: 908 | K128: 884 | L128: 925 | M128: 865 | N128: Extremely Close | O128: Extremely Close | P128: Extremely Close | Q128: Very Close | R128: Very Close | S128: Very Close | T128: Very Close | U128: Very Close | V128: Very Close | W128: Very Close
A129: 394 | B129: NE | C129: Sunderland | D129: 390 | E129: 384 | F129: 840 | G129: 370 | H129: 805 | I129: 393 | J129: 342 | K129: 876 | L129: 392 | M129: 357 | N129: Extremely Close | O129: Very Close | P129: Very Close | Q129: Very Close | R129: Very Close | S129: Very Close | T129: Very Close | U129: Very Close | V129: Very Close | W129: Very Close
A130: 936 | B130: SE | C130: Surrey | D130: 868 | E130: 825 | F130: 867 | G130: 919 | H130: 869 | I130: 872 | J130: 850 | K130: 931 | L130: 873 | M130: 895 | N130: Extremely Close | O130: Very Close | P130: Very Close | Q130: Very Close | R130: Very Close | S130: Very Close | T130: Very Close | U130: Very Close | V130: Very Close | W130: Very Close
A131: 319 | B131: L | C131: Sutton | D131: 305 | E131: 822 | F131: 303 | G131: 312 | H131: 919 | I131: 870 | J131: 938 | K131: 866 | L131: 886 | M131: 356 | N131: Very Close | O131: Very Close | P131: Very Close | Q131: Very Close | R131: Very Close | S131: Very Close | T131: Very Close | U131: Close | V131: Close | W131: Close
A132: 866 | B132: SW | C132: Swindon | D132: 886 | E132: 928 | F132: 881 | G132: 887 | H132: 891 | I132: 888 | J132: 860 | K132: 836 | L132: 356 | M132: 938 | N132: Extremely Close | O132: Extremely Close | P132: Very Close | Q132: Very Close | R132: Very Close | S132: Very Close | T132: Very Close | U132: Very Close | V132: Very Close | W132: Very Close
A133: 357 | B133: NW | C133: Tameside | D133: 342 | E133: 807 | F133: 876 | G133: 371 | H133: 805 | I133: 372 | J133: 808 | K133: 350 | L133: 812 | M133: 359 | N133: Extremely Close | O133: Very Close | P133: Very Close | Q133: Very Close | R133: Very Close | S133: Very Close | T133: Very Close | U133: Very Close | V133: Very Close | W133: Very Close
A134: 894 | B134: WM | C134: Telford and Wrekin | D134: 874 | E134: 831 | F134: 883 | G134: 888 | H134: 371 | I134: 332 | J134: 372 | K134: 350 | L134: 812 | M134: 887 | N134: Very Close | O134: Very Close | P134: Very Close | Q134: Very Close | R134: Very Close | S134: Very Close | T134: Very Close | U134: Very Close | V134: Very Close | W134: Very Close
A135: 883 | B135: EE | C135: Thurrock | D135: 887 | E135: 332 | F135: 894 | G135: 866 | H135: 311 | I135: 888 | J135: 886 | K135: 928 | L135: 359 | M135: 350 | N135: Very Close | O135: Very Close | P135: Very Close | Q135: Very Close | R135: Very Close | S135: Very Close | T135: Very Close | U135: Very Close | V135: Very Close | W135: Very Close
A136: 880 | B136: SW | C136: Torbay | D136: 921 | E136: 882 | F136: 837 | G136: 879 | H136: 851 | I136: 890 | J136: 894 | K136: 908 | L136: 836 | M136: 813 | N136: Extremely Close | O136: Very Close | P136: Very Close | Q136: Very Close | R136: Very Close | S136: Very Close | T136: Very Close | U136: Very Close | V136: Very Close | W136: Very Close
A137: 211 | B137: L | C137: Tower Hamlets | D137: 202 | E137: 316 | F137: 206 | G137: 352 | H137: 213 | I137: 205 | J137: 204 | K137: 203 | L137: 330 | M137: 301 | N137: Not Close | O137: Not Close | P137: Not Close | Q137: Not Close | R137: Not Close | S137: Not Close | T137: Not Close | U137: Not Close | V137: Not Close | W137: Not Close
A138: 358 | B138: NW | C138: Trafford | D138: 356 | E138: 334 | F138: 919 | G138: 305 | H138: 896 | I138: 877 | J138: 826 | K138: 816 | L138: 351 | M138: 822 | N138: Very Close | O138: Very Close | P138: Very Close | Q138: Very Close | R138: Very Close | S138: Very Close | T138: Very Close | U138: Very Close | V138: Very Close | W138: Very Close
A139: 384 | B139: YH | C139: Wakefield | D139: 840 | E139: 394 | F139: 342 | G139: 370 | H139: 371 | I139: 372 | J139: 359 | K139: 807 | L139: 808 | M139: 805 | N139: Extremely Close | O139: Very Close | P139: Very Close | Q139: Very Close | R139: Very Close | S139: Very Close | T139: Very Close | U139: Very Close | V139: Very Close | W139: Very Close
A140: 335 | B140: WM | C140: Walsall | D140: 831 | E140: 350 | F140: 331 | G140: 372 | H140: 874 | I140: 357 | J140: 894 | K140: 371 | L140: 354 | M140: 332 | N140: Very Close | O140: Very Close | P140: Very Close | Q140: Very Close | R140: Very Close | S140: Very Close | T140: Very Close | U140: Very Close | V140: Very Close | W140: Very Close
A141: 320 | B141: L | C141: Waltham Forest | D141: 306 | E141: 308 | F141: 309 | G141: 209 | H141: 203 | I141: 330 | J141: 304 | K141: 307 | L141: 315 | M141: 821 | N141: Close | O141: Close | P141: Somewhat close | Q141: Somewhat close | R141: Somewhat close | S141: Somewhat close | T141: Somewhat close | U141: Somewhat close | V141: Not Close | W141: Not Close
A142: 212 | B142: L | C142: Wandsworth | D142: 205 | E142: 207 | F142: 213 | G142: 202 | H142: 315 | I142: 302 | J142: 206 | K142: 203 | L142: 870 | M142: 308 | N142: Close | O142: Somewhat close | P142: Somewhat close | Q142: Somewhat close | R142: Somewhat close | S142: Somewhat close | T142: Somewhat close | U142: Not Close | V142: Not Close | W142: Not Close
A143: 877 | B143: NW | C143: Warrington | D143: 896 | E143: 334 | F143: 356 | G143: 860 | H143: 937 | I143: 816 | J143: 895 | K143: 351 | L143: 811 | M143: 823 | N143: Extremely Close | O143: Very Close | P143: Very Close | Q143: Very Close | R143: Very Close | S143: Very Close | T143: Very Close | U143: Very Close | V143: Very Close | W143: Very Close
A144: 937 | B144: WM | C144: Warwickshire | D144: 896 | E144: 885 | F144: 860 | G144: 855 | H144: 881 | I144: 895 | J144: 886 | K144: 928 | L144: 811 | M144: 850 | N144: Extremely Close | O144: Extremely Close | P144: Extremely Close | Q144: Very Close | R144: Very Close | S144: Very Close | T144: Very Close | U144: Very Close | V144: Very Close | W144: Very Close
A145: 869 | B145: SE | C145: West Berkshire | D145: 823 | E145: 850 | F145: 825 | G145: 867 | H145: 873 | I145: 895 | J145: 931 | K145: 919 | L145: 865 | M145: 936 | N145: Very Close | O145: Very Close | P145: Very Close | Q145: Very Close | R145: Very Close | S145: Very Close | T145: Very Close | U145: Very Close | V145: Very Close | W145: Very Close
A146: 938 | B146: SE | C146: West Sussex | D146: 802 | E146: 850 | F146: 881 | G146: 916 | H146: 835 | I146: 803 | J146: 845 | K146: 885 | L146: 886 | M146: 836 | N146: Extremely Close | O146: Extremely Close | P146: Very Close | Q146: Very Close | R146: Very Close | S146: Very Close | T146: Very Close | U146: Very Close | V146: Very Close | W146: Very Close
A147: 213 | B147: L | C147: Westminster | D147: 202 | E147: 207 | F147: 205 | G147: 212 | H147: 206 | I147: 201 | J147: 203 | K147: 309 | L147: 307 | M147: 302 | N147: Close | O147: Close | P147: Close | Q147: Somewhat close | R147: Somewhat close | S147: Not Close | T147: Not Close | U147: Not Close | V147: Not Close | W147: Not Close
A148: 359 | B148: NW | C148: Wigan | D148: 371 | E148: 332 | F148: 372 | G148: 342 | H148: 808 | I148: 813 | J148: 807 | K148: 384 | L148: 891 | M148: 830 | N148: Extremely Close | O148: Very Close | P148: Very Close | Q148: Very Close | R148: Very Close | S148: Very Close | T148: Very Close | U148: Very Close | V148: Very Close | W148: Very Close
A149: 865 | B149: SW | C149: Wiltshire | D149: 893 | E149: 916 | F149: 873 | G149: 885 | H149: 935 | I149: 835 | J149: 850 | K149: 931 | L149: 869 | M149: 933 | N149: Extremely Close | O149: Extremely Close | P149: Very Close | Q149: Very Close | R149: Very Close | S149: Very Close | T149: Very Close | U149: Very Close | V149: Very Close | W149: Very Close
A150: 868 | B150: SE | C150: Windsor and Maidenhead | D150: 936 | E150: 825 | F150: 867 | G150: 919 | H150: 872 | I150: 869 | J150: 931 | K150: 873 | L150: 895 | M150: 850 | N150: Extremely Close | O150: Very Close | P150: Very Close | Q150: Very Close | R150: Very Close | S150: Very Close | T150: Very Close | U150: Very Close | V150: Very Close | W150: Very Close
A151: 344 | B151: NW | C151: Wirral | D151: 343 | E151: 841 | F151: 808 | G151: 888 | H151: 894 | I151: 351 | J151: 342 | K151: 876 | L151: 357 | M151: 383 | N151: Very Close | O151: Very Close | P151: Very Close | Q151: Very Close | R151: Very Close | S151: Very Close | T151: Very Close | U151: Very Close | V151: Very Close | W151: Very Close
A152: 872 | B152: SE | C152: Wokingham | D152: 936 | E152: 868 | F152: 825 | G152: 867 | H152: 869 | I152: 895 | J152: 919 | K152: 823 | L152: 850 | M152: 931 | N152: Very Close | O152: Very Close | P152: Very Close | Q152: Close | R152: Close | S152: Close | T152: Close | U152: Close | V152: Close | W152: Close
A153: 336 | B153: WM | C153: Wolverhampton | D153: 333 | E153: 335 | F153: 331 | G153: 831 | H153: 330 | I153: 892 | J153: 874 | K153: 852 | L153: 373 | M153: 350 | N153: Very Close | O153: Close | P153: Close | Q153: Close | R153: Close | S153: Close | T153: Close | U153: Close | V153: Close | W153: Close
A154: 885 | B154: WM | C154: Worcestershire | D154: 937 | E154: 893 | F154: 835 | G154: 916 | H154: 881 | I154: 850 | J154: 855 | K154: 886 | L154: 938 | M154: 865 | N154: Extremely Close | O154: Extremely Close | P154: Very Close | Q154: Very Close | R154: Very Close | S154: Very Close | T154: Very Close | U154: Very Close | V154: Very Close | W154: Very Close
A155: 816 | B155: YH | C155: York | D155: 356 | E155: 896 | F155: 877 | G155: 891 | H155: 937 | I155: 358 | J155: 860 | K155: 351 | L155: 866 | M155: 888 | N155: Very Close | O155: Very Close | P155: Very Close | Q155: Very Close | R155: Very Close | S155: Very Close | T155: Very Close | U155: Very Close | V155: Very Close | W155: Very Close

Sheet Selector-anon (hidden)
A1: Select LAs to benchmark | E1: 1 | I1: 3 | M1: 2
A2: LA | B2: Name | C2: Symbol | D2: Result | E2: value | F2: order | G2: LA name | H2: LA code | I2: value1 | J2: order1 | K2: LA name | L2: LA code | M2: value2 | N2: order2 | O2: LA name | P2: LA code
A3: =INDEX('StatNeighbours - std'!A3:A155,MATCH(LAchoice,LAs,0)) -> LA No | B3: =VLOOKUP('Selector-anon'!A3,'StatNeighbours - std'!$A$4:$C$155,3,0) ->  | D3: =CONCATENATE(B3,C3) ->  | E3: =VLOOKUP(D3,'3-4 year olds '!$B$32:$I$42,$E$1+2,0) ->  | G3: =INDEX($D$3:$D$13,MATCH(H3,$A$3:$A$13,0)) ->  | H3: 370 | I3: =VLOOKUP(D3,'Central spend'!$B$32:$L$42,$I$1+2,0) ->  | K3: =INDEX($D$3:$D$13,MATCH(L3,$A$3:$A$13,0)) ->  | L3: 370 | M3: =VLOOKUP(D3,'2 year olds '!$B$32:$I$42,$M$1+2,0) ->  | O3: =INDEX($D$3:$D$13,MATCH(P3,$A$3:$A$13,0)) ->  | P3: 370
A4: =IF(OR(ISBLANK(D16),D16=1),0,INDEX(OFFSET(LAs,0,-2),D16)) -> 0 | B4: =IF(OR(ISBLANK(D16),D16=1),"No LA selected",INDEX(LAs,D16)) -> No LA selected | D4: =CONCATENATE(B4,C4) -> No LA selected | E4: =VLOOKUP(D4,'3-4 year olds '!$B$32:$I$42,$E$1+2,0) ->  | G4: =INDEX($D$3:$D$13,MATCH(H4,$A$3:$A$13,0)) ->  | H4: 816 | I4: =VLOOKUP(D4,'Central spend'!$B$32:$L$42,$I$1+2,0) ->  | K4: =INDEX($D$3:$D$13,MATCH(L4,$A$3:$A$13,0)) ->  | L4: 816 | M4: =VLOOKUP(D4,'2 year olds '!$B$32:$I$42,$M$1+2,0) ->  | O4: =INDEX($D$3:$D$13,MATCH(P4,$A$3:$A$13,0)) ->  | P4: 816
A5: 0 | B5: No LA selected | D5: =CONCATENATE(B5,C5) -> No LA selected | E5: =VLOOKUP(D5,'3-4 year olds '!$B$32:$I$42,$E$1+2,0) ->  | H5: 372 | I5: =VLOOKUP(D5,'Central spend'!$B$32:$L$42,$I$1+2,0) ->  | L5: 372 | M5: =VLOOKUP(D5,'2 year olds '!$B$32:$I$42,$M$1+2,0) ->  | P5: 372
A6: 0 | B6: No LA selected | D6: No LA selected | E6: =VLOOKUP(D6,'3-4 year olds '!$B$32:$I$42,$E$1+2,0) ->  | H6: 807 | I6: =VLOOKUP(D6,'Central spend'!$B$32:$L$42,$I$1+2,0) ->  | L6: 807 | M6: =VLOOKUP(D6,'2 year olds '!$B$32:$I$42,$M$1+2,0) ->  | P6: 807
A7: 0 | B7: No LA selected | D7: No LA selected | E7: =VLOOKUP(D7,'3-4 year olds '!$B$32:$I$42,$E$1+2,0) ->  | H7: 384 | I7: =VLOOKUP(D7,'Central spend'!$B$32:$L$42,$I$1+2,0) ->  | L7: 384 | M7: =VLOOKUP(D7,'2 year olds '!$B$32:$I$42,$M$1+2,0) ->  | P7: 384
A8: 0 | B8: No LA selected | D8: No LA selected | E8: =VLOOKUP(D8,'3-4 year olds '!$B$32:$I$42,$E$1+2,0) ->  | H8: 371 | I8: =VLOOKUP(D8,'Central spend'!$B$32:$L$42,$I$1+2,0) ->  | L8: 371 | M8: =VLOOKUP(D8,'2 year olds '!$B$32:$I$42,$M$1+2,0) ->  | P8: 371
A9: 0 | B9: No LA selected | D9: No LA selected | E9: =VLOOKUP(D9,'3-4 year olds '!$B$32:$I$42,$E$1+2,0) ->  | H9: 394 | I9: =VLOOKUP(D9,'Central spend'!$B$32:$L$42,$I$1+2,0) ->  | L9: 394 | M9: =VLOOKUP(D9,'2 year olds '!$B$32:$I$42,$M$1+2,0) ->  | P9: 394
A10: 0 | B10: No LA selected | D10: No LA selected | E10: =VLOOKUP(D10,'3-4 year olds '!$B$32:$I$42,$E$1+2,0) ->  | H10: 840 | I10: =VLOOKUP(D10,'Central spend'!$B$32:$L$42,$I$1+2,0) ->  | L10: 840 | M10: =VLOOKUP(D10,'2 year olds '!$B$32:$I$42,$M$1+2,0) ->  | P10: 840
A11: 0 | B11: No LA selected | D11: No LA selected | E11: =VLOOKUP(D11,'3-4 year olds '!$B$32:$I$42,$E$1+2,0) ->  | H11: 342 | I11: =VLOOKUP(D11,'Central spend'!$B$32:$L$42,$I$1+2,0) ->  | L11: 342 | M11: =VLOOKUP(D11,'2 year olds '!$B$32:$I$42,$M$1+2,0) ->  | P11: 342
A12: 0 | B12: No LA selected | D12: No LA selected | E12: =VLOOKUP(D12,'3-4 year olds '!$B$32:$I$42,$E$1+2,0) ->  | H12: 861 | I12: =VLOOKUP(D12,'Central spend'!$B$32:$L$42,$I$1+2,0) ->  | L12: 861 | M12: =VLOOKUP(D12,'2 year olds '!$B$32:$I$42,$M$1+2,0) ->  | P12: 861
A13: 0 | B13: No LA selected | D13: No LA selected | E13: =VLOOKUP(D13,'3-4 year olds '!$B$32:$I$42,$E$1+2,0) ->  | H13: 390 | I13: =VLOOKUP(D13,'Central spend'!$B$32:$L$42,$I$1+2,0) ->  | L13: 390 | M13: =VLOOKUP(D13,'2 year olds '!$B$32:$I$42,$M$1+2,0) ->  | P13: 390
A15: Stat neighbours
A16: =VLOOKUP('Selector-anon'!$A$3,'StatNeighbours - std'!$A$4:$M$155,ROW(A4),0) ->  | B16: =VLOOKUP('Selector-anon'!A16,'StatNeighbours - std'!$A$4:$C$155,3,0) ->  | C16: =MATCH(B16,LAs,0) ->  | E16: =IF(C16=D16,1,0) -> 
A17: =VLOOKUP('Selector-anon'!$A$3,'StatNeighbours - std'!$A$4:$M$155,ROW(A5),0) ->  | B17: =VLOOKUP('Selector-anon'!A17,'StatNeighbours - std'!$A$4:$C$155,3,0) ->  | E17: =IF(C17=D17,1,0) -> 
A18: =VLOOKUP('Selector-anon'!$A$3,'StatNeighbours - std'!$A$4:$M$155,ROW(A6),0) ->  | B18: =VLOOKUP('Selector-anon'!A18,'StatNeighbours - std'!$A$4:$C$155,3,0) -> 
A19: =VLOOKUP('Selector-anon'!$A$3,'StatNeighbours - std'!$A$4:$M$155,ROW(A7),0) ->  | B19: =VLOOKUP('Selector-anon'!A19,'StatNeighbours - std'!$A$4:$C$155,3,0) -> 
A20: =VLOOKUP('Selector-anon'!$A$3,'StatNeighbours - std'!$A$4:$M$155,ROW(A8),0) ->  | B20: =VLOOKUP('Selector-anon'!A20,'StatNeighbours - std'!$A$4:$C$155,3,0) -> 
A21: =VLOOKUP('Selector-anon'!$A$3,'StatNeighbours - std'!$A$4:$M$155,ROW(A9),0) ->  | B21: =VLOOKUP('Selector-anon'!A21,'StatNeighbours - std'!$A$4:$C$155,3,0) -> 
A22: =VLOOKUP('Selector-anon'!$A$3,'StatNeighbours - std'!$A$4:$M$155,ROW(A10),0) ->  | B22: =VLOOKUP('Selector-anon'!A22,'StatNeighbours - std'!$A$4:$C$155,3,0) -> 
A23: =VLOOKUP('Selector-anon'!$A$3,'StatNeighbours - std'!$A$4:$M$155,ROW(A11),0) ->  | B23: =VLOOKUP('Selector-anon'!A23,'StatNeighbours - std'!$A$4:$C$155,3,0) -> 
A24: =VLOOKUP('Selector-anon'!$A$3,'StatNeighbours - std'!$A$4:$M$155,ROW(A12),0) ->  | B24: =VLOOKUP('Selector-anon'!A24,'StatNeighbours - std'!$A$4:$C$155,3,0) -> 
A25: =VLOOKUP('Selector-anon'!$A$3,'StatNeighbours - std'!$A$4:$M$155,ROW(A13),0) ->  | B25: =VLOOKUP('Selector-anon'!A25,'StatNeighbours - std'!$A$4:$C$155,3,0) -> 
D27: =COUNT(Rightindices) -> 0 | E27: =IF(AND(E16:E25),1,0) -> 

Sheet 2 YO Revenue funding (hidden)
A1: 2013-14 Revenue Allocations - Funding Early Education for Two Year Olds from Lower Income Households
A5: Region | B5: LA Name | C5: Estimated eligible numbers in January 2013 | D5: Statutory Place Funding | E5: Amount per hour | F5: Trajectory Building Allocation | H5: Total revenue | J5: LA Name | K5: Total revenue
A6: North East | B6: Darlington | C6: 288.4114041 | D6: 796849.883 | E6: 4.847180906 | F6: 312821.7047 | H6: 1109671.588 | J6: Barking and Dagenham | K6: =INDEX($H$6:$H$157,MATCH(J6,$B$6:$B$157,0)) -> 4465120.608
B7: Durham | C7: 1304.275422 | D7: 3603573.585 | E7: 4.847180906 | F7: 1414665.492 | H7: 5018239.077 | J7: Barnet | K7: =INDEX($H$6:$H$157,MATCH(J7,$B$6:$B$157,0)) -> 4130580.654
B8: Gateshead | C8: 509.4545183 | D8: 1407568.382 | E8: 4.847180906 | F8: 552573.2639 | H8: 1960141.646 | J8: Barnsley | K8: 2713682.249
B9: Hartlepool | C9: 342.520564 | D9: 946347.7084 | E9: 4.847180906 | F9: 371510.5062 | H9: 1317858.215 | J9: Bath and North East Somerset | K9: 999793.6538
B10: Middlesbrough | C10: 657.9093815 | D10: 1817733.301 | E10: 4.847180906 | F10: 713592.914 | H10: 2531326.215 | J10: Bedford Borough | K10: 1442257.617
B11: Newcastle upon Tyne | C11: 867.2995514 | D11: 2396255.96 | E11: 4.847180906 | F11: 940705.2577 | H11: 3336961.218 | J11: Bexley | K11: 2196582.985
B12: North Tyneside | C12: 486.1826148 | D12: 1343270.6 | E12: 4.847180906 | F12: 527331.6943 | H12: 1870602.294 | J12: Birmingham | K12: 18093045.14
B13: Northumberland | C13: 600.9292463 | D13: 1660303.278 | E13: 4.847180906 | F13: 651790.1462 | H13: 2312093.424 | J13: Blackburn with Darwen | K13: 1889280.847
B14: Redcar and Cleveland | C14: 380.8792428 | D14: 1052328.638 | E14: 4.847180906 | F14: 413115.7518 | H14: 1465444.39 | J14: Blackpool | K14: 1887643.455
B15: South Tyneside | C15: 440.2476287 | D15: 1216357.143 | E15: 4.847180906 | F15: 477508.9049 | H15: 1693866.048 | J15: Bolton | K15: 3359962.402
B16: Stockton-on-Tees | C16: 571.3140683 | D16: 1578479.707 | E16: 4.847180906 | F16: 619668.4259 | H16: 2198148.132 | J16: Bournemouth | K16: 1317673.132
B17: Sunderland | C17: 816.604985 | D17: 2256192.292 | E17: 4.847180906 | F17: 885720.0509 | H17: 3141912.343 | J17: Bracknell Forest | K17: 893538.612
A18: North West | B18: Blackburn with Darwen | C18: 491.0373013 | D18: 1356683.58 | E18: 4.847180906 | F18: 532597.2673 | H18: 1889280.847 | J18: Bradford | K18: 7124527.474
B19: Blackpool | C19: 490.6117318 | D19: 1355507.777 | E19: 4.847180906 | F19: 532135.6788 | H19: 1887643.455 | J19: Brent | K19: 4641660.581
B20: Bolton | C20: 854.9544683 | D20: 2412773.001 | E20: 4.951064935 | F20: 947189.4009 | H20: 3359962.402 | J20: Brighton and Hove | K20: 1990544.162
B21: Bury | C21: 447.9317452 | D21: 1264111.32 | E21: 4.951064935 | F21: 496255.9027 | H21: 1760367.222 | J21: Bristol, City of | K21: 5533115.363
B22: Cheshire East | C22: 540.5654775 | D22: 1520022.39 | E22: 4.933178418 | F22: 596719.665 | H22: 2116742.055 | J22: Bromley | K22: 2801190.392
B23: Cheshire West and Chester | C23: 609.2640991 | D23: 1713196.848 | E23: 4.933178418 | F23: 672554.7306 | H23: 2385751.578 | J23: Buckinghamshire | K23: 2900717.891
B24: Cumbria | C24: 813.3793307 | D24: 2247482.246 | E24: 4.847616801 | F24: 882300.7226 | H24: 3129782.969 | J24: Bury | K24: 1760367.222
B25: Halton | C25: 492.8023334 | D25: 1385716.646 | E25: 4.933178418 | F25: 543994.8638 | H25: 1929711.51 | J25: Calderdale | K25: 2019338.067
B26: Knowsley | C26: 534.2571745 | D26: 1482568.365 | E26: 4.868436504 | F26: 582016.228 | H26: 2064584.593 | J26: Cambridgeshire | K26: 4191598.066
B27: Lancashire | C27: 2627.620081 | D27: 7259833.434 | E27: 4.847180906 | F27: 2850014.186 | H27: 10109847.62 | J27: Camden | K27: 3195781.563
B28: Liverpool | C28: 1515.663957 | D28: 4205980.831 | E28: 4.868436504 | F28: 1651154.278 | H28: 5857135.109 | J28: Central Bedfordshire | K28: 1793325.801
B29: Manchester | C29: 2273.76224 | D29: 6416800.363 | E29: 4.951064935 | F29: 2519062.212 | H29: 8935862.575 | J29: Cheshire East | K29: 2116742.055
B30: Oldham | C30: 769.8249517 | D30: 2172528.395 | E30: 4.951064935 | F30: 852875.8685 | H30: 3025404.263 | J30: Cheshire West and Chester | K30: 2385751.578
B31: Rochdale | C31: 682.8118713 | D31: 1926968.17 | E31: 4.951064935 | F31: 756475.5682 | H31: 2683443.739 | J31: City of London | K31: 41189.37385
B32: Salford | C32: 841.1586934 | D32: 2373839.848 | E32: 4.951064935 | F32: 931905.2983 | H32: 3305745.146 | J32: Cornwall | K32: 3602699.209
B33: Sefton | C33: 552.2969497 | D33: 1532628.9 | E33: 4.868436504 | F33: 601668.6396 | H33: 2134297.539 | J33: Coventry | K33: 4419963.094
B34: St. Helens | C34: 520.6778359 | D34: 1444885.581 | E34: 4.868436504 | F34: 567222.9865 | H34: 2012108.567 | J34: Croydon | K34: 5077646.302
B35: Stockport | C35: 542.7573734 | D35: 1531719.39 | E35: 4.951064935 | F35: 601311.5907 | H35: 2133030.98 | J35: Cumbria | K35: 3129782.969
B36: Tameside | C36: 703.4587686 | D36: 1985235.924 | E36: 4.951064935 | F36: 779349.9119 | H36: 2764585.836 | J36: Darlington | K36: 1109671.588
B37: Trafford | C37: 430.3024534 | D37: 1214359.571 | E37: 4.951064935 | F37: 476724.7124 | H37: 1691084.284 | J37: Derby | K37: 2885803.332
B38: Warrington | C38: 402.4568249 | D38: 1131673.054 | E38: 4.933178418 | F38: 444264.2228 | H38: 1575937.277 | J38: Derbyshire | K38: 5641332.598
B39: Wigan | C39: 801.4412247 | D39: 2261752.901 | E39: 4.951064935 | F39: 887902.9955 | H39: 3149655.896 | J39: Devon | K39: 4536964.983
B40: Wirral | C40: 833.6428594 | D40: 2313366.277 | E40: 4.868436504 | F40: 908165.0107 | H40: 3221531.288 | J40: Doncaster | K40: 3438859.536
A41: Yorkshire & The Humber | B41: Barnsley | C41: 705.3049895 | D41: 1948682.3 | E41: 4.847180906 | F41: 764999.9482 | H41: 2713682.249 | J41: Dorset | K41: 2193871.976
B42: Bradford | C42: 1849.657357 | D42: 5116089.252 | E42: 4.852571827 | F42: 2008438.221 | H42: 7124527.474 | J42: Dudley | K42: 2842673.878
B43: Calderdale | C43: 524.2570159 | D43: 1450077.05 | E43: 4.852571827 | F43: 569261.0171 | H43: 2019338.067 | J43: Durham | K43: 5018239.077
B44: Doncaster | C44: 893.7836366 | D44: 2469428.657 | E44: 4.847180906 | F44: 969430.8786 | H44: 3438859.536 | J44: Ealing | K44: 4674003.157
B45: East Riding of Yorkshire | C45: 481.8655995 | D45: 1331343.148 | E45: 4.847180906 | F45: 522649.2995 | H45: 1853992.447 | J45: East Riding of Yorkshire | K45: 1853992.447
B46: Kingston upon Hull, City of | C46: 1071.069008 | D46: 2959249.189 | E46: 4.847180906 | F46: 1161721.167 | H46: 4120970.356 | J46: East Sussex | K46: 3774297.527
B47: Kirklees | C47: 1117.770459 | D47: 3091715.02 | E47: 4.852571827 | F47: 1213723.668 | H47: 4305438.688 | J47: Enfield | K47: 5516115.611
B48: Leeds | C48: 2190.228671 | D48: 6058097.908 | E48: 4.852571827 | F48: 2378245.333 | H48: 8436343.241 | J48: Essex | K48: 10431521.1
B49: North East Lincolnshire | C49: 449.5595421 | D49: 1242084.964 | E49: 4.847180906 | F49: 487608.9515 | H49: 1729693.916 | J49: Gateshead | K49: 1960141.646
B50: North Lincolnshire | C50: 395.6451783 | D50: 1093125.34 | E50: 4.847180906 | F50: 429131.4331 | H50: 1522256.773 | J50: Gloucestershire | K50: 3975048.14
B51: North Yorkshire | C51: 806.1797106 | D51: 2227388.373 | E51: 4.847180906 | F51: 874412.4117 | H51: 3101800.785 | J51: Greenwich | K51: 4801213.468
B52: Rotherham | C52: 657.0980329 | D52: 1815491.632 | E52: 4.847180906 | F52: 712712.8953 | H52: 2528204.527 | J52: Hackney | K52: 4957243.049
B53: Sheffield | C53: 1403.602217 | D53: 3878002.903 | E53: 4.847180906 | F53: 1522399.018 | H53: 5400401.921 | J53: Halton | K53: 1929711.51
B54: Wakefield | C54: 811.6177628 | D54: 2244907.089 | E54: 4.852571827 | F54: 881289.7857 | H54: 3126196.875 | J54: Hammersmith and Fulham | K54: 2822784.849
B55: York | C55: 308.3422537 | D55: 851916.6903 | E55: 4.847180906 | F55: 334439.4434 | H55: 1186356.134 | J55: Hampshire | K55: 8666104.486
A56: East Midlands | B56: Derby | C56: 750.0404626 | D56: 2072281.631 | E56: 4.847180906 | F56: 813521.7013 | H56: 2885803.332 | J56: Haringey | K56: 3698711.613
B57: Derbyshire | C57: 1466.221784 | D57: 4051014.075 | E57: 4.847180906 | F57: 1590318.523 | H57: 5641332.598 | J57: Harrow | K57: 2304068.848
B58: Leicester | C58: 1122.196034 | D58: 3100507.698 | E58: 4.847180906 | F58: 1217175.436 | H58: 4317683.133 | J58: Hartlepool | K58: 1317858.215
B59: Leicestershire | C59: 987.1595947 | D59: 2727416.449 | E59: 4.847180906 | F59: 1070709.906 | H59: 3798126.355 | J59: Havering | K59: 2119822.591
B60: Lincolnshire | C60: 1268.040974 | D60: 3503461.679 | E60: 4.847180906 | F60: 1375364.266 | H60: 4878825.945 | J60: Herefordshire | K60: 1064775.283
B61: Northamptonshire | C61: 1575.534547 | D61: 4404888.675 | E61: 4.904922513 | F61: 1729240.116 | H61: 6134128.791 | J61: Hertfordshire | K61: 9406873.495
B62: Nottingham | C62: 1138.238694 | D62: 3163816.522 | E62: 4.876442286 | F62: 1242028.767 | H62: 4405845.289 | J62: Hillingdon | K62: 3323829.39
B63: Nottinghamshire | C63: 1625.158067 | D63: 4517244.026 | E63: 4.876442286 | F63: 1773347.787 | H63: 6290591.813 | J63: Hounslow | K63: 3426460.909
B64: Rutland | C64: 45.55936186 | D64: 125875.6473 | E64: 4.847180906 | F64: 49415.37347 | H64: 175291.0207 | J64: Isle of Wight | K64: 1043617.355
A65: West Midlands | B65: Birmingham | C65: 4657.298504 | D65: 12992529.56 | E65: 4.894234605 | F65: 5100515.582 | H65: 18093045.14 | J65: Isles of Scilly | K65: 4497.116571
B66: Coventry | C66: 1137.734823 | D66: 3173954.45 | E66: 4.894234605 | F66: 1246008.644 | H66: 4419963.094 | J66: Islington | K66: 4260091.297
B67: Dudley | C67: 731.7276168 | D67: 2041310.575 | E67: 4.894234605 | F67: 801363.3028 | H67: 2842673.878 | J67: Kensington and Chelsea | K67: 1488367.319
B68: Herefordshire | C68: 276.7425405 | D68: 764610.0602 | E68: 4.847180906 | F68: 300165.2226 | H68: 1064775.283 | J68: Kent | K68: 12124520.8
B69: Sandwell | C69: 1152.730715 | D69: 3215788.697 | E69: 4.894234605 | F69: 1262431.637 | H69: 4478220.334 | J69: Kingston Upon Hull, City of | K69: 4120970.356
B70: Shropshire | C70: 466.9218842 | D70: 1290055.26 | E70: 4.847180906 | F70: 506440.7916 | H70: 1796496.051 | J70: Kingston upon Thames | K70: 1269488.911
B71: Solihull | C71: 410.6916461 | D71: 1145712.122 | E71: 4.894234605 | F71: 449775.581 | H71: 1595487.703 | J71: Kirklees | K71: =INDEX($H$6:$H$157,MATCH(J71,$B$6:$B$157,0)) -> 4305438.688
B72: Staffordshire | C72: 1465.598046 | D72: 4049290.752 | E72: 4.847180906 | F72: 1589641.993 | H72: 5638932.745 | J72: Knowsley | K72: 2064584.593
B73: Stoke-on-Trent | C73: 920.0975804 | D73: 2542131.271 | E73: 4.847180906 | F73: 997971.958 | H73: 3540103.229 | J73: Lambeth | K73: 5423249.175
B74: Telford and Wrekin | C74: 507.7240657 | D74: 1402787.326 | E74: 4.847180906 | F74: 550696.3509 | H74: 1953483.677 | J74: Lancashire | K74: 10109847.62
B75: Walsall | C75: 943.4067111 | D75: 2631834.65 | E75: 4.894234605 | F75: 1033187.077 | H75: 3665021.727 | J75: Leeds | K75: 8436343.241
B76: Warwickshire | C76: 921.4735673 | D76: 2596465.877 | E76: 4.943390082 | F76: 1019302.254 | H76: 3615768.132 | J76: Leicester | K76: 4317683.133
B77: Wolverhampton | C77: 914.7991627 | D77: 2552027.78 | E77: 4.894234605 | F77: 1001857.059 | H77: 3553884.839 | J77: Leicestershire | K77: 3798126.355
B78: Worcestershire | C78: 992.2922385 | D78: 2741597.395 | E78: 4.847180906 | F78: 1076276.962 | H78: 3817874.357 | J78: Lewisham | K78: 5460250.921
A79: East of England | B79: Bedford Borough | C79: 360.878343 | D79: 1035678.327 | E79: 5.034881024 | F79: 406579.2902 | H79: 1442257.617 | J79: Lincolnshire | K79: 4878825.945
B80: Central Bedfordshire | C80: 448.7218065 | D80: 1287778.718 | E80: 5.034881024 | F80: 505547.0829 | H80: 1793325.801 | J80: Liverpool | K80: 5857135.109
B81: Cambridgeshire | C81: 1045.062148 | D81: 3009966.611 | E81: 5.052946552 | F81: 1181631.455 | H81: 4191598.066 | J81: Luton | K81: 2890472.375
B82: Essex | C82: 2616.324262 | D82: 7490825.629 | E82: 5.023000986 | F82: 2940695.472 | H82: 10431521.1 | J82: Manchester | K82: 8935862.575
B83: Hertfordshire | C83: 2260.679726 | D83: 6755031.062 | E83: 5.24219842 | F83: 2651842.433 | H83: 9406873.495 | J83: Medway | K83: 2649513.381
B84: Luton | C84: 723.2472678 | D84: 2075634.448 | E84: 5.034881024 | F84: 814837.9267 | H84: 2890472.375 | J84: Merton | K84: 2201769.912
B85: Norfolk | C85: 1668.006842 | D85: 4608524.621 | E85: 4.847180906 | F85: 1809182.079 | H85: 6417706.7 | J85: Middlesbrough | K85: 2531326.215
B86: Peterborough | C86: 611.800207 | D86: 1762094.435 | E86: 5.052946552 | F86: 691750.6006 | H86: 2453845.036 | J86: Milton Keynes | K86: 2868789.961
B87: Southend-on-Sea | C87: 463.6892153 | D87: 1293493.128 | E87: 4.893980957 | F87: 507790.4057 | H87: 1801283.534 | J87: Newcastle upon Tyne | K87: 3336961.218
B88: Suffolk | C88: 1292.717486 | D88: 3571640.243 | E88: 4.847180906 | F88: 1402129.326 | H88: 4973769.569 | J88: Newham | K88: 5072258.404
B89: Thurrock | C89: 443.131662 | D89: 1334125.852 | E89: 5.281887689 | F89: 523741.7138 | H89: 1857867.566 | J89: Norfolk | K89: 6417706.7
A90: Inner London | B90: City of London | C90: 7.329232191 | D90: 29577.89322 | E90: 7.080010481 | F90: 11611.48063 | H90: 41189.37385 | J90: North East Lincolnshire | K90: 1729693.916
B91: Camden | C91: 662.8244455 | D91: 2294875.522 | E91: 6.074153473 | F91: 900906.0406 | H91: 3195781.563 | J91: North Lincolnshire | K91: 1522256.773
B92: Hackney | C92: 1028.162223 | D92: 3559772.628 | E92: 6.074153473 | F92: 1397470.422 | H92: 4957243.049 | J92: North Somerset | K92: 1521095.484
B93: Hammersmith and Fulham | C93: 585.4626687 | D93: 2027028.358 | E93: 6.074153473 | F93: 795756.4908 | H93: 2822784.849 | J93: North Tyneside | K93: 1870602.294
B94: Haringey | C94: 882.1452937 | D94: 2656027.196 | E94: 5.282232835 | F94: 1042684.417 | H94: 3698711.613 | J94: North Yorkshire | K94: 3101800.785
B95: Islington | C95: 883.5687285 | D95: 3059151.274 | E95: 6.074153473 | F95: 1200940.023 | H95: 4260091.297 | J95: Northamptonshire | K95: 6134128.791
B96: Kensington and Chelsea | C96: 308.6963935 | D96: 1068789.484 | E96: 6.074153473 | F96: 419577.8347 | H96: 1488367.319 | J96: Northumberland | K96: 2312093.424
B97: Lambeth | C97: 1124.814715 | D97: 3894409.408 | E97: 6.074153473 | F97: 1528839.767 | H97: 5423249.175 | J97: Nottingham | K97: 4405845.289
B98: Lewisham | C98: 1132.489101 | D98: 3920980.185 | E98: 6.074153473 | F98: 1539270.736 | H98: 5460250.921 | J98: Nottinghamshire | K98: 6290591.813
B99: Newham | C99: 1209.737159 | D99: 3642364.607 | E99: 5.282232835 | F99: 1429893.798 | H99: 5072258.404 | J99: Oldham | K99: 3025404.263
B100: Southwark | C100: 1301.046388 | D100: 4504570.597 | E100: 6.074153473 | F100: 1768372.542 | H100: 6272943.139 | J100: Oxfordshire | K100: 4691042.362
B101: Tower Hamlets | C101: 1336.472924 | D101: 4627226.74 | E101: 6.074153473 | F101: 1816524.025 | H101: 6443750.766 | J101: Peterborough | K101: 2453845.036
B102: Wandsworth | C102: 893.5657041 | D102: 3093763.478 | E102: 6.074153473 | F102: 1214527.838 | H102: 4308291.316 | J102: Plymouth | K102: 2676610.884
B103: Westminster | C103: 653.4788832 | D103: 2262518.686 | E103: 6.074153473 | F103: 888203.622 | H103: 3150722.308 | J103: Poole | K103: 940441.2166
A104: Outer London | B104: Barking and Dagenham | C104: 1064.934372 | D104: 3206381.846 | E104: 5.282232835 | F104: 1258738.762 | H104: 4465120.608 | J104: Portsmouth | K104: 2483883.88
B105: Barnet | C105: 940.4971784 | D105: 2966150.299 | E105: 5.533001664 | F105: 1164430.356 | H105: 4130580.654 | J105: Reading | K105: 1907500.586
B106: Bexley | C106: 523.8865706 | D106: 1577355.782 | E106: 5.282232835 | F106: 619227.2034 | H106: 2196582.985 | J106: Redbridge | K106: 3473274.279
B107: Brent | C107: 1056.865619 | D107: 3333154.36 | E107: 5.533001664 | F107: 1308506.221 | H107: 4641660.581 | J107: Redcar and Cleveland | K107: 1465444.39
B108: Bromley | C108: 668.085858 | D108: 2011521.482 | E108: 5.282232835 | F108: 789668.9106 | H108: 2801190.392 | J108: Richmond upon Thames | K108: 1379442.234
B109: Croydon | C109: 1211.022177 | D109: 3646233.63 | E109: 5.282232835 | F109: 1431412.672 | H109: 5077646.302 | J109: Rochdale | K109: 2683443.739
B110: Ealing | C110: 1064.229741 | D110: 3356379.41 | E110: 5.533001664 | F110: 1317623.747 | H110: 4674003.157 | J110: Rotherham | K110: 2528204.527
B111: Enfield | C111: 1315.597412 | D111: 3961096.353 | E111: 5.282232835 | F111: 1555019.258 | H111: 5516115.611 | J111: Rutland | K111: 175291.0207
B112: Greenwich | C112: 995.800743 | D112: 3447728.528 | E112: 6.074153473 | F112: 1353484.94 | H112: 4801213.468 | J112: Salford | K112: 3305745.146
B113: Harrow | C113: 524.6163751 | D113: 1654540.868 | E113: 5.533001664 | F113: 649527.9799 | H113: 2304068.848 | J113: Sandwell | K113: 4478220.334
B114: Havering | C114: 505.5791633 | D114: 1522234.509 | E114: 5.282232835 | F114: 597588.0829 | H114: 2119822.591 | J114: Sefton | K114: 2134297.539
B115: Hillingdon | C115: 756.8069538 | D115: 2386826.057 | E115: 5.533001664 | F115: 937003.3327 | H115: 3323829.39 | J115: Sheffield | K115: 5400401.921
B116: Hounslow | C116: 780.1752553 | D116: 2460525.262 | E116: 5.533001664 | F116: 965935.6466 | H116: 3426460.909 | J116: Shropshire | K116: 1796496.051
B117: Kingston upon Thames | C117: 289.0515497 | D117: 911613.9422 | E117: 5.533001664 | F117: 357874.9693 | H117: 1269488.911 | J117: Slough | K117: 1961089.88
B118: Merton | C118: 501.3237999 | D118: 1581080.489 | E118: 5.533001664 | F118: 620689.4227 | H118: 2201769.912 | J118: Solihull | K118: 1595487.703
B119: Redbridge | C119: 828.3783326 | D119: 2494141.72 | E119: 5.282232835 | F119: 979132.5586 | H119: 3473274.279 | J119: Somerset | K119: 3478744.07
B120: Richmond upon Thames | C120: 314.086962 | D120: 990570.8997 | E120: 5.533001664 | F120: 388871.3346 | H120: 1379442.234 | J120: South Gloucestershire | K120: 1766502.861
B121: Sutton | C121: 460.3447321 | D121: 1451840.256 | E121: 5.533001664 | F121: 569953.204 | H121: 2021793.46 | J121: South Tyneside | K121: 1693866.048
B122: Waltham Forest | C122: 950.9865639 | D122: 2863299.499 | E122: 5.282232835 | F122: 1124053.915 | H122: 3987353.413 | J122: Southampton | K122: 2870439.223
A123: South East | B123: Bracknell Forest | C123: 205.0206539 | D123: 641645.8223 | E123: 5.490639132 | F123: 251892.7897 | H123: 893538.612 | J123: Southend-on-Sea | K123: 1801283.534
B124: Brighton and Hove | C124: 517.3563448 | D124: 1429400.284 | E124: 4.847180906 | F124: 561143.878 | H124: 1990544.162 | J124: Southwark | K124: 6272943.139
B125: Buckinghamshire | C125: 686.1473203 | D125: 2082991.704 | E125: 5.325928271 | F125: 817726.1864 | H125: 2900717.891 | J125: St. Helens | K125: 2012108.567
B126: East Sussex | C126: 980.9663157 | D126: 2710305.081 | E126: 4.847180906 | F126: 1063992.446 | H126: 3774297.527 | J126: Staffordshire | K126: 5638932.745
B127: Hampshire | C127: 2152.766499 | D127: 6223088.364 | E127: 5.071473793 | F127: 2443016.122 | H127: 8666104.486 | J127: Stockport | K127: 2133030.98
B128: Isle of Wight | C128: 259.2473336 | D128: 749416.6531 | E128: 5.071473793 | F128: 294200.702 | H128: 1043617.355 | J128: Stockton-on-Tees | K128: 2198148.132
B129: Kent | C129: 3095.19515 | D129: 8706560.649 | E129: 4.934961147 | F129: 3417960.149 | H129: 12124520.8 | J129: Stoke-on-Trent | K129: 3540103.229
B130: Medway | C130: 683.7047074 | D130: 1902602.942 | E130: 4.882078276 | F130: 746910.4389 | H130: 2649513.381 | J130: Suffolk | K130: 4973769.569
B131: Milton Keynes | C131: 676.4738069 | D131: 2060064.41 | E131: 5.342628274 | F131: 808725.5508 | H131: 2868789.961 | J131: Sunderland | K131: 3141912.343
B132: Oxfordshire | C132: 1148.043165 | D132: 3368615.182 | E132: 5.147760447 | F132: 1322427.18 | H132: 4691042.362 | J132: Surrey | K132: 7482525.711
B133: Portsmouth | C133: 617.0271792 | D133: 1783665.186 | E133: 5.071473793 | F133: 700218.6937 | H133: 2483883.88 | J133: Sutton | K133: 2021793.46
B134: Reading | C134: 447.9692448 | D134: 1369767.087 | E134: 5.36443111 | F134: 537733.4985 | H134: 1907500.586 | J134: Swindon | K134: 1984955.858
B135: Slough | C135: 449.9681651 | D135: 1408249.305 | E135: 5.490639132 | F135: 552840.5758 | H135: 1961089.88 | J135: Tameside | K135: =INDEX($H$6:$H$157,MATCH(J135,$B$6:$B$157,0)) -> 2764585.836
B136: Southampton | C136: 713.0522611 | D136: 2061248.737 | E136: 5.071473793 | F136: 809190.4858 | H136: 2870439.223 | J136: Telford and Wrekin | K136: 1953483.677
B137: Surrey | C137: 1716.850613 | D137: 5373166.082 | E137: 5.490639132 | F137: 2109359.629 | H137: 7482525.711 | J137: Thurrock | K137: 1857867.566
B138: West Berkshire | C138: 252.0113499 | D138: 770581.5894 | E138: 5.36443111 | F138: 302509.4834 | H138: 1073091.073 | J138: Torbay | K138: 1231009.206
B139: West Sussex | C139: 1254.495306 | D139: 3537704.685 | E139: 4.947407469 | F139: 1388807.144 | H139: 4926511.829 | J139: Tower Hamlets | K139: 6443750.766
B140: Windsor and Maidenhead | C140: 202.7804508 | D140: 634634.7387 | E140: 5.490639132 | F140: 249140.4279 | H140: 883775.1666 | J140: Trafford | K140: 1691084.284
B141: Wokingham | C141: 192.5435416 | D141: 588745.3419 | E141: 5.36443111 | F141: 231125.4923 | H141: 819870.8343 | J141: Wakefield | K141: 3126196.875
A142: South West | B142: Bath and North East Somerset | C142: 248.458358 | D142: 717947.0618 | E142: 5.069486327 | F142: 281846.5919 | H142: 999793.6538 | J142: Walsall | K142: 3665021.727
B143: Bournemouth | C143: 340.0379992 | D143: 946214.8017 | E143: 4.881883707 | F143: 371458.3306 | H143: 1317673.132 | J143: Waltham Forest | K143: 3987353.413
B144: Bristol, City of | C144: 1375.03249 | D144: 3973303.794 | E144: 5.069486327 | F144: 1559811.569 | H144: 5533115.363 | J144: Wandsworth | K144: 4308291.316
B145: Cornwall | C145: 936.3667131 | D145: 2587081.146 | E145: 4.847180906 | F145: 1015618.063 | H145: 3602699.209 | J145: Warrington | K145: 1575937.277
B146: Devon | C146: 1179.18892 | D146: 3257972.95 | E146: 4.847180906 | F146: 1278992.033 | H146: 4536964.983 | J146: Warwickshire | K146: 3615768.132
B147: Dorset | C147: 566.1493879 | D147: 1575409.019 | E147: 4.881883707 | F147: 618462.9571 | H147: 2193871.976 | J147: West Berkshire | K147: 1073091.073
B148: Gloucestershire | C148: 1015.453207 | D148: 2854463.14 | E148: 4.931620715 | F148: 1120584.999 | H148: 3975048.14 | J148: West Sussex | K148: 4926511.829
B149: Isles of Scilly | C149: 1.168832039 | D149: 3229.357995 | E149: 4.847180906 | F149: 1267.758576 | H149: 4497.116571 | J149: Westminster | K149: 3150722.308
B150: North Somerset | C150: 378.0068867 | D150: 1092291.424 | E150: 5.069486327 | F150: 428804.0603 | H150: 1521095.484 | J150: Wigan | K150: 3149655.896
B151: Plymouth | C151: 695.6698826 | D151: 1922061.53 | E151: 4.847180906 | F151: 754549.3539 | H151: 2676610.884 | J151: Wiltshire | K151: 2866845.681
B152: Poole | C152: 242.6897398 | D152: 675326.3593 | E152: 4.881883707 | F152: 265114.8572 | H152: 940441.2166 | J152: Windsor and Maidenhead | K152: 883775.1666
B153: Somerset | C153: 904.1499058 | D153: 2498069.551 | E153: 4.847180906 | F153: 980674.5186 | H153: 3478744.07 | J153: Wirral | K153: 3221531.288
B154: South Gloucestershire | C154: 438.9929849 | D154: 1268517.293 | E154: 5.069486327 | F154: 497985.5685 | H154: 1766502.861 | J154: Wokingham | K154: 819870.8343
B155: Swindon | C155: 502.6688114 | D155: 1425387.349 | E155: 4.974805485 | F155: 559568.5085 | H155: 1984955.858 | J155: Wolverhampton | K155: 3553884.839
B156: Torbay | C156: 319.9478995 | D156: 883981.8491 | E156: 4.847180906 | F156: 347027.3572 | H156: 1231009.206 | J156: Worcestershire | K156: 3817874.357
B157: Wiltshire | C157: 725.9979638 | D157: 2058668.232 | E157: 4.974805485 | F157: 808177.4492 | H157: 2866845.681 | J157: York | K157: 1186356.134
A159: Figures have been rounded to the nearest whole number, therefore totals may not match the sum of constituent parts. | G159: England | H159: =SUM($H$6:$H$157) -> 525000000
G160: Median | H160: =MEDIAN($H$6:$H$157,0) -> 2885803.332
G161: Min | H161: =MIN($H$6:$H$157) -> 4497.116571
G162: Max | H162: =MAX($H$6:$H$157) -> 18093045.14
